Workbook

Sheet Data
A1: 1 | B1: 2 | C1: 3 | D1: 4 | E1: 5 | F1: 6 | G1: 7 | H1: 8 | I1: 9 | J1: 10 | K1: 11 | L1: 12 | M1: 13 | N1: 14 | O1: 15 | P1: 16 | Q1: 17 | R1: 18 | S1: 19 | T1: 20 | U1: 21 | V1: 22 | W1: 23 | X1: 24 | Y1: 25 | Z1: 26 | AA1: 27 | AB1: 28 | AC1: 29 | AD1: 30 | AE1: 31 | AF1: 32 | AG1: 33 | AH1: 34 | AI1: 35 | AJ1: 36 | AK1: 37 | AL1: 38 | AM1: 39 | AN1: 40 | AO1: 41 | AP1: 42 | AQ1: 43 | AR1: 44 | AS1: 45 | AT1: 46 | AU1: 47 | AV1: 48 | AW1: 49 | AX1: 50 | AY1: 51 | AZ1: 52 | BA1: 53 | BB1: 54 | BC1: 55 | BD1: 56 | BE1: 57 | BF1: 58 | BG1: 59 | BH1: 60 | BI1: 61 | BJ1: 62 | BK1: 63 | BL1: 64 | BM1: 65 | BN1: 66 | BO1: 67 | BP1: 68 | BQ1: 69 | BR1: 70 | BS1: 71 | BT1: 72 | BU1: =$D$21 -> جغرافية المناخ | BV1: 74 | BW1: 75 | BX1: 76 | BY1: 77 | BZ1: 78 | CA1: 79 | CB1: 80 | CC1: 81 | CD1: 82 | CE1: 83 | CF1: 84 | CG1: 85 | CH1: 86 | CI1: 87 | CJ1: 88 | CK1: 89 | CL1: 90 | CM1: 91 | CN1: 92 | CO1: =[1]Tkh!B2 -> عام | CP1: 94 | CQ1: 95 | CR1: 96 | CS1: 97 | CT1: 98 | CU1: 99 | CV1: 100 | CW1: 101 | CX1: 102 | CY1: 103 | CZ1: 104 | DA1: 105 | DB1: 106 | DC1: 107 | DD1: 108 | DE1: 109 | DF1: 110 | DG1: 111 | DH1: 112 | DI1: 113 | DJ1: 114 | DK1: 115 | DL1: 116 | DM1: 117 | DN1: 118 | DO1: 119 | DP1: 120 | DQ1: 121 | DR1: 122 | DS1: 123 | DT1: 124 | DU1: 125 | DV1: 126 | DW1: 127 | DX1: 128 | DY1: 129 | DZ1: 130 | EA1: 131 | EB1: 132 | EC1: 133 | ED1: 134 | EE1: 135 | EF1: 136 | EG1: 137 | EH1: 138 | EI1: 139 | EJ1: 140 | EK1: 141 | EL1: 142 | EM1: 143 | EN1: 144 | EO1: 145 | EP1: 146 | EQ1: 147 | ER1: 148 | ES1: 149 | ET1: 150 | EU1: 151 | EV1: 152 | EW1: 153 | EX1: 154 | EY1: 155 | EZ1: 156 | FA1: 157 | FB1: 158 | FC1: 159 | FD1: 160 | FE1: 161 | FF1: 162 | FG1: 163 | FH1: 164 | FI1: 165 | FJ1: 166 | FK1: 167 | FL1: 168 | FM1: 169 | FN1: 170 | FO1: 171 | FP1: 172 | FQ1: 173 | FR1: 174 | FS1: 175 | FT1: 176 | FU1: 177 | FV1: 178 | FW1: 179 | FX1: 180 | FY1: 181 | FZ1: 182 | GA1: 183 | GB1: 184 | GC1: 185 | GD1: 186 | GE1: 187 | GF1: 188 | GG1: 189 | GH1: 190 | GI1: 191 | GJ1: 192 | GK1: 193 | GL1: 194 | GM1: 195 | GN1: 196 | GO1: 197 | GP1: 198 | GQ1: 199 | GR1: 200 | GS1: 201 | GT1: 202 | GU1: 203 | GV1: 204 | GW1: 205 | GX1: 206 | GY1: 207 | GZ1: 208 | HA1: 209 | HB1: 210 | HC1: 211 | HD1: 212 | HE1: 213 | HF1: 214 | HG1: 215 | HH1: 216 | HI1: 217 | HJ1: 218 | HK1: 219 | HL1: 220 | HM1: 221 | HN1: 222 | HO1: 223 | HP1: 224 | HQ1: 225 | HR1: 226 | HS1: 227 | HT1: 228 | HU1: 229 | HV1: 230 | HW1: 231 | HX1: 232 | HY1: 233 | HZ1: 234 | IA1: 235 | IB1: 236 | IC1: 237 | ID1: 238 | IE1: 239 | IF1: 240 | IG1: 241 | IH1: 242 | II1: 243 | IJ1: 244 | IK1: 245 | IL1: 246 | IM1: 247 | IN1: 248 | IO1: 249 | IP1: 250 | IQ1: 251 | IR1: 252 | IS1: 253 | IT1: 254 | IU1: FALSE | IV1: 256
BU2: =$E$21 -> جغرافية سياسية | CO2: =[1]Tkh!B3 -> لغة_عربية_اسلامية
A3: =CONCATENATE(IF(B3="الأول","1",""),IF(B3="الثاني","2",""),IF(B3="الثالث","3",""), IF(B3="الرابع","4",""),IF(B3="الخامس","5",""),IF(B3="السادس","6",""),IF(B3="السابع","7",""), IF(B3="الثامن","8",""),IF(B3="التاسع","9",""),IF(B3="العاشر","10","")) -> 8 | B3: الثامن | C3: امتحانات الملاحق | BU3: =$F$21 -> التربية الخاصة | CO3: =[1]Tkh!B4 -> لغة_عربية_تاريخ
B4: الخامسة عشر | C4: نوفمبر | H4: الامتحانات الأساسية | I4: الأول | J4: العاشرة | K4: يناير | L4: 2013م | BU4: =$G$21 -> طرق تدريس الحلقة الاولى | CO4: =[1]Tkh!B5 -> لغة_عربية_جغرافيا
B5: 2014م | H5: امتحانات الملاحق | I5: الثاني | J5: الحادية عشر | K5: فبراير | L5: 2014م | BU5: =$H$21 -> مهارات تفكير | CO5: =[1]Tkh!B6 -> لغة_عربية_رياض_أطفال
I6: الثالث | J6: الثانية عشر | K6: مارس | L6: 2015م | BU6: =$I$21 -> طرق تدريس خاصة | CO6: =[1]Tkh!B7 -> لغة_إنجليزية_تاريخ
I7: الرابع | J7: الثالثة عشر | K7: أبريل | L7: 2016م | BT7: =IF(BT8>0,1,"") ->  | BU7: =$J$21 -> Eng. Trad. Gr. | BV7: =IF(BV8>0,1,"") ->  | CO7: =[1]Tkh!B8 -> لغة_إنجليزية_جغرافيا
I8: الخامس | J8: الرابعة عشر | K8: مايو | L8: 2017م | BU8: =$K$21 -> Res. Proj. | CO8: =[1]Tkh!B9 -> لغة_إنجليزية_رياض_أطفال
B9: =" نتيجة "&C3&" للفصل الدراسي "&B3&" الدفعة "& B4 & " - "& C4 &B5 -> نتيجة امتحانات الملاحق للفصل الدراسي الثامن الدفعة الخامسة عشر - نوفمبر 2014م | I9: السادس | J9: الخامسة عشر | K9: يونيو | L9: 2018م | BU9: =$L$21 -> Introduction to Lt. | CO9: =[1]Tkh!B10 -> رياضيات_علوم
I10: السابع | J10: السادسة عشر | K10: يوليو | L10: 2019م | BU10: =$M$21 -> Translation | CO10: =[1]Tkh!B11 -> رياضيات_رياض_أطفال
I11: الثامن | J11: السابعة عشر | K11: أغسطس | L11: 2020م | BU11: =$N$21 -> 0 | CO11: =[1]Tkh!B12 -> 0
I12: التاسع | J12: الثامنة عشر | K12: سبتمبر | BU12: =$O$21 -> 0 | CO12: =[1]Tkh!B13 -> 0
I13: العاشر | J13: التاسعة عشر | K13: أكتوبر | BU13: =$P$21 -> 0 | CO13: =[1]Tkh!B14 -> 0
K14: نوفمبر | BU14: =$Q$21 -> 0 | CO14: =[1]Tkh!B15 -> 0
K15: ديسمبر | BU15: =$R$21 -> 0 | CO15: =[1]Tkh!B16 -> 0
BU16: =$S$21 -> 0 | CO16: =[1]Tkh!B17 -> 0
BU17: =$T$21 -> 0 | CO17: =[1]Tkh!B18 -> 0
BU18: =$U$21 -> 0 | CO18: =[1]Tkh!B19 -> 0
A19: 1 | B19: 1 | C19: 1 | D19: =IF(AND(D21>0,$AY$20="a"),1,"") -> 1 | E19: =IF(AND(E21>0,$AY$20="a"),1,"") -> 1 | F19: 1 | G19: 1 | H19: 1 | I19: 1 | J19: 1 | K19: 1 | L19: 1 | M19: 1 | X19: =IF(AND(X21>0,$AY$20="h"),1,"") ->  | Y19: =IF(AND(Y21>0,$AY$20="h"),1,"") ->  | AR19: 1 | AS19: 1 | AT19: 1 | AV19: =IF(AY19="m",0,IF(AY19="a",1,"")) -> 0 | AW19: =IF(AY19="m",1,IF(AY19="a",0,"")) -> 1 | AX19: 1 | AY19: m | BT19: =CONCATENATE(IF(BU20=4,D21,""),IF(BU20=5,E21,""),IF(BU20=6,F21,""), IF(BU20=7,G21,""),IF(BU20=8,H21,""),IF(BU20=9,I21,""),IF(BU20=10,J21,""), IF(BU20=11,K21,""),IF(BU20=12,L21,""),IF(BU20=13,M21,""),IF(BU20=14,N21,""),IF(BU20=15,O21,""),IF(BU20=16,P21,""),IF(BU20=17,Q21,""),IF(BU20=18,R21,""),IF(BU20=19,S21,""),IF(BU20=20,T21,""),IF(BU20=21,U21,""),IF(BU20=22,V21,""),IF(BU20=23,W21,"")) -> Introduction to Lt. | BU19: =$V$21 -> 0 | CO19: =[1]Tkh!B20 -> 0
B20: تخصص : لغة إنجليزية - جغرافيا | AY20: a | BA20: =" كشف بحالات "&BJ20 -> كشف بحالات الفصل من الدراسة | BJ20: =IF(CS21="فصل","الفصل من الدراسة",IF(CS21="إعادة","إعادة الفصل الدراسي")) -> الفصل من الدراسة | BT20: =SUBTOTAL(103,$B$22:B291) -> 165 | BU20: 12 | CC20: 1 | CD20: 17 | CO20: A:C | CP20: CT:CY | CQ20: 20:22:00 | CR20: =IF(ISERROR(VLOOKUP($BT$21,[1]RR!M54:V63,7,FALSE)),"",VLOOKUP($BT$21,[1]RR!M54:V63,7,FALSE)) -> 0 | CS20: =IF(ISERROR(VLOOKUP($BT$21,[1]RR!M54:V63,9,FALSE)),"",VLOOKUP($BT$21,[1]RR!M54:V63,9,FALSE)) -> 0 | CT20: الاستاذ / .................... | CW20: المادة : | CX20: =BT19 -> Introduction to Lt.
A21: ترقيم | B21: الاسم | C21: الرقم | D21: جغرافية المناخ | E21: جغرافية سياسية | F21: التربية الخاصة | G21: طرق تدريس الحلقة الاولى | H21: مهارات تفكير | I21: طرق تدريس خاصة | J21: Eng. Trad. Gr. | K21: Res. Proj. | L21: Introduction to Lt. | M21: Translation | N21: 0 | O21: 0 | P21: 0 | Q21: 0 | R21: 0 | S21: 0 | T21: 0 | U21: 0 | V21: 0 | W21: 0 | X21: =D21 -> جغرافية المناخ | Y21: =E21 -> جغرافية سياسية | Z21: التربية الخاصة | AA21: طرق تدريس الحلقة الاولى | AB21: مهارات تفكير | AC21: طرق تدريس خاصة | AD21: Eng. Trad. Gr. | AE21: Res. Proj. | AF21: Introduction to Lt. | AG21: Translation | AH21: 0 | AI21: 0 | AJ21: 0 | AK21: 0 | AL21: 0 | AM21: 0 | AN21: 0 | AO21: =U21 -> 0 | AP21: 0 | AQ21: 0 | AR21: مجموع الساعات | AS21: مجموع النقاط | AT21: المعدل الفصلي | AU21: المعدل التراكمي | AV21: التقرير | AW21: تقرير الملاحق | AX21: مواد الرسوب | AY21: تثبيت الملاحق | AZ21: =D21 -> جغرافية المناخ | BA21: =E21 -> جغرافية سياسية | BB21: التربية الخاصة | BC21: طرق تدريس الحلقة الاولى | BD21: مهارات تفكير | BE21: طرق تدريس خاصة | BF21: Eng. Trad. Gr. | BG21: Res. Proj. | BH21: Introduction to Lt. | BI21: Translation | BJ21: 0 | BK21: 0 | BL21: 0 | BM21: 0 | BN21: 0 | BO21: 0 | BP21: 0 | BQ21: =U21 -> 0 | BR21: 0 | BS21: 0 | BT21: لغة_إنجليزية_جغرافيا | BU21: جغرافية المناخ/ | BV21: جغرافية سياسية/ | BW21: التربية الخاصة/ | BX21: طرق تدريس الحلقة الاولى/ | BY21: مهارات تفكير/ | BZ21: طرق تدريس خاصة/ | CA21: Eng. Trad. Gr./ | CB21: Res. Proj./ | CC21: Introduction to Lt./ | CD21: Translation/ | CE21: 0 | CF21: 0 | CG21: 0 | CH21: 0 | CI21: 0 | CJ21: 0 | CK21: 0 | CL21: 0 | CO21: مجموع | CP21: =CO22*2 -> 13.33333333 | CQ21: =CO22*2 -> 13.33333333 | CR21: إعادة | CS21: فصل | CT21: التخصص | CU21: التوقيع | CV21: درجة أعمال السنة | CW21: درجة الامتحان | CX21: المجموع | CY21: ملاحظات
D22: 2 | E22: 2 | F22: 2 | G22: 2 | H22: 2 | I22: 2 | J22: 2 | K22: 2 | L22: 2 | M22: 2 | N22: 0 | O22: 0 | P22: 0 | Q22: 0 | R22: 0 | S22: 0 | T22: 0 | U22: 0 | V22: 0 | W22: 0 | X22: =D22 -> 2 | Y22: 2 | Z22: 2 | AA22: 2 | AB22: 2 | AC22: 2 | AD22: 2 | AE22: 2 | AF22: 2 | AG22: 2 | AH22: 0 | AI22: 0 | AJ22: 0 | AK22: 0 | AL22: 0 | AM22: 0 | AN22: 0 | AO22: 0 | AP22: 0 | AQ22: 0 | AR22: =SUM(X22:AQ22) -> 20 | AZ22: =D22 -> 2 | BA22: 2 | BB22: 2 | BC22: 2 | BD22: 2 | BE22: 2 | BF22: 2 | BG22: 2 | BH22: 2 | BI22: 2 | BJ22: 0 | BK22: 0 | BL22: 0 | BM22: 0 | BN22: 0 | BO22: 0 | BP22: 0 | BQ22: 0 | BR22: 0 | BS22: 0 | BU22: =IF(BU21=0,0,IF(BU21>0,49)) -> 49 | BV22: =IF(BV21=0,0,IF(BV21>0,49)) -> 49 | BW22: 49 | BX22: 49 | BY22: 49 | BZ22: 49 | CA22: 49 | CB22: 49 | CC22: 49 | CD22: 49 | CE22: 0 | CF22: 0 | CG22: 0 | CH22: 0 | CI22: 0 | CJ22: 0 | CK22: 0 | CL22: 0 | CO22: =AR22/3 -> 6.666666667 | CP22: ساعات | CQ22: الرسوب | CR22: فصل
A23: =SUBTOTAL(103,$B$22:B23) -> 1 | B23: يونس هارون محمد | C23: 12774910 | D23: 62 | E23: 66 | F23: 79 | G23: 58 | H23: 78 | I23: 59 | J23: 50 | K23: 56 | L23: 52 | M23: 50 | X23: =IF($B23=0,"",IF(D23>100,"-",IF(D23>=80,"A",IF(D23>=75,"B+",IF(D23>=70,"B",IF(D23>=60,"C+",IF(D23>=50,"C",IF(D23>=49,"C*","F")))))))) -> C+ | Y23: =IF($B23=0,"",IF(E23>100,"-",IF(E23>=80,"A",IF(E23>=75,"B+",IF(E23>=70,"B",IF(E23>=60,"C+",IF(E23>=50,"C",IF(E23>=49,"C*","F")))))))) -> C+ | Z23: B+ | AA23: C | AB23: B+ | AC23: C | AD23: C | AE23: C | AF23: C | AG23: C | AH23: F | AI23: F | AJ23: F | AK23: F | AL23: F | AM23: F | AN23: F | AO23: F | AP23: F | AQ23: F | AR23: =IF(AND($AR$22>0,B23>0),$AR$22,"") -> 20 | AS23: =IF(ISERROR(IF(SUMPRODUCT(($AZ$22:$BS$22<>0)*($AZ23:$BS23=0)),"",SUMPRODUCT(($AZ$22:$BS$22)*($AZ23:$BS23)))),"",IF(SUMPRODUCT(($AZ$22:$BS$22<>0)*($AZ23:$BS23=0)),"",SUMPRODUCT(($AZ$22:$BS$22)*($AZ23:$BS23)))) -> 48 | AT23: =IF(ISERROR(IF(ISERROR(AS23/AR23),"",AS23/AR23)),"",IF(ISERROR(AS23/AR23),"",AS23/AR23)) -> 2.4 | AX23: =BU23&" "&BV23&" "&BW23&" "&BX23&" "&BY23&" "&BZ23&" "&CA23&" "&CB23&" "&CC23&" "&CD23&" "&CE23&" "&CF23&" "&CG23&" "&CH23&" "&CI23&" "&CJ23&" "&CK23&" "&CL23&" " ->  | AY23: نجاح | AZ23: =IF(D23>100,"-",IF(D23>=80,4,IF(D23>=75,3.5,IF(D23>=70,3,IF(D23>=60,2.5,IF(D23>=50,2,IF(D23>=49,2,"0"))))))) -> 2.5 | BA23: =IF(E23>100,"-",IF(E23>=80,4,IF(E23>=75,3.5,IF(E23>=70,3,IF(E23>=60,2.5,IF(E23>=50,2,IF(E23>=49,2,"0"))))))) -> 2.5 | BB23: 3.5 | BC23: 2 | BD23: 3.5 | BE23: 2 | BF23: 2 | BG23: 2 | BH23: 2 | BI23: 2 | BJ23: 0 | BK23: 0 | BL23: 0 | BM23: 0 | BN23: 0 | BO23: 0 | BP23: 0 | BQ23: 0 | BR23: 0 | BS23: 0 | BT23: لغة_إنجليزية_جغرافيا | BU23: =IF(AND(D23<BU$22,$B23>0),BU$21,"") ->  | BV23: =IF(AND(E23<BV$22,$B23>0),BV$21,"") ->  | BW23: =IF(AND(F23<BW$22,$B23>0),BW$21,"") ->  | CM23: 129 | CN23: 40 | CP23: =IF(AND(B23>0,CQ23>=0),CQ23,"-") -> 0 | CQ23: =SUMIF(AZ23:BS23,0,$AZ$22:$BS$22) -> 0 | CR23: =IF(ISERROR(CN23+AR23),"",CN23+AR23) -> 60 | CS23: =IF(ISERROR(CM23+AS23),"",CM23+AS23) -> 177 | CT23: =CONCATENATE(IF(BT23=$CO$1,"عام",""),IF(BT23=$CO$2,"ع/س",""),IF(BT23=$CO$3,"ع/ج",""), IF(BT23=$CO$4,"ع/ت",""),IF(BT23=$CO$5,"ع/ط",""),IF(BT23=$CO$6,"E/ت",""),IF(BT23=$CO$7,"E/ج",""), IF(BT23=$CO$8,"E/ط",""),IF(BT23=$CO$9,"ر/م",""),IF(BT23=$CO$10,"ر/ط","")) -> E/ج | DC23: =IF(BJ23=0,BJ22,0) -> 0 | DD23: 0 | DE23: 0 | DF23: 0 | DG23: 0 | DH23: 0 | DI23: 0
A24: =SUBTOTAL(103,$B$22:B24) -> 2 | B24: حافظ عبده احمد فرج الله | C24: 127511 | D24: 51 | E24: 55 | F24: 64 | G24: 51 | H24: 58 | I24: 55 | J24: 49 | K24: 66 | L24: 50 | M24: 49 | X24: =IF($B24=0,"",IF(D24>100,"-",IF(D24>=80,"A",IF(D24>=75,"B+",IF(D24>=70,"B",IF(D24>=60,"C+",IF(D24>=50,"C",IF(D24>=49,"C*","F")))))))) -> C | Y24: C | Z24: C+ | AA24: C | AB24: C | AC24: C | AD24: C* | AE24: C+ | AF24: C | AG24: C* | AH24: F | AI24: F | AJ24: F | AK24: F | AL24: F | AM24: F | AN24: F | AO24: F | AP24: F | AQ24: F | AR24: =IF(AND($AR$22>0,B24>0),$AR$22,"") -> 20 | AS24: =IF(ISERROR(IF(SUMPRODUCT(($AZ$22:$BS$22<>0)*($AZ24:$BS24=0)),"",SUMPRODUCT(($AZ$22:$BS$22)*($AZ24:$BS24)))),"",IF(SUMPRODUCT(($AZ$22:$BS$22<>0)*($AZ24:$BS24=0)),"",SUMPRODUCT(($AZ$22:$BS$22)*($AZ24:$BS24)))) -> 42 | AT24: =IF(ISERROR(IF(ISERROR(AS24/AR24),"",AS24/AR24)),"",IF(ISERROR(AS24/AR24),"",AS24/AR24)) -> 2.1 | AV24: =IF(CP24=0,"نجاح",IF(CP24="-","",IF(CP24<=$CO$22,"ملحق",IF(CP24<=$CQ$21,"إعادة",IF(CP24>$CP$21,"فصل"))))) -> نجاح | AX24: =BU24&" "&BV24&" "&BW24&" "&BX24&" "&BY24&" "&BZ24&" "&CA24&" "&CB24&" "&CC24&" "&CD24&" "&CE24&" "&CF24&" "&CG24&" "&CH24&" "&CI24&" "&CJ24&" "&CK24&" "&CL24&" " ->  | AY24: ملحق | AZ24: =IF(D24>100,"-",IF(D24>=80,4,IF(D24>=75,3.5,IF(D24>=70,3,IF(D24>=60,2.5,IF(D24>=50,2,IF(D24>=49,2,"0"))))))) -> 2 | BA24: 2 | BB24: 2.5 | BC24: 2 | BD24: 2 | BE24: 2 | BF24: 2 | BG24: 2.5 | BH24: 2 | BI24: 2 | BJ24: 0 | BK24: 0 | BL24: 0 | BM24: 0 | BN24: 0 | BO24: 0 | BP24: 0 | BQ24: 0 | BR24: 0 | BS24: 0 | BT24: لغة_إنجليزية_جغرافيا | BU24: =IF(AND(D24<BU$22,B24>0),BU$21,"") ->  | BV24: =IF(AND(E24<BV$22,$B24>0),BV$21,"") ->  | CM24: 114 | CN24: 40 | CP24: =IF(AND(B24>0,CQ24>=0),CQ24,"-") -> 0 | CQ24: =SUMIF(AZ24:BS24,0,$AZ$22:$BS$22) -> 0 | CR24: =IF(ISERROR(CN24+AR24),"",CN24+AR24) -> 60 | CS24: =IF(ISERROR(CM24+AS24),"",CM24+AS24) -> 156 | CT24: =CONCATENATE(IF(BT24=$CO$1,"عام",""),IF(BT24=$CO$2,"ع/س",""),IF(BT24=$CO$3,"ع/ج",""), IF(BT24=$CO$4,"ع/ت",""),IF(BT24=$CO$5,"ع/ط",""),IF(BT24=$CO$6,"E/ت",""),IF(BT24=$CO$7,"E/ج",""), IF(BT24=$CO$8,"E/ط",""),IF(BT24=$CO$9,"ر/م",""),IF(BT24=$CO$10,"ر/ط","")) -> E/ج
A25: =SUBTOTAL(103,$B$22:B25) -> 3 | B25: رنده ربيع ادريس يوسف | C25: 23261310 | D25: 50 | E25: 50 | F25: 75 | G25: 58 | H25: 75 | I25: 54 | J25: 50 | K25: 50 | L25: 64 | M25: 50 | X25: C | Y25: C | Z25: B+ | AA25: C | AB25: B+ | AC25: C | AD25: C | AE25: C | AF25: C+ | AG25: C | AH25: F | AI25: F | AJ25: F | AK25: F | AL25: F | AM25: F | AN25: F | AO25: F | AP25: F | AQ25: F | AR25: 20 | AS25: 47 | AT25: 2.35 | AV25: نجاح | AY25: نجاح | AZ25: 2 | BA25: 2 | BB25: 3.5 | BC25: 2 | BD25: 3.5 | BE25: 2 | BF25: 2 | BG25: 2 | BH25: 2.5 | BI25: 2 | BJ25: 0 | BK25: 0 | BL25: 0 | BM25: 0 | BN25: 0 | BO25: 0 | BP25: 0 | BQ25: 0 | BR25: 0 | BS25: 0 | BT25: لغة_إنجليزية_جغرافيا | CM25: 106 | CN25: 40 | CP25: 0 | CQ25: 0 | CR25: 60 | CS25: 153 | CT25: E/ج
A26: =SUBTOTAL(103,$B$22:B26) -> 4 | B26: ياسر عبدالعزيز على خميس | C26: 12042710 | D26: 77 | E26: 77 | F26: 64 | G26: 57 | H26: 77 | I26: 70 | J26: 60 | K26: 78 | L26: 65 | M26: 63 | X26: B+ | Y26: B+ | Z26: C+ | AA26: C | AB26: B+ | AC26: B | AD26: C+ | AE26: B+ | AF26: C+ | AG26: C+ | AH26: F | AI26: F | AJ26: F | AK26: F | AL26: F | AM26: F | AN26: F | AO26: F | AP26: F | AQ26: F | AR26: 20 | AS26: 58 | AT26: 2.9 | AV26: نجاح | AY26: نجاح | AZ26: 3.5 | BA26: 3.5 | BB26: 2.5 | BC26: 2 | BD26: 3.5 | BE26: 3 | BF26: 2.5 | BG26: 3.5 | BH26: 2.5 | BI26: 2.5 | BJ26: 0 | BK26: 0 | BL26: 0 | BM26: 0 | BN26: 0 | BO26: 0 | BP26: 0 | BQ26: 0 | BR26: 0 | BS26: 0 | BT26: لغة_إنجليزية_جغرافيا | CM26: 125 | CN26: 40 | CP26: 0 | CQ26: 0 | CR26: 60 | CS26: 183 | CT26: E/ج
A27: =SUBTOTAL(103,$B$22:B27) -> 5 | B27: عبدالباسط التجانى ادم محمد | C27: 8974809 | D27: 53 | E27: 50 | F27: 60 | G27: 51 | H27: 67 | I27: 62 | J27: 50 | K27: 77 | L27: 56 | M27: 50 | X27: C | Y27: C | Z27: C+ | AA27: C | AB27: C+ | AC27: C+ | AD27: C | AE27: B+ | AF27: C | AG27: C | AH27: F | AI27: F | AJ27: F | AK27: F | AL27: F | AM27: F | AN27: F | AO27: F | AP27: F | AQ27: F | AR27: 20 | AS27: 46 | AT27: 2.3 | AV27: نجاح | AY27: نجاح | AZ27: 2 | BA27: 2 | BB27: 2.5 | BC27: 2 | BD27: 2.5 | BE27: 2.5 | BF27: 2 | BG27: 3.5 | BH27: 2 | BI27: 2 | BJ27: 0 | BK27: 0 | BL27: 0 | BM27: 0 | BN27: 0 | BO27: 0 | BP27: 0 | BQ27: 0 | BR27: 0 | BS27: 0 | BT27: لغة_إنجليزية_جغرافيا | CM27: 112 | CN27: 40 | CP27: 0 | CQ27: 0 | CR27: 60 | CS27: 158 | CT27: E/ج
A28: =SUBTOTAL(103,$B$22:B28) -> 6 | B28: عبده موسى داؤد ادسل | C28: 11659710 | D28: 61 | E28: 70 | F28: 49 | G28: 71 | H28: 57 | I28: 72 | J28: 50 | K28: 71 | L28: 49 | M28: 50 | X28: C+ | Y28: B | Z28: C* | AA28: B | AB28: C | AC28: B | AD28: C | AE28: B | AF28: C* | AG28: C | AH28: F | AI28: F | AJ28: F | AK28: F | AL28: F | AM28: F | AN28: F | AO28: F | AP28: F | AQ28: F | AR28: 20 | AS28: 49 | AT28: 2.45 | AV28: نجاح | AY28: ملحق | AZ28: 2.5 | BA28: 3 | BB28: 2 | BC28: 3 | BD28: 2 | BE28: 3 | BF28: 2 | BG28: 3 | BH28: 2 | BI28: 2 | BJ28: 0 | BK28: 0 | BL28: 0 | BM28: 0 | BN28: 0 | BO28: 0 | BP28: 0 | BQ28: 0 | BR28: 0 | BS28: 0 | BT28: لغة_إنجليزية_جغرافيا | CM28: 134 | CN28: 40 | CP28: 0 | CQ28: 0 | CR28: 60 | CS28: 183 | CT28: E/ج
A29: =SUBTOTAL(103,$B$22:B29) -> 7 | B29: حمزة بن عبدالمطلب حسن خليل | C29: 11509810 | D29: 70 | E29: 72 | F29: 0 | G29: 57 | H29: 79 | I29: 72 | J29: 70 | K29: 80 | L29: 82 | M29: 70 | X29: B | Y29: B | Z29: F | AA29: C | AB29: B+ | AC29: B | AD29: B | AE29: A | AF29: A | AG29: B | AH29: F | AI29: F | AJ29: F | AK29: F | AL29: F | AM29: F | AN29: F | AO29: F | AP29: F | AQ29: F | AR29: 20 | AS29: 57 | AT29: 2.85 | AV29: ملحق | AX29: التربية الخاصة/ | AY29: نجاح | AZ29: 3 | BA29: 3 | BB29: 0 | BC29: 2 | BD29: 3.5 | BE29: 3 | BF29: 3 | BG29: 4 | BH29: 4 | BI29: 3 | BJ29: 0 | BK29: 0 | BL29: 0 | BM29: 0 | BN29: 0 | BO29: 0 | BP29: 0 | BQ29: 0 | BR29: 0 | BS29: 0 | BT29: لغة_إنجليزية_جغرافيا | BW29: التربية الخاصة/ | CM29: 92 | CN29: 40 | CP29: 2 | CQ29: 2 | CR29: 60 | CS29: 149 | CT29: E/ج
A30: =SUBTOTAL(103,$B$22:B30) -> 8 | B30: يوسف هساي محمد علي | C30: 310810 | D30: 70 | E30: 68 | F30: 80 | G30: 58 | H30: 56 | I30: 69 | J30: 53 | K30: 66 | L30: 49 | M30: 61 | X30: B | Y30: C+ | Z30: A | AA30: C | AB30: C | AC30: C+ | AD30: C | AE30: C+ | AF30: C* | AG30: C+ | AH30: F | AI30: F | AJ30: F | AK30: F | AL30: F | AM30: F | AN30: F | AO30: F | AP30: F | AQ30: F | AR30: 20 | AS30: 50 | AT30: 2.5 | AV30: نجاح | AY30: ملحق | AZ30: 3 | BA30: 2.5 | BB30: 4 | BC30: 2 | BD30: 2 | BE30: 2.5 | BF30: 2 | BG30: 2.5 | BH30: 2 | BI30: 2.5 | BJ30: 0 | BK30: 0 | BL30: 0 | BM30: 0 | BN30: 0 | BO30: 0 | BP30: 0 | BQ30: 0 | BR30: 0 | BS30: 0 | BT30: لغة_إنجليزية_جغرافيا | CM30: 97 | CN30: 40 | CP30: 0 | CQ30: 0 | CR30: 60 | CS30: 147 | CT30: E/ج
A31: =SUBTOTAL(103,$B$22:B31) -> 9 | B31: يسرى محمد عباس حسن احمد | C31: 11628210 | D31: 72 | E31: 63 | F31: 71 | G31: 56 | H31: 65 | I31: 75 | J31: 72 | K31: 87 | L31: 80 | M31: 74 | X31: B | Y31: C+ | Z31: B | AA31: C | AB31: C+ | AC31: B+ | AD31: B | AE31: A | AF31: A | AG31: B | AH31: F | AI31: F | AJ31: F | AK31: F | AL31: F | AM31: F | AN31: F | AO31: F | AP31: F | AQ31: F | AR31: 20 | AS31: 61 | AT31: 3.05 | AV31: نجاح | AY31: نجاح | AZ31: 3 | BA31: 2.5 | BB31: 3 | BC31: 2 | BD31: 2.5 | BE31: 3.5 | BF31: 3 | BG31: 4 | BH31: 4 | BI31: 3 | BJ31: 0 | BK31: 0 | BL31: 0 | BM31: 0 | BN31: 0 | BO31: 0 | BP31: 0 | BQ31: 0 | BR31: 0 | BS31: 0 | BT31: لغة_إنجليزية_جغرافيا | CM31: 98 | CN31: 40 | CP31: 0 | CQ31: 0 | CR31: 60 | CS31: 159 | CT31: E/ج
A32: =SUBTOTAL(103,$B$22:B32) -> 10 | B32: ايلين حمدنا الله خالد | C32: 4242307 | D32: 50 | E32: 50 | F32: 50 | G32: 63 | H32: 55 | I32: 50 | J32: 50 | K32: 49 | L32: 50 | M32: 50 | X32: C | Y32: C | Z32: C | AA32: C+ | AB32: C | AC32: C | AD32: C | AE32: C* | AF32: C | AG32: C | AH32: F | AI32: F | AJ32: F | AK32: F | AL32: F | AM32: F | AN32: F | AO32: F | AP32: F | AQ32: F | AR32: 20 | AV32: نجاح | AY32: ملحق | AZ32: 2 | BA32: 2 | BB32: 2 | BC32: 2.5 | BD32: 2 | BE32: 2 | BF32: 2 | BG32: 2 | BH32: 2 | BI32: 2 | BJ32: 0 | BK32: 0 | BL32: 0 | BM32: 0 | BN32: 0 | BO32: 0 | BP32: 0 | BQ32: 0 | BR32: 0 | BS32: 0 | BT32: لغة_إنجليزية_جغرافيا | CM32: 92 | CN32: 40 | CP32: 0 | CQ32: 0 | CR32: 60 | CS32: 92 | CT32: E/ج
A33: =SUBTOTAL(103,$B$22:B33) -> 11 | B33: رويدا خليفة الحسين محمد | C33: 5946609 | D33: 65 | E33: 77 | F33: 81 | G33: 62 | H33: 66 | I33: 56 | J33: 60 | K33: 50 | L33: 78 | M33: 61 | X33: C+ | Y33: B+ | Z33: A | AA33: C+ | AB33: C+ | AC33: C | AD33: C+ | AE33: C | AF33: B+ | AG33: C+ | AH33: F | AI33: F | AJ33: F | AK33: F | AL33: F | AM33: F | AN33: F | AO33: F | AP33: F | AQ33: F | AR33: 20 | AV33: نجاح | AY33: نجاح | AZ33: 2.5 | BA33: 3.5 | BB33: 4 | BC33: 2.5 | BD33: 2.5 | BE33: 2 | BF33: 2.5 | BG33: 2 | BH33: 3.5 | BI33: 2.5 | BJ33: 0 | BK33: 0 | BL33: 0 | BM33: 0 | BN33: 0 | BO33: 0 | BP33: 0 | BQ33: 0 | BR33: 0 | BS33: 0 | BT33: لغة_إنجليزية_جغرافيا | CM33: 102 | CN33: 40 | CP33: 0 | CQ33: 0 | CR33: 60 | CS33: 102 | CT33: E/ج
A34: =SUBTOTAL(103,$B$22:B34) -> 12 | B34: توفيق مصطفى حسن ابكر | C34: 709910 | D34: 61 | E34: 72 | F34: 74 | G34: 68 | H34: 66 | I34: 60 | J34: 50 | K34: 58 | L34: 56 | M34: 50 | X34: C+ | Y34: B | Z34: B | AA34: C+ | AB34: C+ | AC34: C+ | AD34: C | AE34: C | AF34: C | AG34: C | AH34: F | AI34: F | AJ34: F | AK34: F | AL34: F | AM34: F | AN34: F | AO34: F | AP34: F | AQ34: F | AR34: 20 | AS34: =IF(ISERROR(IF(SUMPRODUCT(($AZ$22:$BS$22<>0)*($AZ34:$BS34=0)),"",SUMPRODUCT(($AZ$22:$BS$22)*($AZ34:$BS34)))),"",IF(SUMPRODUCT(($AZ$22:$BS$22<>0)*($AZ34:$BS34=0)),"",SUMPRODUCT(($AZ$22:$BS$22)*($AZ34:$BS34)))) -> 48 | AT34: =IF(ISERROR(IF(ISERROR(AS34/AR34),"",AS34/AR34)),"",IF(ISERROR(AS34/AR34),"",AS34/AR34)) -> 2.4 | AV34: نجاح | AY34: نجاح | AZ34: 2.5 | BA34: 3 | BB34: 3 | BC34: 2.5 | BD34: 2.5 | BE34: 2.5 | BF34: 2 | BG34: 2 | BH34: 2 | BI34: 2 | BJ34: 0 | BK34: 0 | BL34: 0 | BM34: 0 | BN34: 0 | BO34: 0 | BP34: 0 | BQ34: 0 | BR34: 0 | BS34: 0 | BT34: لغة_إنجليزية_جغرافيا | CM34: 84 | CN34: 40 | CP34: 0 | CQ34: 0 | CR34: 60 | CS34: 132 | CT34: E/ج
A35: =SUBTOTAL(103,$B$22:B35) -> 13 | B35: امنية احمد خلف الله بخيت | C35: 8335210 | D35: 79 | E35: 64 | F35: 78 | G35: 84 | H35: 80 | I35: 64 | J35: 55 | K35: 73 | L35: 49 | M35: 50 | X35: B+ | Y35: C+ | Z35: B+ | AA35: A | AB35: A | AC35: C+ | AD35: C | AE35: B | AF35: C* | AG35: C | AH35: F | AI35: F | AJ35: F | AK35: F | AL35: F | AM35: F | AN35: F | AO35: F | AP35: F | AQ35: F | AR35: 20 | AV35: نجاح | AY35: ملحق | AZ35: 3.5 | BA35: 2.5 | BB35: 3.5 | BC35: 4 | BD35: 4 | BE35: 2.5 | BF35: 2 | BG35: 3 | BH35: 2 | BI35: 2 | BJ35: 0 | BK35: 0 | BL35: 0 | BM35: 0 | BN35: 0 | BO35: 0 | BP35: 0 | BQ35: 0 | BR35: 0 | BS35: 0 | BT35: لغة_إنجليزية_تاريخ | CM35: 105 | CN35: 40 | CP35: 0 | CQ35: 0 | CR35: 60 | CS35: 105 | CT35: E/ت
A36: =SUBTOTAL(103,$B$22:B36) -> 14 | B36: ادم اسماعيل ابكر اسحق | C36: 12314110 | D36: 85 | E36: 82 | F36: 50 | G36: 74 | H36: 58 | I36: 75 | J36: 50 | K36: 70 | L36: 76 | M36: 70 | X36: A | Y36: A | Z36: C | AA36: B | AB36: C | AC36: B+ | AD36: C | AE36: B | AF36: B+ | AG36: =IF($B36=0,"",IF(M36>100,"-",IF(M36>=80,"A",IF(M36>=75,"B+",IF(M36>=70,"B",IF(M36>=60,"C+",IF(M36>=50,"C",IF(M36>=49,"C*","F")))))))) -> B | AH36: F | AI36: F | AJ36: F | AK36: F | AL36: F | AM36: F | AN36: F | AO36: F | AP36: F | AQ36: F | AR36: 20 | AS36: =IF(ISERROR(IF(SUMPRODUCT(($AZ$22:$BS$22<>0)*($AZ36:$BS36=0)),"",SUMPRODUCT(($AZ$22:$BS$22)*($AZ36:$BS36)))),"",IF(SUMPRODUCT(($AZ$22:$BS$22<>0)*($AZ36:$BS36=0)),"",SUMPRODUCT(($AZ$22:$BS$22)*($AZ36:$BS36)))) -> 60 | AT36: =IF(ISERROR(IF(ISERROR(AS36/AR36),"",AS36/AR36)),"",IF(ISERROR(AS36/AR36),"",AS36/AR36)) -> 3 | AU36: =IF(ISERROR(CS36/CR36),"",CS36/CR36) -> 2.783333333 | AV36: نجاح | AY36: نجاح | AZ36: 4 | BA36: 4 | BB36: 2 | BC36: 3 | BD36: 2 | BE36: 3.5 | BF36: 2 | BG36: 3 | BH36: 3.5 | BI36: =IF(M36>100,"-",IF(M36>=80,4,IF(M36>=75,3.5,IF(M36>=70,3,IF(M36>=60,2.5,IF(M36>=50,2,IF(M36>=49,2,"0"))))))) -> 3 | BJ36: 0 | BK36: 0 | BL36: 0 | BM36: 0 | BN36: 0 | BO36: 0 | BP36: 0 | BQ36: 0 | BR36: 0 | BS36: 0 | BT36: لغة_إنجليزية_تاريخ | CM36: 107 | CN36: 40 | CP36: 0 | CQ36: 0 | CR36: 60 | CS36: 167 | CT36: E/ت
A37: =SUBTOTAL(103,$B$22:B37) -> 15 | B37: فاطمة صالح ابراهيم محمد | C37: 11715910 | D37: 67 | E37: 51 | F37: 69 | G37: 53 | H37: 60 | I37: 59 | J37: 52 | K37: 56 | L37: 60 | M37: 60 | X37: C+ | Y37: C | Z37: C+ | AA37: C | AB37: C+ | AC37: C | AD37: C | AE37: C | AF37: C+ | AG37: C+ | AH37: F | AI37: F | AJ37: F | AK37: F | AL37: F | AM37: F | AN37: F | AO37: F | AP37: F | AQ37: F | AR37: 20 | AS37: 45 | AT37: 2.25 | AU37: 2.9 | AV37: نجاح | AY37: نجاح | AZ37: 2.5 | BA37: 2 | BB37: 2.5 | BC37: 2 | BD37: 2.5 | BE37: 2 | BF37: 2 | BG37: 2 | BH37: 2.5 | BI37: 2.5 | BJ37: 0 | BK37: 0 | BL37: 0 | BM37: 0 | BN37: 0 | BO37: 0 | BP37: 0 | BQ37: 0 | BR37: 0 | BS37: 0 | BT37: لغة_إنجليزية_تاريخ | CM37: 129 | CN37: 40 | CP37: 0 | CQ37: 0 | CR37: 60 | CS37: 174 | CT37: E/ت
A38: =SUBTOTAL(103,$B$22:B38) -> 16 | B38: هبوسيت احمد ادريس محمد علي | C38: 11519210 | D38: 68 | E38: 75 | F38: 74 | G38: 75 | H38: 49 | I38: 80 | J38: 50 | K38: 80 | L38: 81 | M38: 50 | X38: C+ | Y38: B+ | Z38: B | AA38: B+ | AB38: C* | AC38: A | AD38: C | AE38: A | AF38: A | AG38: C | AH38: F | AI38: F | AJ38: F | AK38: F | AL38: F | AM38: F | AN38: F | AO38: F | AP38: F | AQ38: F | AR38: 20 | AS38: 61 | AT38: 3.05 | AU38: 2.85 | AV38: نجاح | AY38: ملحق | AZ38: 2.5 | BA38: 3.5 | BB38: 3 | BC38: 3.5 | BD38: 2 | BE38: 4 | BF38: 2 | BG38: 4 | BH38: 4 | BI38: 2 | BJ38: 0 | BK38: 0 | BL38: 0 | BM38: 0 | BN38: 0 | BO38: 0 | BP38: 0 | BQ38: 0 | BR38: 0 | BS38: 0 | BT38: لغة_إنجليزية_تاريخ | CL38: =IF(AND(U38<CL$22,$B38>0),CL$21,"") ->  | CM38: 110 | CN38: 40 | CP38: 0 | CQ38: 0 | CR38: 60 | CS38: 171 | CT38: E/ت
A39: =SUBTOTAL(103,$B$22:B39) -> 17 | B39: هديل حمزة عبدالعظيم حمزة | C39: 12788010 | D39: 82 | E39: 77 | F39: 85 | G39: 58 | H39: 82 | I39: 65 | J39: 60 | K39: 65 | L39: 80 | M39: 63 | X39: A | Y39: B+ | Z39: A | AA39: C | AB39: A | AC39: C+ | AD39: C+ | AE39: C+ | AF39: A | AG39: C+ | AH39: F | AI39: F | AJ39: F | AK39: F | AL39: F | AM39: F | AN39: F | AO39: F | AP39: F | AQ39: F | AR39: 20 | AS39: 63 | AT39: 3.15 | AU39: 3.316666667 | AV39: نجاح | AY39: نجاح | AZ39: 4 | BA39: 3.5 | BB39: 4 | BC39: 2 | BD39: 4 | BE39: 2.5 | BF39: 2.5 | BG39: 2.5 | BH39: 4 | BI39: 2.5 | BJ39: 0 | BK39: 0 | BL39: 0 | BM39: 0 | BN39: 0 | BO39: 0 | BP39: 0 | BQ39: 0 | BR39: 0 | BS39: 0 | BT39: لغة_إنجليزية_تاريخ | CM39: 136 | CN39: 40 | CP39: 0 | CQ39: 0 | CR39: 60 | CS39: 199 | CT39: E/ت
A40: =SUBTOTAL(103,$B$22:B40) -> 18 | B40: سيدة احمد محمد الحاج | C40: 11488910 | D40: 60 | E40: 66 | F40: 79 | G40: 51 | H40: 59 | I40: 57 | J40: 50 | K40: 60 | L40: 50 | M40: 50 | X40: C+ | Y40: C+ | Z40: B+ | AA40: C | AB40: C | AC40: C | AD40: C | AE40: C+ | AF40: C | AG40: C | AH40: F | AI40: F | AJ40: F | AK40: F | AL40: F | AM40: F | AN40: F | AO40: F | AP40: F | AQ40: F | AR40: 20 | AS40: 46 | AT40: 2.3 | AU40: 2.616666667 | AV40: نجاح | AY40: نجاح | AZ40: 2.5 | BA40: 2.5 | BB40: 3.5 | BC40: 2 | BD40: 2 | BE40: 2 | BF40: 2 | BG40: 2.5 | BH40: 2 | BI40: 2 | BJ40: 0 | BK40: 0 | BL40: 0 | BM40: 0 | BN40: 0 | BO40: 0 | BP40: 0 | BQ40: 0 | BR40: 0 | BS40: 0 | BT40: لغة_إنجليزية_تاريخ | CM40: 111 | CN40: 40 | CP40: 0 | CQ40: 0 | CR40: 60 | CS40: 157 | CT40: E/ت
A41: =SUBTOTAL(103,$B$22:B41) -> 19 | B41: محمد الخاتم حمدان محمد حماد | C41: 5705710 | D41: 76 | E41: 78 | F41: 69 | G41: 75 | H41: 68 | I41: 61 | J41: 50 | K41: 60 | L41: 73 | M41: 50 | X41: B+ | Y41: B+ | Z41: C+ | AA41: B+ | AB41: C+ | AC41: C+ | AD41: C | AE41: C+ | AF41: B | AG41: C | AH41: F | AI41: F | AJ41: F | AK41: F | AL41: F | AM41: F | AN41: F | AO41: F | AP41: F | AQ41: F | AR41: 20 | AS41: 55 | AT41: 2.75 | AU41: 2.483333333 | AV41: نجاح | AY41: نجاح | AZ41: 3.5 | BA41: 3.5 | BB41: 2.5 | BC41: 3.5 | BD41: 2.5 | BE41: 2.5 | BF41: 2 | BG41: 2.5 | BH41: 3 | BI41: 2 | BJ41: 0 | BK41: 0 | BL41: 0 | BM41: 0 | BN41: 0 | BO41: 0 | BP41: 0 | BQ41: 0 | BR41: 0 | BS41: 0 | BT41: لغة_إنجليزية_تاريخ | CM41: 94 | CN41: 40 | CP41: 0 | CQ41: 0 | CR41: 60 | CS41: 149
A42: =SUBTOTAL(103,$B$22:B42) -> 20 | B42: صديق حسين عمر عبيد | C42: 3934410 | D42: 65 | E42: 67 | F42: 72 | G42: 68 | H42: 68 | I42: 63 | J42: 50 | K42: 74 | L42: 64 | M42: 66 | X42: C+ | Y42: C+ | Z42: B | AA42: C+ | AB42: C+ | AC42: C+ | AD42: C | AE42: B | AF42: C+ | AG42: C+ | AH42: F | AI42: F | AJ42: F | AK42: F | AL42: F | AM42: F | AN42: F | AO42: F | AP42: F | AQ42: F | AR42: 20 | AS42: 51 | AT42: 2.55 | AU42: 2.6 | AV42: نجاح | AY42: نجاح | AZ42: 2.5 | BA42: 2.5 | BB42: 3 | BC42: 2.5 | BD42: 2.5 | BE42: 2.5 | BF42: 2 | BG42: 3 | BH42: 2.5 | BI42: 2.5 | BJ42: 0 | BK42: 0 | BL42: 0 | BM42: 0 | BN42: 0 | BO42: 0 | BP42: 0 | BQ42: 0 | BR42: 0 | BS42: 0 | BT42: لغة_إنجليزية_تاريخ | CM42: 105 | CN42: 40 | CP42: 0 | CQ42: 0 | CR42: 60 | CS42: 156 | CT42: E/ت
A43: =SUBTOTAL(103,$B$22:B43) -> 21 | B43: خالد عبدالقادر محمود طاهر | C43: 9795010 | D43: 56 | E43: 73 | F43: 79 | G43: 51 | H43: 68 | I43: 60 | J43: 53 | K43: 78 | L43: 71 | M43: 65 | X43: C | Y43: B | Z43: B+ | AA43: C | AB43: C+ | AC43: C+ | AD43: C | AE43: B+ | AF43: B | AG43: C+ | AH43: F | AI43: F | AJ43: F | AK43: F | AL43: F | AM43: F | AN43: F | AO43: F | AP43: F | AQ43: F | AR43: 20 | AS43: 53 | AT43: 2.65 | AU43: 2.85 | AV43: نجاح | AY43: نجاح | AZ43: 2 | BA43: 3 | BB43: 3.5 | BC43: 2 | BD43: 2.5 | BE43: 2.5 | BF43: 2 | BG43: 3.5 | BH43: 3 | BI43: 2.5 | BJ43: 0 | BK43: 0 | BL43: 0 | BM43: 0 | BN43: 0 | BO43: 0 | BP43: 0 | BQ43: 0 | BR43: 0 | BS43: 0 | BT43: لغة_إنجليزية_تاريخ | CM43: 118 | CN43: 40 | CP43: 0 | CQ43: 0 | CR43: 60 | CS43: 171 | CT43: E/ت
A44: =SUBTOTAL(103,$B$22:B44) -> 22 | B44: عبدالعظيم عبدالسلام عبدالعظيم ميرغني | C44: 9223410 | D44: 66 | E44: 57 | F44: 69 | G44: 62 | H44: 59 | I44: 60 | J44: 50 | K44: 81 | L44: 50 | M44: 52 | X44: C+ | Y44: C | Z44: C+ | AA44: C+ | AB44: C | AC44: C+ | AD44: C | AE44: A | AF44: C | AG44: C | AH44: F | AI44: F | AJ44: F | AK44: F | AL44: F | AM44: F | AN44: F | AO44: F | AP44: F | AQ44: F | AR44: 20 | AU44: 1.583333333 | AV44: نجاح | AY44: نجاح | AZ44: 2.5 | BA44: 2 | BB44: 2.5 | BC44: 2.5 | BD44: 2 | BE44: 2.5 | BF44: 2 | BG44: 4 | BH44: 2 | BI44: 2 | BJ44: 0 | BK44: 0 | BL44: 0 | BM44: 0 | BN44: 0 | BO44: 0 | BP44: 0 | BQ44: 0 | BR44: 0 | BS44: 0 | BT44: لغة_إنجليزية_تاريخ | CM44: 95 | CN44: 40 | CP44: 0 | CQ44: 0 | CR44: 60 | CS44: 95 | CT44: E/ت
A45: =SUBTOTAL(103,$B$22:B45) -> 23 | B45: اسماء حسين محمد ابوبكر | C45: 116188010 | D45: 55 | E45: 65 | F45: 76 | G45: 55 | H45: 50 | I45: 63 | J45: 64 | K45: 49 | L45: 54 | M45: 51 | X45: C | Y45: C+ | Z45: B+ | AA45: C | AB45: C | AC45: C+ | AD45: C+ | AE45: C* | AF45: C | AG45: C | AH45: F | AI45: F | AJ45: F | AK45: F | AL45: F | AM45: F | AN45: F | AO45: F | AP45: F | AQ45: F | AR45: 20 | AU45: 1.666666667 | AV45: نجاح | AY45: ملحق | AZ45: 2 | BA45: 2.5 | BB45: 3.5 | BC45: 2 | BD45: 2 | BE45: 2.5 | BF45: 2.5 | BG45: 2 | BH45: 2 | BI45: 2 | BJ45: 0 | BK45: 0 | BL45: 0 | BM45: 0 | BN45: 0 | BO45: 0 | BP45: 0 | BQ45: 0 | BR45: 0 | BS45: 0 | BT45: لغة_إنجليزية_تاريخ | CM45: 100 | CN45: 40 | CP45: 0 | CQ45: 0 | CR45: 60 | CS45: 100 | CT45: E/ت
A46: =SUBTOTAL(103,$B$22:B46) -> 24 | B46: رشا محمد احمد محمد | C46: 12831210 | D46: 55 | E46: 67 | F46: 64 | G46: 52 | H46: 83 | I46: 67 | J46: 50 | K46: 67 | L46: 51 | M46: 49 | X46: C | Y46: C+ | Z46: C+ | AA46: C | AB46: A | AC46: C+ | AD46: C | AE46: C+ | AF46: C | AG46: C* | AH46: F | AI46: F | AJ46: F | AK46: F | AL46: F | AM46: F | AN46: F | AO46: F | AP46: F | AQ46: F | AR46: 20 | AS46: =IF(ISERROR(IF(SUMPRODUCT(($AZ$22:$BS$22<>0)*($AZ46:$BS46=0)),"",SUMPRODUCT(($AZ$22:$BS$22)*($AZ46:$BS46)))),"",IF(SUMPRODUCT(($AZ$22:$BS$22<>0)*($AZ46:$BS46=0)),"",SUMPRODUCT(($AZ$22:$BS$22)*($AZ46:$BS46)))) -> 48 | AT46: =IF(ISERROR(IF(ISERROR(AS46/AR46),"",AS46/AR46)),"",IF(ISERROR(AS46/AR46),"",AS46/AR46)) -> 2.4 | AU46: 2.566666667 | AV46: نجاح | AY46: ملحق | AZ46: 2 | BA46: 2.5 | BB46: 2.5 | BC46: 2 | BD46: 4 | BE46: 2.5 | BF46: 2 | BG46: 2.5 | BH46: 2 | BI46: 2 | BJ46: 0 | BK46: 0 | BL46: 0 | BM46: 0 | BN46: 0 | BO46: 0 | BP46: 0 | BQ46: 0 | BR46: 0 | BS46: 0 | BT46: لغة_إنجليزية_تاريخ | CM46: 106 | CN46: 40 | CP46: 0 | CQ46: 0 | CR46: 60 | CS46: 154 | CT46: E/ت
A47: =SUBTOTAL(103,$B$22:B47) -> 25 | B47: زينب منصور ميكائيل سعيد | C47: 11439510 | D47: 95 | E47: 85 | F47: 94 | G47: 68 | H47: 83 | I47: 67 | J47: 55 | K47: 84 | L47: 83 | M47: 77 | X47: A | Y47: A | Z47: A | AA47: C+ | AB47: A | AC47: C+ | AD47: C | AE47: A | AF47: A | AG47: B+ | AH47: F | AI47: F | AJ47: F | AK47: F | AL47: F | AM47: F | AN47: F | AO47: F | AP47: F | AQ47: F | AR47: 20 | AS47: =IF(ISERROR(IF(SUMPRODUCT(($AZ$22:$BS$22<>0)*($AZ47:$BS47=0)),"",SUMPRODUCT(($AZ$22:$BS$22)*($AZ47:$BS47)))),"",IF(SUMPRODUCT(($AZ$22:$BS$22<>0)*($AZ47:$BS47=0)),"",SUMPRODUCT(($AZ$22:$BS$22)*($AZ47:$BS47)))) -> 69 | AT47: =IF(ISERROR(IF(ISERROR(AS47/AR47),"",AS47/AR47)),"",IF(ISERROR(AS47/AR47),"",AS47/AR47)) -> 3.45 | AU47: 3.083333333 | AV47: نجاح | AY47: نجاح | AZ47: 4 | BA47: 4 | BB47: 4 | BC47: 2.5 | BD47: 4 | BE47: 2.5 | BF47: 2 | BG47: 4 | BH47: 4 | BI47: 3.5 | BJ47: 0 | BK47: 0 | BL47: 0 | BM47: 0 | BN47: 0 | BO47: 0 | BP47: 0 | BQ47: 0 | BR47: 0 | BS47: 0 | BT47: لغة_إنجليزية_تاريخ | CM47: 116 | CN47: 40 | CP47: 0 | CQ47: 0 | CR47: 60 | CS47: 185 | CT47: E/ت
A48: =SUBTOTAL(103,$B$22:B48) -> 26 | B48: ملاك عبدالله عثمان آدم | C48: 9301509 | D48: 50 | E48: 75 | F48: 52 | G48: 51 | H48: 78 | I48: 49 | J48: 49 | K48: 50 | L48: 50 | M48: 49 | X48: C | Y48: B+ | Z48: C | AA48: C | AB48: B+ | AC48: C* | AD48: C* | AE48: C | AF48: C | AG48: C* | AH48: F | AI48: F | AJ48: F | AK48: F | AL48: F | AM48: F | AN48: F | AO48: F | AP48: F | AQ48: F | AR48: 20 | AS48: =IF(ISERROR(IF(SUMPRODUCT(($AZ$22:$BS$22<>0)*($AZ48:$BS48=0)),"",SUMPRODUCT(($AZ$22:$BS$22)*($AZ48:$BS48)))),"",IF(SUMPRODUCT(($AZ$22:$BS$22<>0)*($AZ48:$BS48=0)),"",SUMPRODUCT(($AZ$22:$BS$22)*($AZ48:$BS48)))) -> 46 | AT48: =IF(ISERROR(IF(ISERROR(AS48/AR48),"",AS48/AR48)),"",IF(ISERROR(AS48/AR48),"",AS48/AR48)) -> 2.3 | AU48: 2.433333333 | AV48: نجاح | AY48: ملحق | AZ48: 2 | BA48: 3.5 | BB48: 2 | BC48: 2 | BD48: 3.5 | BE48: 2 | BF48: 2 | BG48: 2 | BH48: 2 | BI48: 2 | BJ48: 0 | BK48: 0 | BL48: 0 | BM48: 0 | BN48: 0 | BO48: 0 | BP48: 0 | BQ48: 0 | BR48: 0 | BS48: 0 | BT48: لغة_إنجليزية_تاريخ | CM48: 100 | CN48: 40 | CP48: 0 | CQ48: 0 | CR48: 60 | CS48: 146 | CT48: E/ت
A49: =SUBTOTAL(103,$B$22:B49) -> 27 | B49: على موسى عثمان | C49: 2684808 | D49: 50 | E49: 55 | F49: 50 | G49: 56 | H49: 38 | I49: 50 | J49: 50 | K49: 37 | L49: 53 | M49: 50 | X49: C | Y49: C | Z49: C | AA49: C | AB49: F | AC49: C | AD49: C | AE49: F | AF49: C | AG49: C | AH49: F | AI49: F | AJ49: F | AK49: F | AL49: F | AM49: F | AN49: F | AO49: F | AP49: F | AQ49: F | AR49: 20 | AS49: =IF(ISERROR(IF(SUMPRODUCT(($AZ$22:$BS$22<>0)*($AZ49:$BS49=0)),"",SUMPRODUCT(($AZ$22:$BS$22)*($AZ49:$BS49)))),"",IF(SUMPRODUCT(($AZ$22:$BS$22<>0)*($AZ49:$BS49=0)),"",SUMPRODUCT(($AZ$22:$BS$22)*($AZ49:$BS49)))) -> 32 | AT49: =IF(ISERROR(IF(ISERROR(AS49/AR49),"",AS49/AR49)),"",IF(ISERROR(AS49/AR49),"",AS49/AR49)) -> 1.6 | AU49: 2.633333333 | AV49: ملحق | AX49: مهارات تفكير/ Res. Proj./ | AY49: اعادة | AZ49: 2 | BA49: 2 | BB49: 2 | BC49: 2 | BD49: 0 | BE49: 2 | BF49: 2 | BG49: 0 | BH49: 2 | BI49: 2 | BJ49: 0 | BK49: 0 | BL49: 0 | BM49: 0 | BN49: 0 | BO49: 0 | BP49: 0 | BQ49: 0 | BR49: 0 | BS49: 0 | BT49: لغة_إنجليزية_تاريخ | BY49: مهارات تفكير/ | CB49: Res. Proj./ | CM49: 126 | CN49: 40 | CP49: 4 | CQ49: 4 | CR49: 60 | CS49: 158 | CT49: E/ت
A50: =SUBTOTAL(103,$B$22:B50) -> 28 | B50: سمية محمود عثمان محمد | C50: 819209 | D50: 70 | E50: 52 | F50: 52 | G50: 0 | H50: 0 | I50: 50 | J50: 0 | K50: 49 | L50: 53 | M50: 50 | X50: B | Y50: C | Z50: C | AA50: F | AB50: F | AC50: C | AD50: F | AE50: C* | AF50: C | AG50: C | AH50: F | AI50: F | AJ50: F | AK50: F | AL50: F | AM50: F | AN50: F | AO50: F | AP50: F | AQ50: F | AR50: 20 | AS50: =IF(ISERROR(IF(SUMPRODUCT(($AZ$22:$BS$22<>0)*($AZ50:$BS50=0)),"",SUMPRODUCT(($AZ$22:$BS$22)*($AZ50:$BS50)))),"",IF(SUMPRODUCT(($AZ$22:$BS$22<>0)*($AZ50:$BS50=0)),"",SUMPRODUCT(($AZ$22:$BS$22)*($AZ50:$BS50)))) -> 30 | AT50: =IF(ISERROR(IF(ISERROR(AS50/AR50),"",AS50/AR50)),"",IF(ISERROR(AS50/AR50),"",AS50/AR50)) -> 1.5 | AU50: 2.7 | AV50: ملحق | AX50: طرق تدريس الحلقة الاولى/ مهارات تفكير/ Eng. Trad. Gr./ | AY50: ملحق | AZ50: 3 | BA50: 2 | BB50: 2 | BC50: 0 | BD50: 0 | BE50: 2 | BF50: 0 | BG50: 2 | BH50: 2 | BI50: 2 | BJ50: 0 | BK50: 0 | BL50: 0 | BM50: 0 | BN50: 0 | BO50: 0 | BP50: 0 | BQ50: 0 | BR50: 0 | BS50: 0 | BT50: لغة_إنجليزية_تاريخ | BX50: طرق تدريس الحلقة الاولى/ | BY50: مهارات تفكير/ | CA50: Eng. Trad. Gr./ | CM50: 132 | CN50: 40 | CP50: 6 | CQ50: 6 | CR50: 60 | CS50: 162 | CT50: E/ت
A51: =SUBTOTAL(103,$B$22:B51) -> 29 | B51: فاطمه عثمان عبدالمنطلب | C51: 531007 | D51: 20 | E51: 41 | F51: 50 | G51: 0 | H51: 0 | I51: 54 | J51: 25 | K51: 0 | L51: 0 | M51: 50 | X51: F | Y51: F | Z51: C | AA51: F | AB51: F | AC51: C | AD51: F | AE51: F | AF51: F | AG51: C | AH51: F | AI51: F | AJ51: F | AK51: F | AL51: F | AM51: F | AN51: F | AO51: F | AP51: F | AQ51: F | AR51: 20 | AU51: 1.866666667 | AV51: فصل | AX51: جغرافية المناخ/ جغرافية سياسية/ طرق تدريس الحلقة الاولى/ مهارات تفكير/ Eng. Trad. Gr./ Res. Proj./ Introduction to Lt./ | AY51: فصل | AZ51: 0 | BA51: 0 | BB51: 2 | BC51: 0 | BD51: 0 | BE51: 2 | BF51: 0 | BG51: 0 | BH51: 0 | BI51: 2 | BJ51: 0 | BK51: 0 | BL51: 0 | BM51: 0 | BN51: 0 | BO51: 0 | BP51: 0 | BQ51: 0 | BR51: 0 | BS51: 0 | BT51: لغة_إنجليزية_تاريخ | BU51: جغرافية المناخ/ | BV51: جغرافية سياسية/ | BX51: طرق تدريس الحلقة الاولى/ | BY51: مهارات تفكير/ | CA51: Eng. Trad. Gr./ | CB51: Res. Proj./ | CC51: Introduction to Lt./ | CM51: 112 | CN51: 40 | CP51: 14 | CQ51: 14 | CR51: 60 | CS51: 112 | CT51: E/ت
A52: =SUBTOTAL(103,$B$22:B52) -> 30 | B52: حفصة حسن عثمان ارباب | C52: 48947008 | D52: 61 | E52: 79 | F52: 93 | G52: 76 | H52: 56 | I52: 61 | J52: 64 | K52: 61 | L52: 50 | M52: 57 | X52: C+ | Y52: B+ | Z52: A | AA52: B+ | AB52: C | AC52: C+ | AD52: C+ | AE52: C+ | AF52: C | AG52: C | AH52: F | AI52: F | AJ52: F | AK52: F | AL52: F | AM52: F | AN52: F | AO52: F | AP52: F | AQ52: F | AR52: 20 | AS52: =IF(ISERROR(IF(SUMPRODUCT(($AZ$22:$BS$22<>0)*($AZ52:$BS52=0)),"",SUMPRODUCT(($AZ$22:$BS$22)*($AZ52:$BS52)))),"",IF(SUMPRODUCT(($AZ$22:$BS$22<>0)*($AZ52:$BS52=0)),"",SUMPRODUCT(($AZ$22:$BS$22)*($AZ52:$BS52)))) -> 54 | AT52: =IF(ISERROR(IF(ISERROR(AS52/AR52),"",AS52/AR52)),"",IF(ISERROR(AS52/AR52),"",AS52/AR52)) -> 2.7 | AU52: 2.683333333 | AV52: نجاح | AY52: ملحق | AZ52: 2.5 | BA52: 3.5 | BB52: 4 | BC52: 3.5 | BD52: 2 | BE52: 2.5 | BF52: 2.5 | BG52: 2.5 | BH52: 2 | BI52: 2 | BJ52: 0 | BK52: 0 | BL52: 0 | BM52: 0 | BN52: 0 | BO52: 0 | BP52: 0 | BQ52: 0 | BR52: 0 | BS52: 0 | BT52: لغة_إنجليزية_رياض_أطفال | CM52: 107 | CN52: 40 | CP52: 0 | CQ52: 0 | CR52: 60 | CS52: 161 | CT52: E/ط
A53: =SUBTOTAL(103,$B$22:B53) -> 31 | B53: امونه كمال مامون ابوسفيان | C53: 11735010 | D53: 62 | E53: 79 | F53: 65 | G53: 58 | H53: 56 | I53: 56 | J53: 51 | K53: 65 | L53: 50 | M53: 49 | X53: C+ | Y53: B+ | Z53: C+ | AA53: C | AB53: C | AC53: C | AD53: C | AE53: C+ | AF53: C | AG53: C* | AH53: F | AI53: F | AJ53: F | AK53: F | AL53: F | AM53: F | AN53: F | AO53: F | AP53: F | AQ53: F | AR53: 20 | AU53: 1.866666667 | AV53: نجاح | AY53: ملحق | AZ53: 2.5 | BA53: 3.5 | BB53: 2.5 | BC53: 2 | BD53: 2 | BE53: 2 | BF53: 2 | BG53: 2.5 | BH53: 2 | BI53: 2 | BJ53: 0 | BK53: 0 | BL53: 0 | BM53: 0 | BN53: 0 | BO53: 0 | BP53: 0 | BQ53: 0 | BR53: 0 | BS53: 0 | BT53: لغة_إنجليزية_رياض_أطفال | CM53: 112 | CN53: 40 | CP53: 0 | CQ53: 0 | CR53: 60 | CS53: 112 | CT53: E/ط
A54: =SUBTOTAL(103,$B$22:B54) -> 32 | B54: رحمة عبدالقادر عبدالله محمد | C54: 2838310 | D54: 66 | E54: 81 | F54: 61 | G54: 75 | H54: 69 | I54: 84 | J54: 50 | K54: 57 | L54: 49 | M54: 50 | X54: C+ | Y54: A | Z54: C+ | AA54: B+ | AB54: C+ | AC54: A | AD54: C | AE54: C | AF54: C* | AG54: C | AH54: F | AI54: F | AJ54: F | AK54: F | AL54: F | AM54: F | AN54: F | AO54: F | AP54: F | AQ54: F | AR54: 20 | AU54: 0 | AV54: نجاح | AY54: ملحق | AZ54: 2.5 | BA54: 4 | BB54: 2.5 | BC54: 3.5 | BD54: 2.5 | BE54: 4 | BF54: 2 | BG54: 2 | BH54: 2 | BI54: 2 | BJ54: 0 | BK54: 0 | BL54: 0 | BM54: 0 | BN54: 0 | BO54: 0 | BP54: 0 | BQ54: 0 | BR54: 0 | BS54: 0 | BT54: لغة_إنجليزية_رياض_أطفال | BV54: =IF(AND(E54<BV$22,$B54>0),BV$21,"") ->  | CN54: 40 | CP54: 0 | CQ54: 0 | CR54: 60 | CS54: 0 | CT54: E/ط
A55: =SUBTOTAL(103,$B$22:B55) -> 33 | B55: امنة على مجذوب بلال | C55: 11558910 | D55: 57 | E55: 73 | F55: 71 | G55: 68 | H55: 80 | I55: 64 | J55: 49 | K55: 54 | L55: 49 | M55: 61 | X55: C | Y55: B | Z55: B | AA55: C+ | AB55: A | AC55: C+ | AD55: C* | AE55: C | AF55: C* | AG55: C+ | AH55: F | AI55: F | AJ55: F | AK55: F | AL55: F | AM55: F | AN55: F | AO55: F | AP55: F | AQ55: F | AR55: 20 | AS55: =IF(ISERROR(IF(SUMPRODUCT(($AZ$22:$BS$22<>0)*($AZ55:$BS55=0)),"",SUMPRODUCT(($AZ$22:$BS$22)*($AZ55:$BS55)))),"",IF(SUMPRODUCT(($AZ$22:$BS$22<>0)*($AZ55:$BS55=0)),"",SUMPRODUCT(($AZ$22:$BS$22)*($AZ55:$BS55)))) -> 51 | AT55: =IF(ISERROR(IF(ISERROR(AS55/AR55),"",AS55/AR55)),"",IF(ISERROR(AS55/AR55),"",AS55/AR55)) -> 2.55 | AU55: 2.683333333 | AV55: نجاح | AY55: ملحق | AZ55: 2 | BA55: 3 | BB55: 3 | BC55: 2.5 | BD55: 4 | BE55: 2.5 | BF55: 2 | BG55: 2 | BH55: 2 | BI55: 2.5 | BJ55: 0 | BK55: 0 | BL55: 0 | BM55: 0 | BN55: 0 | BO55: 0 | BP55: 0 | BQ55: 0 | BR55: 0 | BS55: 0 | BT55: لغة_إنجليزية_رياض_أطفال | CM55: 110 | CN55: 40 | CP55: 0 | CQ55: 0 | CR55: 60 | CS55: 161 | CT55: E/ط
A56: =SUBTOTAL(103,$B$22:B56) -> 34 | B56: فاطمة آدم اسماعيل احمد | C56: 11705810 | D56: 50 | E56: 62 | F56: 50 | G56: 57 | H56: 59 | I56: 49 | J56: 50 | K56: 49 | L56: 49 | M56: 50 | X56: C | Y56: C+ | Z56: C | AA56: C | AB56: C | AC56: C* | AD56: C | AE56: C* | AF56: C* | AG56: C | AH56: F | AI56: F | AJ56: F | AK56: F | AL56: F | AM56: F | AN56: F | AO56: F | AP56: F | AQ56: F | AR56: 20 | AU56: 2 | AV56: نجاح | AY56: ملحق | AZ56: 2 | BA56: 2.5 | BB56: 2 | BC56: 2 | BD56: 2 | BE56: 2 | BF56: 2 | BG56: 2 | BH56: 2 | BI56: 2 | BJ56: 0 | BK56: 0 | BL56: 0 | BM56: 0 | BN56: 0 | BO56: 0 | BP56: 0 | BQ56: 0 | BR56: 0 | BS56: 0 | BT56: لغة_إنجليزية_رياض_أطفال | CM56: 120 | CN56: 40 | CP56: 0 | CQ56: 0 | CR56: 60 | CS56: 120 | CT56: E/ط
A57: =SUBTOTAL(103,$B$22:B57) -> 35 | B57: اسماء احمد حسن حساب | C57: 2837910 | D57: 53 | E57: 64 | F57: 52 | G57: 51 | H57: 58 | I57: 58 | J57: 49 | K57: 50 | L57: 49 | M57: 49 | X57: C | Y57: C+ | Z57: C | AA57: C | AB57: C | AC57: C | AD57: C* | AE57: C | AF57: C* | AG57: C* | AH57: F | AI57: F | AJ57: F | AK57: F | AL57: F | AM57: F | AN57: F | AO57: F | AP57: F | AQ57: F | AR57: 20 | AU57: 1.533333333 | AV57: نجاح | AY57: ملحق | AZ57: 2 | BA57: 2.5 | BB57: 2 | BC57: 2 | BD57: 2 | BE57: 2 | BF57: 2 | BG57: 2 | BH57: 2 | BI57: 2 | BJ57: 0 | BK57: 0 | BL57: 0 | BM57: 0 | BN57: 0 | BO57: 0 | BP57: 0 | BQ57: 0 | BR57: 0 | BS57: 0 | BT57: رياضيات_رياض_أطفال | CM57: 92 | CN57: 40 | CP57: 0 | CQ57: 0 | CR57: 60 | CS57: 92 | CT57: ر/ط
A58: =SUBTOTAL(103,$B$22:B58) -> 36 | B58: نفيسه عبد الفتاج ابراهيم عبد الله | C58: 12724910 | D58: 77 | E58: 71 | F58: 64 | G58: 50 | H58: 75 | I58: 81 | J58: 51 | K58: 63 | L58: 76 | M58: 53 | X58: B+ | Y58: B | Z58: C+ | AA58: C | AB58: B+ | AC58: A | AD58: C | AE58: C+ | AF58: B+ | AG58: C | AH58: F | AI58: F | AJ58: F | AK58: F | AL58: F | AM58: F | AN58: F | AO58: F | AP58: F | AQ58: F | AR58: 20 | AS58: =IF(ISERROR(IF(SUMPRODUCT(($AZ$22:$BS$22<>0)*($AZ58:$BS58=0)),"",SUMPRODUCT(($AZ$22:$BS$22)*($AZ58:$BS58)))),"",IF(SUMPRODUCT(($AZ$22:$BS$22<>0)*($AZ58:$BS58=0)),"",SUMPRODUCT(($AZ$22:$BS$22)*($AZ58:$BS58)))) -> 57 | AT58: =IF(ISERROR(IF(ISERROR(AS58/AR58),"",AS58/AR58)),"",IF(ISERROR(AS58/AR58),"",AS58/AR58)) -> 2.85 | AU58: 2.716666667 | AV58: نجاح | AY58: نجاح | AZ58: 3.5 | BA58: 3 | BB58: 2.5 | BC58: 2 | BD58: 3.5 | BE58: 4 | BF58: 2 | BG58: 2.5 | BH58: 3.5 | BI58: 2 | BJ58: 0 | BK58: 0 | BL58: 0 | BM58: 0 | BN58: 0 | BO58: 0 | BP58: 0 | BQ58: 0 | BR58: 0 | BS58: 0 | BT58: رياضيات_رياض_أطفال | CM58: 106 | CN58: 40 | CP58: 0 | CQ58: 0 | CR58: 60 | CS58: 163 | CT58: ر/ط
A59: =SUBTOTAL(103,$B$22:B59) -> 37 | B59: حوريه ايوب موسى ايوب | C59: 23292910 | D59: 67 | E59: 77 | F59: 72 | G59: 75 | H59: 78 | I59: 66 | J59: 59 | K59: 59 | L59: 82 | M59: 50 | X59: C+ | Y59: B+ | Z59: B | AA59: B+ | AB59: B+ | AC59: C+ | AD59: C | AE59: C | AF59: A | AG59: C | AH59: F | AI59: F | AJ59: F | AK59: F | AL59: F | AM59: F | AN59: F | AO59: F | AP59: =IF($B59=0,"",IF(V59>100,"-",IF(V59>=80,"A",IF(V59>=75,"B+",IF(V59>=70,"B",IF(V59>=60,"C+",IF(V59>=50,"C",IF(V59>=49,"C*","F")))))))) -> F | AQ59: F | AR59: =IF(AND($AR$22>0,B59>0),$AR$22,"") -> 20 | AU59: 1.55 | AV59: =IF(CP59=0,"نجاح",IF(CP59="-","",IF(CP59<=$CO$22,"ملحق",IF(CP59<=$CQ$21,"إعادة",IF(CP59>$CP$21,"فصل"))))) -> نجاح | AY59: نجاح | AZ59: 2.5 | BA59: 3.5 | BB59: 3 | BC59: 3.5 | BD59: 3.5 | BE59: 2.5 | BF59: 2 | BG59: 2 | BH59: 4 | BI59: 2 | BJ59: 0 | BK59: 0 | BL59: 0 | BM59: 0 | BN59: 0 | BO59: 0 | BP59: 0 | BQ59: 0 | BR59: =IF(V59>100,"-",IF(V59>=80,4,IF(V59>=75,3.5,IF(V59>=70,3,IF(V59>=60,2.5,IF(V59>=50,2,IF(V59>=49,2,"0"))))))) -> 0 | BS59: 0 | BT59: رياضيات_رياض_أطفال | BU59: =IF(AND(D59<BU$22,B59>0),BU$21,"") ->  | CM59: 93 | CN59: 40 | CP59: =IF(AND(B59>0,CQ59>=0),CQ59,"-") -> 0 | CQ59: =SUMIF(AZ59:BS59,0,$AZ$22:$BS$22) -> 0 | CR59: 60 | CS59: 93 | CT59: =CONCATENATE(IF(BT59=$CO$1,"عام",""),IF(BT59=$CO$2,"ع/س",""),IF(BT59=$CO$3,"ع/ج",""), IF(BT59=$CO$4,"ع/ت",""),IF(BT59=$CO$5,"ع/ط",""),IF(BT59=$CO$6,"E/ت",""),IF(BT59=$CO$7,"E/ج",""), IF(BT59=$CO$8,"E/ط",""),IF(BT59=$CO$9,"ر/م",""),IF(BT59=$CO$10,"ر/ط","")) -> ر/ط
A60: =SUBTOTAL(103,$B$22:B60) -> 38 | B60: مشيرة زكريا عيسى عبدالله | C60: 12637610 | D60: 71 | E60: 73 | F60: 84 | G60: 65 | H60: 80 | I60: 84 | J60: 50 | K60: 60 | L60: 49 | M60: 50 | X60: B | Y60: B | Z60: A | AA60: C+ | AB60: A | AC60: A | AD60: C | AE60: C+ | AF60: C* | AG60: C | AH60: F | AI60: F | AJ60: F | AK60: F | AL60: F | AM60: F | AN60: =IF($B60=0,"",IF(T60>100,"-",IF(T60>=80,"A",IF(T60>=75,"B+",IF(T60>=70,"B",IF(T60>=60,"C+",IF(T60>=50,"C",IF(T60>=49,"C*","F")))))))) -> F | AO60: F | AP60: F | AQ60: F | AR60: 20 | AU60: 1.866666667 | AV60: نجاح | AY60: ملحق | AZ60: 3 | BA60: 3 | BB60: 4 | BC60: 2.5 | BD60: 4 | BE60: 4 | BF60: 2 | BG60: 2.5 | BH60: 2 | BI60: 2 | BJ60: 0 | BK60: 0 | BL60: 0 | BM60: 0 | BN60: 0 | BO60: 0 | BP60: =IF(T60>100,"-",IF(T60>=80,4,IF(T60>=75,3.5,IF(T60>=70,3,IF(T60>=60,2.5,IF(T60>=50,2,IF(T60>=49,2,"0"))))))) -> 0 | BQ60: 0 | BR60: 0 | BS60: 0 | BT60: رياضيات_رياض_أطفال | CM60: 112 | CN60: 40 | CP60: 0 | CQ60: 0 | CR60: 60 | CS60: 112 | CT60: ر/ط
A61: =SUBTOTAL(103,$B$22:B61) -> 39 | B61: الهام محمد حمد محمد | C61: 12624510 | D61: 60 | E61: 67 | F61: 66 | G61: 61 | H61: 67 | I61: 74 | J61: 49 | K61: 62 | L61: 51 | M61: 50 | X61: C+ | Y61: C+ | Z61: C+ | AA61: C+ | AB61: C+ | AC61: B | AD61: C* | AE61: C+ | AF61: C | AG61: C | AH61: F | AI61: F | AJ61: =IF($B61=0,"",IF(P61>100,"-",IF(P61>=80,"A",IF(P61>=75,"B+",IF(P61>=70,"B",IF(P61>=60,"C+",IF(P61>=50,"C",IF(P61>=49,"C*","F")))))))) -> F | AK61: F | AL61: F | AM61: F | AN61: F | AO61: F | AP61: F | AQ61: F | AR61: 20 | AS61: =IF(ISERROR(IF(SUMPRODUCT(($AZ$22:$BS$22<>0)*($AZ61:$BS61=0)),"",SUMPRODUCT(($AZ$22:$BS$22)*($AZ61:$BS61)))),"",IF(SUMPRODUCT(($AZ$22:$BS$22<>0)*($AZ61:$BS61=0)),"",SUMPRODUCT(($AZ$22:$BS$22)*($AZ61:$BS61)))) -> 48 | AT61: =IF(ISERROR(IF(ISERROR(AS61/AR61),"",AS61/AR61)),"",IF(ISERROR(AS61/AR61),"",AS61/AR61)) -> 2.4 | AU61: 2.966666667 | AV61: نجاح | AY61: ملحق | AZ61: 2.5 | BA61: 2.5 | BB61: 2.5 | BC61: 2.5 | BD61: 2.5 | BE61: 3 | BF61: 2 | BG61: 2.5 | BH61: 2 | BI61: 2 | BJ61: 0 | BK61: 0 | BL61: =IF(P61>100,"-",IF(P61>=80,4,IF(P61>=75,3.5,IF(P61>=70,3,IF(P61>=60,2.5,IF(P61>=50,2,IF(P61>=49,2,"0"))))))) -> 0 | BM61: 0 | BN61: 0 | BO61: 0 | BP61: 0 | BQ61: 0 | BR61: 0 | BS61: 0 | BT61: رياضيات_رياض_أطفال | CM61: 130 | CN61: 40 | CP61: 0 | CQ61: 0 | CR61: 60 | CS61: 178 | CT61: ر/ط
A62: =SUBTOTAL(103,$B$22:B62) -> 40 | B62: سامي عثمان الامين الامام | C62: 9207809 | D62: 75 | E62: 65 | F62: 69 | G62: 81 | H62: 73 | I62: 89 | J62: 67 | K62: 62 | L62: 85 | M62: 61 | X62: =IF($B62=0,"",IF(D62>100,"-",IF(D62>=80,"A",IF(D62>=75,"B+",IF(D62>=70,"B",IF(D62>=60,"C+",IF(D62>=50,"C",IF(D62>=49,"C*","F")))))))) -> B+ | Y62: C+ | Z62: C+ | AA62: A | AB62: B | AC62: A | AD62: C+ | AE62: C+ | AF62: A | AG62: C+ | AH62: F | AI62: F | AJ62: F | AK62: F | AL62: F | AM62: F | AN62: F | AO62: F | AP62: F | AQ62: F | AR62: 20 | AU62: 1.933333333 | AV62: نجاح | AY62: نجاح | AZ62: =IF(D62>100,"-",IF(D62>=80,4,IF(D62>=75,3.5,IF(D62>=70,3,IF(D62>=60,2.5,IF(D62>=50,2,IF(D62>=49,2,"0"))))))) -> 3.5 | BA62: 2.5 | BB62: 2.5 | BC62: 4 | BD62: 3 | BE62: 4 | BF62: 2.5 | BG62: 2.5 | BH62: 4 | BI62: 2.5 | BJ62: 0 | BK62: 0 | BL62: 0 | BM62: 0 | BN62: 0 | BO62: 0 | BP62: 0 | BQ62: 0 | BR62: 0 | BS62: 0 | BT62: رياضيات_رياض_أطفال | CM62: 116 | CN62: 40 | CP62: 0 | CQ62: 0 | CR62: 60 | CS62: 116 | CT62: ر/ط
A63: =SUBTOTAL(103,$B$22:B63) -> 41 | B63: اكرام الصادق جبريل | C63: 27175510 | D63: 86 | E63: 84 | F63: 91 | G63: 75 | H63: 78 | I63: 75 | J63: 55 | K63: 63 | L63: 67 | M63: 52 | X63: A | Y63: A | Z63: A | AA63: B+ | AB63: B+ | AC63: B+ | AD63: C | AE63: C+ | AF63: C+ | AG63: C | AH63: F | AI63: F | AJ63: F | AK63: F | AL63: F | AM63: F | AN63: F | AO63: F | AP63: F | AQ63: F | AR63: 20 | AU63: 1.733333333 | AV63: نجاح | AY63: نجاح | AZ63: 4 | BA63: 4 | BB63: 4 | BC63: 3.5 | BD63: 3.5 | BE63: 3.5 | BF63: 2 | BG63: 2.5 | BH63: 2.5 | BI63: 2 | BJ63: 0 | BK63: 0 | BL63: 0 | BM63: 0 | BN63: 0 | BO63: 0 | BP63: 0 | BQ63: 0 | BR63: 0 | BS63: 0 | BT63: رياضيات_رياض_أطفال | CM63: 104 | CN63: 40 | CP63: 0 | CQ63: 0 | CR63: 60 | CS63: 104 | CT63: ر/ط
A64: =SUBTOTAL(103,$B$22:B64) -> 42 | B64: تهاني حمزه محمود علي | C64: 283010 | D64: 79 | E64: 77 | F64: 73 | G64: 74 | H64: 69 | I64: 59 | J64: 52 | K64: 55 | L64: 61 | M64: 70 | X64: B+ | Y64: B+ | Z64: B | AA64: B | AB64: C+ | AC64: C | AD64: C | AE64: C | AF64: C+ | AG64: B | AH64: F | AI64: F | AJ64: F | AK64: F | AL64: F | AM64: F | AN64: F | AO64: F | AP64: F | AQ64: F | AR64: 20 | AS64: =IF(ISERROR(IF(SUMPRODUCT(($AZ$22:$BS$22<>0)*($AZ64:$BS64=0)),"",SUMPRODUCT(($AZ$22:$BS$22)*($AZ64:$BS64)))),"",IF(SUMPRODUCT(($AZ$22:$BS$22<>0)*($AZ64:$BS64=0)),"",SUMPRODUCT(($AZ$22:$BS$22)*($AZ64:$BS64)))) -> 54 | AT64: =IF(ISERROR(IF(ISERROR(AS64/AR64),"",AS64/AR64)),"",IF(ISERROR(AS64/AR64),"",AS64/AR64)) -> 2.7 | AU64: 3.016666667 | AV64: نجاح | AY64: نجاح | AZ64: 3.5 | BA64: 3.5 | BB64: 3 | BC64: 3 | BD64: 2.5 | BE64: 2 | BF64: 2 | BG64: 2 | BH64: 2.5 | BI64: 3 | BJ64: 0 | BK64: 0 | BL64: 0 | BM64: 0 | BN64: 0 | BO64: 0 | BP64: 0 | BQ64: 0 | BR64: 0 | BS64: 0 | BT64: رياضيات_رياض_أطفال | CM64: 127 | CN64: 40 | CP64: 0 | CQ64: 0 | CR64: 60 | CS64: 181 | CT64: ر/ط
A65: =SUBTOTAL(103,$B$22:B65) -> 43 | B65: شامه اسماعيل البشير | C65: 7757308 | D65: 76 | E65: 75 | F65: 68 | G65: 52 | H65: 77 | I65: 76 | J65: 51 | K65: 50 | L65: 70 | M65: 49 | X65: B+ | Y65: B+ | Z65: C+ | AA65: C | AB65: B+ | AC65: B+ | AD65: C | AE65: C | AF65: B | AG65: C* | AH65: F | AI65: F | AJ65: F | AK65: F | AL65: F | AM65: F | AN65: F | AO65: F | AP65: F | AQ65: F | AR65: 20 | AU65: 1.816666667 | AV65: نجاح | AY65: ملحق | AZ65: 3.5 | BA65: 3.5 | BB65: 2.5 | BC65: 2 | BD65: 3.5 | BE65: 3.5 | BF65: 2 | BG65: 2 | BH65: 3 | BI65: 2 | BJ65: 0 | BK65: 0 | BL65: 0 | BM65: 0 | BN65: 0 | BO65: 0 | BP65: 0 | BQ65: 0 | BR65: 0 | BS65: 0 | BT65: رياضيات_رياض_أطفال | CM65: 109 | CN65: 40 | CP65: 0 | CQ65: 0 | CR65: 60 | CS65: 109 | CT65: ر/ط
A66: =SUBTOTAL(103,$B$22:B66) -> 44 | B66: فاطمة صديق الحاج قيلي | C66: 9078409 | D66: 72 | E66: 76 | F66: 62 | G66: 61 | H66: 64 | I66: 68 | J66: 50 | K66: 54 | L66: 49 | M66: 51 | X66: B | Y66: B+ | Z66: C+ | AA66: C+ | AB66: C+ | AC66: C+ | AD66: C | AE66: C | AF66: C* | AG66: C | AH66: F | AI66: F | AJ66: F | AK66: F | AL66: F | AM66: F | AN66: F | AO66: F | AP66: F | AQ66: F | AR66: 20 | AU66: 1.666666667 | AV66: نجاح | AY66: ملحق | AZ66: 3 | BA66: 3.5 | BB66: 2.5 | BC66: 2.5 | BD66: 2.5 | BE66: 2.5 | BF66: 2 | BG66: 2 | BH66: 2 | BI66: 2 | BJ66: 0 | BK66: 0 | BL66: 0 | BM66: 0 | BN66: 0 | BO66: 0 | BP66: 0 | BQ66: 0 | BR66: 0 | BS66: 0 | BT66: رياضيات_رياض_أطفال | CM66: 100 | CN66: 40 | CP66: 0 | CQ66: 0 | CR66: 60 | CS66: 100 | CT66: ر/ط
A67: =SUBTOTAL(103,$B$22:B67) -> 45 | B67: توداى علي موسى ديساى | C67: 11670110 | D67: 79 | E67: 71 | F67: 59 | G67: 81 | H67: 73 | I67: 81 | J67: 72 | K67: 52 | L67: 78 | M67: 50 | X67: B+ | Y67: B | Z67: C | AA67: A | AB67: B | AC67: A | AD67: B | AE67: C | AF67: B+ | AG67: C | AH67: F | AI67: F | AJ67: F | AK67: F | AL67: F | AM67: F | AN67: F | AO67: F | AP67: F | AQ67: F | AR67: 20 | AS67: =IF(ISERROR(IF(SUMPRODUCT(($AZ$22:$BS$22<>0)*($AZ67:$BS67=0)),"",SUMPRODUCT(($AZ$22:$BS$22)*($AZ67:$BS67)))),"",IF(SUMPRODUCT(($AZ$22:$BS$22<>0)*($AZ67:$BS67=0)),"",SUMPRODUCT(($AZ$22:$BS$22)*($AZ67:$BS67)))) -> 60 | AT67: =IF(ISERROR(IF(ISERROR(AS67/AR67),"",AS67/AR67)),"",IF(ISERROR(AS67/AR67),"",AS67/AR67)) -> 3 | AU67: 2.933333333 | AV67: نجاح | AY67: نجاح | AZ67: 3.5 | BA67: 3 | BB67: 2 | BC67: 4 | BD67: 3 | BE67: 4 | BF67: 3 | BG67: 2 | BH67: 3.5 | BI67: 2 | BJ67: 0 | BK67: 0 | BL67: 0 | BM67: 0 | BN67: 0 | BO67: 0 | BP67: 0 | BQ67: 0 | BR67: 0 | BS67: 0 | BT67: رياضيات_رياض_أطفال | CM67: 116 | CN67: 40 | CP67: 0 | CQ67: 0 | CR67: 60 | CS67: 176 | CT67: ر/ط
A68: =SUBTOTAL(103,$B$22:B68) -> 46 | B68: فاطمة احمد صالح فضل | C68: 12778010 | D68: 71 | E68: 67 | F68: 52 | G68: 71 | H68: 71 | I68: 67 | J68: 49 | K68: 66 | L68: 67 | M68: 49 | X68: B | Y68: C+ | Z68: C | AA68: B | AB68: B | AC68: C+ | AD68: C* | AE68: C+ | AF68: C+ | AG68: C* | AH68: F | AI68: F | AJ68: F | AK68: F | AL68: F | AM68: F | AN68: F | AO68: F | AP68: F | AQ68: F | AR68: 20 | AS68: =IF(ISERROR(IF(SUMPRODUCT(($AZ$22:$BS$22<>0)*($AZ68:$BS68=0)),"",SUMPRODUCT(($AZ$22:$BS$22)*($AZ68:$BS68)))),"",IF(SUMPRODUCT(($AZ$22:$BS$22<>0)*($AZ68:$BS68=0)),"",SUMPRODUCT(($AZ$22:$BS$22)*($AZ68:$BS68)))) -> 50 | AT68: =IF(ISERROR(IF(ISERROR(AS68/AR68),"",AS68/AR68)),"",IF(ISERROR(AS68/AR68),"",AS68/AR68)) -> 2.5 | AU68: 2.833333333 | AV68: نجاح | AY68: ملحق | AZ68: 3 | BA68: 2.5 | BB68: 2 | BC68: 3 | BD68: 3 | BE68: 2.5 | BF68: 2 | BG68: 2.5 | BH68: 2.5 | BI68: 2 | BJ68: 0 | BK68: 0 | BL68: 0 | BM68: 0 | BN68: 0 | BO68: 0 | BP68: 0 | BQ68: 0 | BR68: 0 | BS68: 0 | BT68: رياضيات_رياض_أطفال | CM68: 120 | CN68: 40 | CP68: 0 | CQ68: 0 | CR68: 60 | CS68: 170 | CT68: ر/ط
A69: =SUBTOTAL(103,$B$22:B69) -> 47 | B69: قمر شعيب موسى تلى | C69: 474710 | D69: 82 | E69: 71 | F69: 68 | G69: 65 | H69: 61 | I69: 76 | J69: 50 | K69: 50 | L69: 63 | M69: 54 | X69: A | Y69: B | Z69: C+ | AA69: C+ | AB69: C+ | AC69: B+ | AD69: C | AE69: C | AF69: C+ | AG69: C | AH69: F | AI69: F | AJ69: F | AK69: F | AL69: F | AM69: F | AN69: F | AO69: F | AP69: F | AQ69: F | AR69: 20 | AU69: 1.616666667 | AV69: نجاح | AY69: نجاح | AZ69: 4 | BA69: 3 | BB69: 2.5 | BC69: 2.5 | BD69: 2.5 | BE69: 3.5 | BF69: 2 | BG69: 2 | BH69: 2.5 | BI69: 2 | BJ69: 0 | BK69: 0 | BL69: 0 | BM69: 0 | BN69: 0 | BO69: 0 | BP69: 0 | BQ69: 0 | BR69: 0 | BS69: 0 | BT69: رياضيات_رياض_أطفال | CK69: =IF(AND(T69<CK$22,$B69>0),CK$21,"") ->  | CM69: 97 | CN69: 40 | CP69: 0 | CQ69: 0 | CR69: 60 | CS69: 97 | CT69: ر/ط
A70: =SUBTOTAL(103,$B$22:B70) -> 48 | B70: نازك عبدالله اسماعيل حماد | C70: 12107110 | D70: 72 | E70: 71 | F70: 50 | G70: 72 | H70: 61 | I70: 77 | J70: 60 | K70: 52 | L70: 56 | M70: 49 | X70: B | Y70: B | Z70: C | AA70: B | AB70: C+ | AC70: B+ | AD70: C+ | AE70: C | AF70: C | AG70: C* | AH70: F | AI70: F | AJ70: F | AK70: F | AL70: F | AM70: F | AN70: F | AO70: F | AP70: F | AQ70: F | AR70: 20 | AS70: =IF(ISERROR(IF(SUMPRODUCT(($AZ$22:$BS$22<>0)*($AZ70:$BS70=0)),"",SUMPRODUCT(($AZ$22:$BS$22)*($AZ70:$BS70)))),"",IF(SUMPRODUCT(($AZ$22:$BS$22<>0)*($AZ70:$BS70=0)),"",SUMPRODUCT(($AZ$22:$BS$22)*($AZ70:$BS70)))) -> 51 | AT70: =IF(ISERROR(IF(ISERROR(AS70/AR70),"",AS70/AR70)),"",IF(ISERROR(AS70/AR70),"",AS70/AR70)) -> 2.55 | AU70: 2.866666667 | AV70: نجاح | AY70: ملحق | AZ70: 3 | BA70: 3 | BB70: 2 | BC70: 3 | BD70: 2.5 | BE70: 3.5 | BF70: 2.5 | BG70: 2 | BH70: 2 | BI70: 2 | BJ70: 0 | BK70: 0 | BL70: 0 | BM70: 0 | BN70: 0 | BO70: 0 | BP70: 0 | BQ70: 0 | BR70: 0 | BS70: 0 | BT70: رياضيات_رياض_أطفال | BV70: =IF(AND(E70<BV$22,$B70>0),BV$21,"") ->  | CM70: 121 | CN70: 40 | CP70: 0 | CQ70: 0 | CR70: 60 | CS70: 172 | CT70: ر/ط
A71: =SUBTOTAL(103,$B$22:B71) -> 49 | B71: منال محمد عبدالرحيم | C71: 8048008 | D71: 65 | E71: 76 | F71: 79 | G71: 53 | H71: 82 | I71: 91 | J71: 51 | K71: 50 | L71: 86 | M71: 59 | X71: C+ | Y71: B+ | Z71: B+ | AA71: C | AB71: A | AC71: A | AD71: C | AE71: C | AF71: A | AG71: C | AH71: F | AI71: F | AJ71: F | AK71: F | AL71: F | AM71: F | AN71: F | AO71: F | AP71: F | AQ71: F | AR71: 20 | AS71: 59 | AT71: 2.95 | AU71: 2.966666667 | AV71: نجاح | AY71: نجاح | AZ71: 2.5 | BA71: 3.5 | BB71: 3.5 | BC71: 2 | BD71: 4 | BE71: 4 | BF71: 2 | BG71: 2 | BH71: 4 | BI71: 2 | BJ71: 0 | BK71: 0 | BL71: 0 | BM71: 0 | BN71: 0 | BO71: 0 | BP71: 0 | BQ71: 0 | BR71: 0 | BS71: 0 | BT71: رياضيات_رياض_أطفال | CM71: 119 | CN71: 40 | CP71: 0 | CQ71: 0 | CR71: 60 | CS71: 178 | CT71: ر/ط
A72: =SUBTOTAL(103,$B$22:B72) -> 50 | B72: علوية محمد حسن محمد عبدالله | C72: 680810 | D72: 94 | E72: 57 | F72: 70 | G72: 75 | H72: 55 | I72: 73 | J72: 70 | K72: 53 | L72: 50 | M72: 50 | N72: 50 | X72: A | Y72: C | Z72: B | AA72: B+ | AB72: C | AC72: B | AD72: B | AE72: C | AF72: C | AG72: C | AH72: C | AI72: F | AJ72: F | AK72: F | AL72: F | AM72: F | AN72: F | AO72: F | AP72: F | AQ72: F | AR72: 20 | AS72: 53 | AT72: 2.65 | AU72: 2.883333333 | AV72: نجاح | AY72: نجاح | AZ72: 4 | BA72: 2 | BB72: 3 | BC72: 3.5 | BD72: 2 | BE72: 3 | BF72: 3 | BG72: 2 | BH72: 2 | BI72: 2 | BJ72: 2 | BK72: 0 | BL72: 0 | BM72: 0 | BN72: 0 | BO72: 0 | BP72: 0 | BQ72: 0 | BR72: 0 | BS72: 0 | BT72: رياضيات_علوم | CM72: 120 | CN72: 40 | CP72: 0 | CQ72: 0 | CR72: 60 | CS72: 173 | CT72: ر/م
A73: =SUBTOTAL(103,$B$22:B73) -> 51 | B73: فاطمة الفاضل نورين الفاضل | C73: 11639810 | D73: 74 | E73: 85 | F73: 66 | G73: 64 | H73: 51 | I73: 65 | J73: 82 | K73: 50 | L73: 56 | M73: 76 | N73: 50 | X73: B | Y73: A | Z73: C+ | AA73: C+ | AB73: C | AC73: C+ | AD73: A | AE73: C | AF73: C | AG73: B+ | AH73: C | AI73: F | AJ73: F | AK73: F | AL73: F | AM73: F | AN73: F | AO73: F | AP73: F | AQ73: F | AR73: 20 | AS73: 56 | AT73: 2.8 | AU73: 2.55 | AV73: نجاح | AY73: نجاح | AZ73: 3 | BA73: 4 | BB73: 2.5 | BC73: 2.5 | BD73: 2 | BE73: 2.5 | BF73: 4 | BG73: 2 | BH73: 2 | BI73: 3.5 | BJ73: 2 | BK73: 0 | BL73: 0 | BM73: 0 | BN73: 0 | BO73: 0 | BP73: 0 | BQ73: 0 | BR73: 0 | BS73: 0 | BT73: رياضيات_علوم | CM73: 97 | CN73: 40 | CP73: 0 | CQ73: 0 | CR73: 60 | CS73: 153 | CT73: ر/م
A74: =SUBTOTAL(103,$B$22:B74) -> 52 | B74: ابتسام ادم ابكر ادم | C74: 12712210 | D74: 69 | E74: 70 | F74: 72 | G74: 75 | H74: 59 | I74: 72 | J74: 97 | K74: 65 | L74: 53 | M74: 75 | N74: 55 | X74: C+ | Y74: B | Z74: B | AA74: B+ | AB74: C | AC74: B | AD74: A | AE74: C+ | AF74: C | AG74: B+ | AH74: C | AI74: F | AJ74: F | AK74: F | AL74: F | AM74: F | AN74: F | AO74: F | AP74: F | AQ74: F | AR74: 20 | AS74: 58 | AT74: 2.9 | AU74: 2.883333333 | AV74: نجاح | AY74: نجاح | AZ74: 2.5 | BA74: 3 | BB74: 3 | BC74: 3.5 | BD74: 2 | BE74: 3 | BF74: 4 | BG74: 2.5 | BH74: 2 | BI74: 3.5 | BJ74: 2 | BK74: 0 | BL74: 0 | BM74: 0 | BN74: 0 | BO74: 0 | BP74: 0 | BQ74: 0 | BR74: 0 | BS74: 0 | BT74: رياضيات_علوم | CM74: 115 | CN74: 40 | CP74: 0 | CQ74: 0 | CR74: 60 | CS74: 173 | CT74: ر/م
A75: =SUBTOTAL(103,$B$22:B75) -> 53 | B75: سارة ابراهيم عبدالله الدخرى | C75: 12761010 | D75: 53 | E75: 66 | F75: 65 | G75: 50 | H75: 70 | I75: 60 | J75: 61 | K75: 50 | L75: 49 | M75: 76 | N75: 49 | X75: C | Y75: C+ | Z75: C+ | AA75: C | AB75: B | AC75: C+ | AD75: C+ | AE75: C | AF75: C* | AG75: B+ | AH75: C* | AI75: F | AJ75: F | AK75: F | AL75: F | AM75: F | AN75: F | AO75: F | AP75: F | AQ75: F | AR75: 20 | AS75: 49 | AT75: 2.45 | AU75: 2.85 | AV75: نجاح | AY75: ملحق | AZ75: 2 | BA75: 2.5 | BB75: 2.5 | BC75: 2 | BD75: 3 | BE75: 2.5 | BF75: 2.5 | BG75: 2 | BH75: 2 | BI75: 3.5 | BJ75: 2 | BK75: 0 | BL75: 0 | BM75: 0 | BN75: 0 | BO75: 0 | BP75: 0 | BQ75: 0 | BR75: 0 | BS75: 0 | BT75: رياضيات_علوم | CM75: 122 | CN75: 40 | CP75: 0 | CQ75: 0 | CR75: 60 | CS75: 171 | CT75: ر/م
A76: =SUBTOTAL(103,$B$22:B76) -> 54 | B76: نجاة محمد علي ادريس موسى | C76: 680110 | D76: 78 | E76: 57 | F76: 73 | G76: 85 | H76: 81 | I76: 76 | J76: 87 | K76: 60 | L76: 59 | M76: 76 | N76: 77 | X76: B+ | Y76: C | Z76: B | AA76: A | AB76: A | AC76: B+ | AD76: A | AE76: C+ | AF76: C | AG76: B+ | AH76: B+ | AI76: F | AJ76: F | AK76: F | AL76: F | AM76: F | AN76: F | AO76: F | AP76: F | AQ76: F | AR76: 20 | AS76: 64 | AT76: 3.2 | AU76: 3.283333333 | AV76: نجاح | AY76: نجاح | AZ76: 3.5 | BA76: 2 | BB76: 3 | BC76: 4 | BD76: 4 | BE76: 3.5 | BF76: 4 | BG76: 2.5 | BH76: 2 | BI76: 3.5 | BJ76: 3.5 | BK76: 0 | BL76: 0 | BM76: 0 | BN76: 0 | BO76: 0 | BP76: 0 | BQ76: 0 | BR76: 0 | BS76: 0 | BT76: رياضيات_علوم | CM76: 133 | CN76: 40 | CP76: 0 | CQ76: 0 | CR76: 60 | CS76: 197 | CT76: ر/م
A77: =SUBTOTAL(103,$B$22:B77) -> 55 | B77: مريم محمد محمود ادريس محمد | C77: 11736210 | D77: 70 | E77: 58 | F77: 70 | G77: 75 | H77: 60 | I77: 64 | J77: 94 | K77: 51 | L77: 54 | M77: 53 | N77: 61 | X77: B | Y77: C | Z77: B | AA77: B+ | AB77: C+ | AC77: C+ | AD77: A | AE77: C | AF77: C | AG77: C | AH77: C+ | AI77: F | AJ77: F | AK77: F | AL77: F | AM77: F | AN77: F | AO77: F | AP77: F | AQ77: F | AR77: 20 | AS77: 53 | AT77: 2.65 | AU77: 2.866666667 | AV77: نجاح | AY77: نجاح | AZ77: 3 | BA77: 2 | BB77: 3 | BC77: 3.5 | BD77: 2.5 | BE77: 2.5 | BF77: 4 | BG77: 2 | BH77: 2 | BI77: 2 | BJ77: 2.5 | BK77: 0 | BL77: 0 | BM77: 0 | BN77: 0 | BO77: 0 | BP77: 0 | BQ77: 0 | BR77: 0 | BS77: 0 | BT77: رياضيات_علوم | CM77: 119 | CN77: 40 | CP77: 0 | CQ77: 0 | CR77: 60 | CS77: 172 | CT77: ر/م
A78: =SUBTOTAL(103,$B$22:B78) -> 56 | B78: فاطمه خليقه عبدالرحمن صديق | C78: 20570610 | D78: 81 | E78: 82 | F78: 78 | G78: 75 | H78: 49 | I78: 50 | J78: 67 | K78: 60 | L78: 50 | M78: 50 | N78: 50 | X78: A | Y78: A | Z78: B+ | AA78: B+ | AB78: C* | AC78: C | AD78: C+ | AE78: C+ | AF78: C | AG78: C | AH78: C | AI78: F | AJ78: F | AK78: F | AL78: F | AM78: F | AN78: F | AO78: F | AP78: F | AQ78: F | AR78: 20 | AS78: 56 | AT78: 2.8 | AU78: 2.833333333 | AV78: نجاح | AY78: ملحق | AZ78: 4 | BA78: 4 | BB78: 3.5 | BC78: 3.5 | BD78: 2 | BE78: 2 | BF78: 2.5 | BG78: 2.5 | BH78: 2 | BI78: 2 | BJ78: 2 | BK78: 0 | BL78: 0 | BM78: 0 | BN78: 0 | BO78: 0 | BP78: 0 | BQ78: 0 | BR78: 0 | BS78: 0 | BT78: رياضيات_علوم | CM78: 114 | CN78: 40 | CP78: 0 | CQ78: 0 | CR78: 60 | CS78: 170 | CT78: ر/م
A79: =SUBTOTAL(103,$B$22:B79) -> 57 | B79: سامية سليمان صالح على | C79: 11606110 | D79: 80 | E79: 58 | F79: 64 | G79: 80 | H79: 53 | I79: 60 | J79: 73 | K79: 57 | L79: 57 | M79: 56 | N79: 49 | X79: A | Y79: C | Z79: C+ | AA79: A | AB79: C | AC79: C+ | AD79: B | AE79: C | AF79: C | AG79: C | AH79: C* | AI79: F | AJ79: F | AK79: F | AL79: F | AM79: F | AN79: F | AO79: F | AP79: F | AQ79: F | AR79: 20 | AS79: 52 | AT79: 2.6 | AU79: 2.833333333 | AV79: نجاح | AY79: ملحق | AZ79: 4 | BA79: 2 | BB79: 2.5 | BC79: 4 | BD79: 2 | BE79: 2.5 | BF79: 3 | BG79: 2 | BH79: 2 | BI79: 2 | BJ79: 2 | BK79: 0 | BL79: 0 | BM79: 0 | BN79: 0 | BO79: 0 | BP79: 0 | BQ79: 0 | BR79: 0 | BS79: 0 | BT79: رياضيات_علوم | CM79: 118 | CN79: 40 | CP79: 0 | CQ79: 0 | CR79: 60 | CS79: 170 | CT79: ر/م
A80: =SUBTOTAL(103,$B$22:B80) -> 58 | B80: اخلاص حسن امين حسن | C80: 29366810 | D80: 69 | E80: 78 | F80: 62 | G80: 79 | H80: 82 | I80: 73 | J80: 78 | K80: 67 | L80: 72 | M80: 93 | N80: 74 | X80: C+ | Y80: B+ | Z80: C+ | AA80: B+ | AB80: A | AC80: B | AD80: B+ | AE80: C+ | AF80: B | AG80: A | AH80: B | AI80: F | AJ80: F | AK80: F | AL80: F | AM80: F | AN80: F | AO80: F | AP80: F | AQ80: F | AR80: 20 | AU80: 1.566666667 | AV80: نجاح | AY80: نجاح | AZ80: 2.5 | BA80: 3.5 | BB80: 2.5 | BC80: 3.5 | BD80: 4 | BE80: 3 | BF80: 3.5 | BG80: 2.5 | BH80: 3 | BI80: 4 | BJ80: 3 | BK80: 0 | BL80: 0 | BM80: 0 | BN80: 0 | BO80: 0 | BP80: 0 | BQ80: 0 | BR80: 0 | BS80: 0 | BT80: رياضيات_علوم | CM80: 94 | CN80: 40 | CP80: 0 | CQ80: 0 | CR80: 60 | CS80: 94 | CT80: ر/م
A81: =SUBTOTAL(103,$B$22:B81) -> 59 | B81: صالح محمد دبلوب أحمد | C81: 4897108 | D81: 52 | E81: 65 | F81: 54 | G81: 63 | H81: 49 | I81: 59 | J81: 55 | K81: 50 | L81: 49 | M81: 62 | N81: 50 | X81: C | Y81: C+ | Z81: C | AA81: C+ | AB81: C* | AC81: C | AD81: C | AE81: C | AF81: C* | AG81: C+ | AH81: C | AI81: F | AJ81: F | AK81: F | AL81: F | AM81: F | AN81: F | AO81: F | AP81: F | AQ81: F | AR81: 20 | AU81: 1.766666667 | AV81: نجاح | AY81: ملحق | AZ81: 2 | BA81: 2.5 | BB81: 2 | BC81: 2.5 | BD81: 2 | BE81: 2 | BF81: 2 | BG81: 2 | BH81: 2 | BI81: 2.5 | BJ81: 2 | BK81: 0 | BL81: 0 | BM81: 0 | BN81: 0 | BO81: 0 | BP81: 0 | BQ81: 0 | BR81: 0 | BS81: 0 | BT81: رياضيات_علوم | CM81: 106 | CN81: 40 | CP81: 0 | CQ81: 0 | CR81: 60 | CS81: 106 | CT81: ر/م
A82: =SUBTOTAL(103,$B$22:B82) -> 60 | B82: جواهر محمد على حامد محمود | C82: 11646610 | D82: 72 | E82: 57 | F82: 81 | G82: 64 | H82: 63 | I82: 76 | J82: 85 | K82: 54 | L82: 50 | M82: 74 | N82: 60 | X82: B | Y82: C | Z82: A | AA82: C+ | AB82: C+ | AC82: B+ | AD82: A | AE82: C | AF82: C | AG82: B | AH82: C+ | AI82: F | AJ82: F | AK82: F | AL82: F | AM82: F | AN82: F | AO82: F | AP82: F | AQ82: F | AR82: 20 | AS82: =IF(ISERROR(IF(SUMPRODUCT(($AZ$22:$BS$22<>0)*($AZ82:$BS82=0)),"",SUMPRODUCT(($AZ$22:$BS$22)*($AZ82:$BS82)))),"",IF(SUMPRODUCT(($AZ$22:$BS$22<>0)*($AZ82:$BS82=0)),"",SUMPRODUCT(($AZ$22:$BS$22)*($AZ82:$BS82)))) -> 57 | AT82: =IF(ISERROR(IF(ISERROR(AS82/AR82),"",AS82/AR82)),"",IF(ISERROR(AS82/AR82),"",AS82/AR82)) -> 2.85 | AU82: 2.933333333 | AV82: نجاح | AY82: نجاح | AZ82: 3 | BA82: 2 | BB82: 4 | BC82: 2.5 | BD82: 2.5 | BE82: 3.5 | BF82: 4 | BG82: 2 | BH82: 2 | BI82: 3 | BJ82: 2.5 | BK82: 0 | BL82: 0 | BM82: 0 | BN82: 0 | BO82: 0 | BP82: 0 | BQ82: 0 | BR82: 0 | BS82: 0 | BT82: رياضيات_علوم | CM82: 119 | CN82: 40 | CP82: 0 | CQ82: 0 | CR82: 60 | CS82: 176 | CT82: ر/م
A83: =SUBTOTAL(103,$B$22:B83) -> 61 | B83: رحاب بلال بكرى الجزولي | C83: 12053410 | D83: 68 | E83: 74 | F83: 75 | G83: 68 | H83: 49 | I83: 69 | J83: 70 | K83: 50 | L83: 53 | M83: 86 | N83: 49 | X83: C+ | Y83: B | Z83: B+ | AA83: =IF($B83=0,"",IF(G83>100,"-",IF(G83>=80,"A",IF(G83>=75,"B+",IF(G83>=70,"B",IF(G83>=60,"C+",IF(G83>=50,"C",IF(G83>=49,"C*","F")))))))) -> C+ | AB83: C* | AC83: C+ | AD83: B | AE83: C | AF83: C | AG83: A | AH83: C* | AI83: F | AJ83: F | AK83: F | AL83: F | AM83: F | AN83: F | AO83: F | AP83: F | AQ83: F | AR83: 20 | AS83: =IF(ISERROR(IF(SUMPRODUCT(($AZ$22:$BS$22<>0)*($AZ83:$BS83=0)),"",SUMPRODUCT(($AZ$22:$BS$22)*($AZ83:$BS83)))),"",IF(SUMPRODUCT(($AZ$22:$BS$22<>0)*($AZ83:$BS83=0)),"",SUMPRODUCT(($AZ$22:$BS$22)*($AZ83:$BS83)))) -> 54 | AT83: =IF(ISERROR(IF(ISERROR(AS83/AR83),"",AS83/AR83)),"",IF(ISERROR(AS83/AR83),"",AS83/AR83)) -> 2.7 | AU83: 2.75 | AV83: نجاح | AY83: ملحق | AZ83: 2.5 | BA83: 3 | BB83: 3.5 | BC83: =IF(G83>100,"-",IF(G83>=80,4,IF(G83>=75,3.5,IF(G83>=70,3,IF(G83>=60,2.5,IF(G83>=50,2,IF(G83>=49,2,"0"))))))) -> 2.5 | BD83: 2 | BE83: 2.5 | BF83: 3 | BG83: 2 | BH83: 2 | BI83: 4 | BJ83: 2 | BK83: 0 | BL83: 0 | BM83: 0 | BN83: 0 | BO83: 0 | BP83: 0 | BQ83: 0 | BR83: 0 | BS83: 0 | BT83: رياضيات_علوم | CM83: 111 | CN83: 40 | CP83: 0 | CQ83: 0 | CR83: 60 | CS83: 165 | CT83: ر/م
A84: =SUBTOTAL(103,$B$22:B84) -> 62 | B84: رابحه موسى محمد اسحق | C84: 11678510 | D84: 61 | E84: 68 | F84: 71 | G84: 60 | H84: 49 | I84: 53 | J84: 75 | K84: 50 | L84: 50 | M84: 51 | N84: 49 | X84: =IF($B84=0,"",IF(D84>100,"-",IF(D84>=80,"A",IF(D84>=75,"B+",IF(D84>=70,"B",IF(D84>=60,"C+",IF(D84>=50,"C",IF(D84>=49,"C*","F")))))))) -> C+ | Y84: C+ | Z84: B | AA84: C+ | AB84: C* | AC84: C | AD84: B+ | AE84: C | AF84: C | AG84: C | AH84: C* | AI84: F | AJ84: F | AK84: F | AL84: F | AM84: F | AN84: F | AO84: F | AP84: F | AQ84: F | AR84: 20 | AS84: =IF(ISERROR(IF(SUMPRODUCT(($AZ$22:$BS$22<>0)*($AZ84:$BS84=0)),"",SUMPRODUCT(($AZ$22:$BS$22)*($AZ84:$BS84)))),"",IF(SUMPRODUCT(($AZ$22:$BS$22<>0)*($AZ84:$BS84=0)),"",SUMPRODUCT(($AZ$22:$BS$22)*($AZ84:$BS84)))) -> 48 | AT84: =IF(ISERROR(IF(ISERROR(AS84/AR84),"",AS84/AR84)),"",IF(ISERROR(AS84/AR84),"",AS84/AR84)) -> 2.4 | AU84: 2.766666667 | AV84: نجاح | AY84: ملحق | AZ84: =IF(D84>100,"-",IF(D84>=80,4,IF(D84>=75,3.5,IF(D84>=70,3,IF(D84>=60,2.5,IF(D84>=50,2,IF(D84>=49,2,"0"))))))) -> 2.5 | BA84: 2.5 | BB84: 3 | BC84: 2.5 | BD84: 2 | BE84: 2 | BF84: 3.5 | BG84: 2 | BH84: 2 | BI84: 2 | BJ84: 2 | BK84: 0 | BL84: 0 | BM84: 0 | BN84: 0 | BO84: 0 | BP84: 0 | BQ84: 0 | BR84: 0 | BS84: 0 | BT84: رياضيات_علوم | CM84: 118 | CN84: 40 | CP84: 0 | CQ84: 0 | CR84: 60 | CS84: 166 | CT84: ر/م
A85: =SUBTOTAL(103,$B$22:B85) -> 63 | B85: صفاء ابراهيم محمد صالح | C85: 8926110 | D85: 76 | E85: 58 | F85: 83 | G85: 84 | H85: 88 | I85: 61 | J85: 98 | K85: 74 | L85: 54 | M85: 91 | N85: 67 | X85: B+ | Y85: C | Z85: A | AA85: A | AB85: A | AC85: C+ | AD85: A | AE85: B | AF85: C | AG85: A | AH85: C+ | AI85: F | AJ85: F | AK85: F | AL85: F | AM85: F | AN85: F | AO85: F | AP85: F | AQ85: F | AR85: 20 | AU85: 1.6 | AV85: نجاح | AY85: نجاح | AZ85: 3.5 | BA85: 2 | BB85: 4 | BC85: 4 | BD85: 4 | BE85: 2.5 | BF85: 4 | BG85: 3 | BH85: 2 | BI85: 4 | BJ85: 2.5 | BK85: 0 | BL85: 0 | BM85: 0 | BN85: 0 | BO85: 0 | BP85: 0 | BQ85: 0 | BR85: 0 | BS85: 0 | BT85: رياضيات_علوم | CM85: 96 | CN85: 40 | CP85: 0 | CQ85: 0 | CR85: 60 | CS85: 96 | CT85: ر/م
A86: =SUBTOTAL(103,$B$22:B86) -> 64 | B86: عمار حسن عبدالمجيد خليفة | C86: 12767210 | D86: 71 | E86: 77 | F86: 78 | G86: 60 | H86: 50 | I86: 0 | J86: 95 | K86: 55 | L86: 57 | M86: 59 | N86: 66 | X86: B | Y86: B+ | Z86: B+ | AA86: C+ | AB86: C | AC86: F | AD86: A | AE86: C | AF86: C | AG86: C | AH86: C+ | AI86: F | AJ86: F | AK86: F | AL86: F | AM86: F | AN86: F | AO86: F | AP86: F | AQ86: F | AR86: 20 | AU86: 1.866666667 | AV86: ملحق | AX86: طرق تدريس خاصة/ | AY86: نجاح | AZ86: 3 | BA86: 3.5 | BB86: 3.5 | BC86: 2.5 | BD86: 2 | BE86: 0 | BF86: 4 | BG86: 2 | BH86: 2 | BI86: 2 | BJ86: 2.5 | BK86: 0 | BL86: 0 | BM86: 0 | BN86: 0 | BO86: 0 | BP86: 0 | BQ86: 0 | BR86: 0 | BS86: 0 | BT86: رياضيات_علوم | BZ86: طرق تدريس خاصة/ | CM86: 112 | CN86: 40 | CP86: 2 | CQ86: 2 | CR86: 60 | CS86: 112 | CT86: ر/م
A87: =SUBTOTAL(103,$B$22:B87) -> 65 | B87: محمد الحسن عبدالله جمعة | C87: 12825910 | D87: 77 | E87: 78 | F87: 68 | G87: 75 | H87: 53 | I87: 56 | J87: 96 | K87: 55 | L87: 59 | M87: 51 | N87: 51 | X87: B+ | Y87: B+ | Z87: C+ | AA87: B+ | AB87: C | AC87: C | AD87: A | AE87: C | AF87: C | AG87: C | AH87: C | AI87: F | AJ87: F | AK87: F | AL87: F | AM87: F | AN87: F | AO87: F | AP87: F | AQ87: F | AR87: 20 | AU87: 1.833333333 | AV87: نجاح | AY87: نجاح | AZ87: 3.5 | BA87: 3.5 | BB87: 2.5 | BC87: 3.5 | BD87: 2 | BE87: 2 | BF87: 4 | BG87: 2 | BH87: 2 | BI87: 2 | BJ87: 2 | BK87: 0 | BL87: 0 | BM87: 0 | BN87: 0 | BO87: 0 | BP87: 0 | BQ87: 0 | BR87: 0 | BS87: 0 | BT87: رياضيات_علوم | BV87: =IF(AND(E87<BV$22,$B87>0),BV$21,"") ->  | CM87: 110 | CN87: 40 | CP87: 0 | CQ87: 0 | CR87: 60 | CS87: 110 | CT87: ر/م
A88: =SUBTOTAL(103,$B$22:B88) -> 66 | B88: خديجة عيسى عثمان سعيد | C88: 11541010 | D88: 73 | E88: 61 | F88: 70 | G88: 61 | H88: 51 | I88: 51 | J88: 89 | K88: 50 | L88: 51 | M88: 68 | N88: 49 | X88: B | Y88: C+ | Z88: B | AA88: C+ | AB88: C | AC88: C | AD88: A | AE88: C | AF88: C | AG88: C+ | AH88: C* | AI88: F | AJ88: F | AK88: F | AL88: F | AM88: F | AN88: F | AO88: F | AP88: F | AQ88: F | AR88: 20 | AS88: =IF(ISERROR(IF(SUMPRODUCT(($AZ$22:$BS$22<>0)*($AZ88:$BS88=0)),"",SUMPRODUCT(($AZ$22:$BS$22)*($AZ88:$BS88)))),"",IF(SUMPRODUCT(($AZ$22:$BS$22<>0)*($AZ88:$BS88=0)),"",SUMPRODUCT(($AZ$22:$BS$22)*($AZ88:$BS88)))) -> 51 | AT88: =IF(ISERROR(IF(ISERROR(AS88/AR88),"",AS88/AR88)),"",IF(ISERROR(AS88/AR88),"",AS88/AR88)) -> 2.55 | AU88: 2.783333333 | AV88: نجاح | AY88: ملحق | AZ88: 3 | BA88: 2.5 | BB88: 3 | BC88: 2.5 | BD88: 2 | BE88: 2 | BF88: 4 | BG88: 2 | BH88: 2 | BI88: 2.5 | BJ88: 2 | BK88: 0 | BL88: 0 | BM88: 0 | BN88: 0 | BO88: 0 | BP88: 0 | BQ88: 0 | BR88: 0 | BS88: 0 | BT88: رياضيات_علوم | CM88: 116 | CN88: 40 | CP88: 0 | CQ88: 0 | CR88: =IF(ISERROR(CN88+AR88),"",CN88+AR88) -> 60 | CS88: =IF(ISERROR(CM88+AS88),"",CM88+AS88) -> 167 | CT88: ر/م
A89: =SUBTOTAL(103,$B$22:B89) -> 67 | B89: نمارق توفيق سليمان احمد | C89: 819509 | D89: 51 | E89: 59 | F89: 56 | G89: 60 | H89: 75 | I89: 56 | J89: 56 | K89: 66 | L89: 77 | M89: 50 | X89: C | Y89: C | Z89: C | AA89: C+ | AB89: B+ | AC89: C | AD89: C | AE89: C+ | AF89: B+ | AG89: C | AH89: F | AI89: F | AJ89: F | AK89: F | AL89: F | AM89: F | AN89: F | AO89: F | AP89: F | AQ89: F | AR89: =IF(AND($AR$22>0,B89>0),$AR$22,"") -> 20 | AS89: 48 | AT89: 2.4 | AU89: 2.866666667 | AV89: =IF(CP89=0,"نجاح",IF(CP89="-","",IF(CP89<=$CO$22,"ملحق",IF(CP89<=$CQ$21,"إعادة",IF(CP89>$CP$21,"فصل"))))) -> نجاح | AX89: =BU89&" "&BV89&" "&BW89&" "&BX89&" "&BY89&" "&BZ89&" "&CA89&" "&CB89&" "&CC89&" "&CD89&" "&CE89&" "&CF89&" "&CG89&" "&CH89&" "&CI89&" "&CJ89&" "&CK89&" "&CL89&" " ->  | AY89: نجاح | AZ89: 2 | BA89: 2 | BB89: 2 | BC89: 2.5 | BD89: 3.5 | BE89: 2 | BF89: 2 | BG89: 2.5 | BH89: 3.5 | BI89: 2 | BJ89: 0 | BK89: 0 | BL89: 0 | BM89: 0 | BN89: 0 | BO89: 0 | BP89: 0 | BQ89: 0 | BR89: 0 | BS89: 0 | BT89: لغة_عربية_اسلامية | BU89: =IF(AND(D89<BU$22,B89>0),BU$21,"") ->  | CM89: 124 | CN89: 40 | CP89: =IF(AND(B89>0,CQ89>=0),CQ89,"-") -> 0 | CQ89: =SUMIF(AZ89:BS89,0,$AZ$22:$BS$22) -> 0 | CR89: 60 | CS89: 172 | CT89: =CONCATENATE(IF(BT89=$CO$1,"عام",""),IF(BT89=$CO$2,"ع/س",""),IF(BT89=$CO$3,"ع/ج",""), IF(BT89=$CO$4,"ع/ت",""),IF(BT89=$CO$5,"ع/ط",""),IF(BT89=$CO$6,"E/ت",""),IF(BT89=$CO$7,"E/ج",""), IF(BT89=$CO$8,"E/ط",""),IF(BT89=$CO$9,"ر/م",""),IF(BT89=$CO$10,"ر/ط","")) -> ع/س
A90: =SUBTOTAL(103,$B$22:B90) -> 68 | B90: عثمان محمد علي احمد | C90: 329510 | D90: 57 | E90: 66 | F90: 56 | G90: 53 | H90: 60 | I90: 82 | J90: 68 | K90: 64 | L90: 50 | M90: 70 | X90: C | Y90: C+ | Z90: C | AA90: C | AB90: C+ | AC90: A | AD90: C+ | AE90: C+ | AF90: C | AG90: B | AH90: F | AI90: F | AJ90: F | AK90: F | AL90: F | AM90: F | AN90: F | AO90: F | AP90: F | AQ90: F | AR90: 20 | AS90: 50 | AT90: 2.5 | AU90: 2.75 | AV90: نجاح | AY90: نجاح | AZ90: 2 | BA90: 2.5 | BB90: 2 | BC90: 2 | BD90: 2.5 | BE90: 4 | BF90: 2.5 | BG90: 2.5 | BH90: 2 | BI90: 3 | BJ90: 0 | BK90: 0 | BL90: 0 | BM90: 0 | BN90: 0 | BO90: 0 | BP90: 0 | BQ90: 0 | BR90: 0 | BS90: 0 | BT90: لغة_عربية_اسلامية | CM90: 115 | CN90: 40 | CP90: 0 | CQ90: 0 | CR90: 60 | CS90: 165 | CT90: ع/س
A91: =SUBTOTAL(103,$B$22:B91) -> 69 | B91: يسرية عبدالله حسين محمد احمد | C91: 8987010 | D91: 75 | E91: 70 | F91: 94 | G91: 55 | H91: 75 | I91: 100 | J91: 86 | K91: 88 | L91: 71 | M91: 86 | X91: B+ | Y91: B | Z91: A | AA91: C | AB91: B+ | AC91: A | AD91: A | AE91: A | AF91: B | AG91: A | AH91: F | AI91: F | AJ91: F | AK91: F | AL91: F | AM91: F | AN91: F | AO91: F | AP91: F | AQ91: F | AR91: 20 | AS91: 70 | AT91: 3.5 | AU91: 2.766666667 | AV91: نجاح | AY91: نجاح | AZ91: 3.5 | BA91: 3 | BB91: 4 | BC91: 2 | BD91: 3.5 | BE91: 4 | BF91: 4 | BG91: 4 | BH91: 3 | BI91: 4 | BJ91: 0 | BK91: 0 | BL91: 0 | BM91: 0 | BN91: 0 | BO91: 0 | BP91: 0 | BQ91: 0 | BR91: 0 | BS91: 0 | BT91: لغة_عربية_اسلامية | CM91: 96 | CN91: 40 | CP91: 0 | CQ91: 0 | CR91: 60 | CS91: 166 | CT91: ع/س
A92: =SUBTOTAL(103,$B$22:B92) -> 70 | B92: ارض الشفاء محمد عبدالقيوم محمد | C92: 1252010 | D92: 51 | E92: 63 | F92: 57 | G92: 51 | H92: 64 | I92: 60 | J92: 68 | K92: 62 | L92: 50 | M92: 63 | X92: C | Y92: C+ | Z92: C | AA92: C | AB92: C+ | AC92: C+ | AD92: C+ | AE92: C+ | AF92: C | AG92: C+ | AH92: F | AI92: F | AJ92: F | AK92: F | AL92: F | AM92: F | AN92: F | AO92: F | AP92: F | AQ92: F | AR92: 20 | AS92: 46 | AT92: 2.3 | AU92: 2.9 | AV92: نجاح | AY92: نجاح | AZ92: 2 | BA92: 2.5 | BB92: 2 | BC92: 2 | BD92: 2.5 | BE92: 2.5 | BF92: 2.5 | BG92: 2.5 | BH92: 2 | BI92: 2.5 | BJ92: 0 | BK92: 0 | BL92: 0 | BM92: 0 | BN92: 0 | BO92: 0 | BP92: 0 | BQ92: 0 | BR92: 0 | BS92: 0 | BT92: لغة_عربية_اسلامية | CM92: 128 | CN92: 40 | CP92: 0 | CQ92: 0 | CR92: 60 | CS92: 174 | CT92: ع/س
A93: =SUBTOTAL(103,$B$22:B93) -> 71 | B93: اميمة عثمان محمد احمد محمد | C93: 11504610 | D93: 61 | E93: 59 | F93: 63 | G93: 51 | H93: 62 | I93: 69 | J93: 77 | K93: 61 | L93: 71 | M93: 70 | X93: C+ | Y93: C | Z93: C+ | AA93: C | AB93: C+ | AC93: C+ | AD93: B+ | AE93: C+ | AF93: B | AG93: B | AH93: F | AI93: F | AJ93: F | AK93: F | AL93: F | AM93: F | AN93: F | AO93: F | AP93: F | AQ93: F | AR93: 20 | AS93: 52 | AT93: 2.6 | AU93: 2.516666667 | AV93: نجاح | AW93: نجاح | AY93: ملحق | AZ93: 2.5 | BA93: 2 | BB93: 2.5 | BC93: 2 | BD93: 2.5 | BE93: 2.5 | BF93: 3.5 | BG93: 2.5 | BH93: 3 | BI93: 3 | BJ93: 0 | BK93: 0 | BL93: 0 | BM93: 0 | BN93: 0 | BO93: 0 | BP93: 0 | BQ93: 0 | BR93: 0 | BS93: 0 | BT93: لغة_عربية_اسلامية | CM93: 99 | CN93: 40 | CP93: 0 | CQ93: 0 | CR93: 60 | CS93: 151 | CT93: ع/س
A94: =SUBTOTAL(103,$B$22:B94) -> 72 | B94: ادريس عثمان عبدالله | C94: 2987410 | D94: 66 | E94: 56 | F94: 70 | G94: 60 | H94: 65 | I94: 89 | J94: 53 | K94: 56 | L94: 56 | M94: 55 | X94: C+ | Y94: C | Z94: B | AA94: C+ | AB94: C+ | AC94: A | AD94: C | AE94: C | AF94: C | AG94: C | AH94: F | AI94: F | AJ94: F | AK94: F | AL94: F | AM94: F | AN94: F | AO94: F | AP94: F | AQ94: F | AR94: 20 | AS94: 49 | AT94: 2.45 | AU94: 2.516666667 | AV94: نجاح | AY94: نجاح | AZ94: 2.5 | BA94: 2 | BB94: 3 | BC94: 2.5 | BD94: 2.5 | BE94: 4 | BF94: 2 | BG94: 2 | BH94: 2 | BI94: 2 | BJ94: 0 | BK94: 0 | BL94: 0 | BM94: 0 | BN94: 0 | BO94: 0 | BP94: 0 | BQ94: 0 | BR94: 0 | BS94: 0 | BT94: لغة_عربية_اسلامية | CM94: 102 | CN94: 40 | CP94: 0 | CQ94: 0 | CR94: 60 | CS94: 151 | CT94: ع/س
A95: =SUBTOTAL(103,$B$22:B95) -> 73 | B95: مريم محمد علي موسى | C95: 4857108 | D95: 61 | E95: 68 | F95: 74 | G95: 71 | H95: 77 | I95: 60 | J95: 79 | K95: 62 | L95: 64 | M95: 71 | X95: C+ | Y95: C+ | Z95: B | AA95: B | AB95: B+ | AC95: C+ | AD95: B+ | AE95: C+ | AF95: C+ | AG95: B | AH95: F | AI95: F | AJ95: F | AK95: F | AL95: F | AM95: F | AN95: F | AO95: F | AP95: F | AQ95: F | AR95: 20 | AU95: 1.85 | AV95: نجاح | AY95: نجاح | AZ95: 2.5 | BA95: 2.5 | BB95: 3 | BC95: 3 | BD95: 3.5 | BE95: 2.5 | BF95: 3.5 | BG95: 2.5 | BH95: 2.5 | BI95: 3 | BJ95: 0 | BK95: 0 | BL95: 0 | BM95: 0 | BN95: 0 | BO95: 0 | BP95: 0 | BQ95: 0 | BR95: 0 | BS95: 0 | BT95: لغة_عربية_اسلامية | CM95: 111 | CN95: 40 | CP95: 0 | CQ95: 0 | CR95: 60 | CS95: 111 | CT95: ع/س
A96: =SUBTOTAL(103,$B$22:B96) -> 74 | B96: عبدالله الغالى ادم يوسف | C96: 12111010 | D96: 77 | E96: 66 | F96: 52 | G96: 55 | H96: 62 | I96: 70 | J96: 50 | K96: 57 | L96: 53 | M96: 50 | X96: B+ | Y96: C+ | Z96: C | AA96: C | AB96: C+ | AC96: B | AD96: C | AE96: C | AF96: C | AG96: C | AH96: F | AI96: F | AJ96: F | AK96: F | AL96: F | AM96: F | AN96: F | AO96: F | AP96: F | AQ96: F | AR96: 20 | AS96: =IF(ISERROR(IF(SUMPRODUCT(($AZ$22:$BS$22<>0)*($AZ96:$BS96=0)),"",SUMPRODUCT(($AZ$22:$BS$22)*($AZ96:$BS96)))),"",IF(SUMPRODUCT(($AZ$22:$BS$22<>0)*($AZ96:$BS96=0)),"",SUMPRODUCT(($AZ$22:$BS$22)*($AZ96:$BS96)))) -> 47 | AT96: =IF(ISERROR(IF(ISERROR(AS96/AR96),"",AS96/AR96)),"",IF(ISERROR(AS96/AR96),"",AS96/AR96)) -> 2.35 | AU96: 2.933333333 | AV96: نجاح | AY96: نجاح | AZ96: 3.5 | BA96: 2.5 | BB96: 2 | BC96: 2 | BD96: 2.5 | BE96: 3 | BF96: 2 | BG96: 2 | BH96: 2 | BI96: 2 | BJ96: 0 | BK96: 0 | BL96: 0 | BM96: 0 | BN96: 0 | BO96: 0 | BP96: 0 | BQ96: 0 | BR96: 0 | BS96: 0 | BT96: لغة_عربية_اسلامية | CM96: 129 | CN96: 40 | CP96: 0 | CQ96: 0 | CR96: 60 | CS96: 176 | CT96: ع/س
A97: =SUBTOTAL(103,$B$22:B97) -> 75 | B97: منى عثمان محمد اداله | C97: 11669510 | D97: 63 | E97: 65 | F97: 50 | G97: 60 | H97: 71 | I97: 68 | J97: 51 | K97: 56 | L97: 70 | M97: 69 | X97: C+ | Y97: C+ | Z97: C | AA97: C+ | AB97: B | AC97: C+ | AD97: C | AE97: C | AF97: B | AG97: C+ | AH97: F | AI97: F | AJ97: F | AK97: F | AL97: F | AM97: F | AN97: F | AO97: F | AP97: F | AQ97: F | AR97: 20 | AS97: 49 | AT97: 2.45 | AU97: 2.883333333 | AV97: نجاح | AY97: نجاح | AZ97: 2.5 | BA97: 2.5 | BB97: 2 | BC97: 2.5 | BD97: 3 | BE97: 2.5 | BF97: 2 | BG97: 2 | BH97: 3 | BI97: 2.5 | BJ97: 0 | BK97: 0 | BL97: 0 | BM97: 0 | BN97: 0 | BO97: 0 | BP97: 0 | BQ97: 0 | BR97: 0 | BS97: 0 | BT97: لغة_عربية_اسلامية | CM97: 124 | CN97: 40 | CP97: 0 | CQ97: 0 | CR97: 60 | CS97: 173 | CT97: ع/س
A98: =SUBTOTAL(103,$B$22:B98) -> 76 | B98: ماجدولين محمد سربل | C98: 4898608 | D98: 62 | E98: 70 | F98: 64 | G98: 63 | H98: 55 | I98: 56 | J98: 79 | K98: 61 | L98: 65 | M98: 70 | X98: C+ | Y98: B | Z98: C+ | AA98: C+ | AB98: C | AC98: C | AD98: B+ | AE98: C+ | AF98: C+ | AG98: B | AH98: F | AI98: F | AJ98: F | AK98: F | AL98: F | AM98: F | AN98: F | AO98: F | AP98: F | AQ98: F | AR98: 20 | AS98: 52 | AT98: 2.6 | AU98: 2.55 | AV98: نجاح | AY98: نجاح | AZ98: 2.5 | BA98: 3 | BB98: 2.5 | BC98: 2.5 | BD98: 2 | BE98: 2 | BF98: 3.5 | BG98: 2.5 | BH98: 2.5 | BI98: 3 | BJ98: 0 | BK98: 0 | BL98: 0 | BM98: 0 | BN98: 0 | BO98: 0 | BP98: 0 | BQ98: 0 | BR98: 0 | BS98: 0 | BT98: لغة_عربية_اسلامية | CM98: 101 | CN98: 40 | CP98: 0 | CQ98: 0 | CR98: 60 | CS98: 153 | CT98: ع/س
A99: =SUBTOTAL(103,$B$22:B99) -> 77 | B99: فاطمة محمد الدور بردان | C99: 12751010 | D99: 50 | E99: 60 | F99: 50 | G99: 58 | H99: 52 | I99: 75 | J99: 55 | K99: 68 | L99: 52 | M99: 65 | X99: C | Y99: C+ | Z99: C | AA99: C | AB99: C | AC99: B+ | AD99: C | AE99: C+ | AF99: C | AG99: C+ | AH99: F | AI99: F | AJ99: F | AK99: F | AL99: F | AM99: F | AN99: F | AO99: F | AP99: F | AQ99: F | AR99: 20 | AS99: 46 | AT99: 2.3 | AU99: 2.616666667 | AV99: نجاح | AY99: نجاح | AZ99: 2 | BA99: 2.5 | BB99: 2 | BC99: 2 | BD99: 2 | BE99: 3.5 | BF99: 2 | BG99: 2.5 | BH99: 2 | BI99: 2.5 | BJ99: 0 | BK99: 0 | BL99: 0 | BM99: 0 | BN99: 0 | BO99: 0 | BP99: 0 | BQ99: 0 | BR99: 0 | BS99: 0 | BT99: لغة_عربية_اسلامية | CM99: 111 | CN99: 40 | CP99: 0 | CQ99: 0 | CR99: 60 | CS99: 157 | CT99: ع/س
A100: =SUBTOTAL(103,$B$22:B100) -> 78 | B100: عائشة ادريس محمد حامد | C100: 11770210 | D100: 56 | E100: 52 | F100: 67 | G100: 51 | H100: 60 | I100: 81 | J100: 74 | K100: 64 | L100: 63 | M100: 70 | X100: C | Y100: C | Z100: C+ | AA100: C | AB100: C+ | AC100: A | AD100: B | AE100: C+ | AF100: C+ | AG100: B | AH100: F | AI100: F | AJ100: F | AK100: F | AL100: F | AM100: F | AN100: F | AO100: F | AP100: F | AQ100: F | AR100: 20 | AS100: 52 | AT100: 2.6 | AU100: =IF(ISERROR(CS100/CR100),"",CS100/CR100) -> 2.3 | AV100: نجاح | AY100: نجاح | AZ100: 2 | BA100: 2 | BB100: 2.5 | BC100: 2 | BD100: 2.5 | BE100: 4 | BF100: 3 | BG100: 2.5 | BH100: 2.5 | BI100: 3 | BJ100: 0 | BK100: 0 | BL100: 0 | BM100: 0 | BN100: 0 | BO100: 0 | BP100: 0 | BQ100: 0 | BR100: 0 | BS100: 0 | BT100: لغة_عربية_اسلامية | CM100: 86 | CN100: 40 | CP100: 0 | CQ100: 0 | CR100: 60 | CS100: 138 | CT100: ع/س
A101: =SUBTOTAL(103,$B$22:B101) -> 79 | B101: محمد أوهاج أحمد اوهاج | C101: 8679709 | D101: 68 | E101: 64 | F101: 50 | G101: 62 | H101: 67 | I101: 70 | J101: 70 | K101: 57 | L101: 56 | M101: 50 | X101: C+ | Y101: C+ | Z101: C | AA101: C+ | AB101: C+ | AC101: B | AD101: B | AE101: C | AF101: C | AG101: C | AH101: F | AI101: F | AJ101: F | AK101: F | AL101: F | AM101: F | AN101: F | AO101: F | AP101: F | AQ101: F | AR101: 20 | AS101: 48 | AT101: 2.4 | AU101: 2.75 | AV101: نجاح | AY101: نجاح | AZ101: 2.5 | BA101: 2.5 | BB101: 2 | BC101: 2.5 | BD101: 2.5 | BE101: 3 | BF101: 3 | BG101: 2 | BH101: 2 | BI101: 2 | BJ101: 0 | BK101: 0 | BL101: 0 | BM101: 0 | BN101: 0 | BO101: 0 | BP101: 0 | BQ101: 0 | BR101: 0 | BS101: 0 | BT101: لغة_عربية_اسلامية | CM101: 117 | CN101: 40 | CP101: 0 | CQ101: 0 | CR101: 60 | CS101: 165 | CT101: ع/س
A102: =SUBTOTAL(103,$B$22:B102) -> 80 | B102: هاجرابراهيم الخضر احمد | C102: 26491310 | D102: 55 | E102: 60 | F102: 50 | G102: 49 | H102: 62 | I102: 60 | J102: 63 | K102: 58 | L102: 75 | M102: 70 | X102: C | Y102: C+ | Z102: C | AA102: C* | AB102: C+ | AC102: C+ | AD102: C+ | AE102: C | AF102: B+ | AG102: B | AH102: F | AI102: F | AJ102: F | AK102: F | AL102: F | AM102: F | AN102: F | AO102: F | AP102: F | AQ102: F | AR102: 20 | AS102: 49 | AT102: 2.45 | AU102: 2.533333333 | AV102: نجاح | AW102: نجاح | AY102: ملحق | AZ102: 2 | BA102: 2.5 | BB102: 2 | BC102: 2 | BD102: 2.5 | BE102: 2.5 | BF102: 2.5 | BG102: 2 | BH102: 3.5 | BI102: 3 | BJ102: 0 | BK102: 0 | BL102: 0 | BM102: 0 | BN102: 0 | BO102: 0 | BP102: 0 | BQ102: 0 | BR102: 0 | BS102: 0 | BT102: لغة_عربية_اسلامية | CM102: 103 | CN102: 40 | CP102: 0 | CQ102: 0 | CR102: 60 | CS102: 152 | CT102: ع/س
A103: =SUBTOTAL(103,$B$22:B103) -> 81 | B103: عمار سعيد علي حامد | C103: 11542610 | D103: 67 | E103: 54 | F103: 63 | G103: 51 | H103: 58 | I103: 70 | J103: 74 | K103: 53 | L103: 81 | M103: 57 | X103: C+ | Y103: C | Z103: C+ | AA103: C | AB103: C | AC103: B | AD103: B | AE103: C | AF103: A | AG103: C | AH103: F | AI103: F | AJ103: F | AK103: F | AL103: F | AM103: F | AN103: F | AO103: F | AP103: F | AQ103: F | AR103: 20 | AU103: 1.833333333 | AY103: نجاح | AZ103: 2.5 | BA103: 2 | BB103: 2.5 | BC103: 2 | BD103: 2 | BE103: 3 | BF103: 3 | BG103: 2 | BH103: 4 | BI103: 2 | BJ103: 0 | BK103: 0 | BL103: 0 | BM103: 0 | BN103: 0 | BO103: 0 | BP103: 0 | BQ103: 0 | BR103: 0 | BS103: 0 | BT103: لغة_عربية_اسلامية | CM103: 110 | CN103: 40 | CP103: 0 | CQ103: 0 | CR103: 60 | CS103: 110 | CT103: ع/س
A104: =SUBTOTAL(103,$B$22:B104) -> 82 | B104: زينب صالح ابراهيم محمد | C104: 320710 | D104: 74 | E104: 82 | F104: 82 | G104: 54 | H104: 65 | I104: 88 | J104: 84 | K104: 58 | L104: 72 | M104: 73 | X104: B | Y104: A | Z104: A | AA104: C | AB104: C+ | AC104: A | AD104: A | AE104: C | AF104: B | AG104: B | AH104: F | AI104: F | AJ104: F | AK104: F | AL104: F | AM104: F | AN104: F | AO104: F | AP104: F | AQ104: F | AR104: 20 | AU104: 1.833333333 | AV104: نجاح | AY104: نجاح | AZ104: 3 | BA104: 4 | BB104: 4 | BC104: 2 | BD104: 2.5 | BE104: 4 | BF104: 4 | BG104: 2 | BH104: 3 | BI104: 3 | BJ104: 0 | BK104: 0 | BL104: 0 | BM104: 0 | BN104: 0 | BO104: 0 | BP104: 0 | BQ104: 0 | BR104: 0 | BS104: 0 | BT104: لغة_عربية_اسلامية | BV104: =IF(AND(E104<BV$22,$B104>0),BV$21,"") ->  | CM104: 110 | CN104: 40 | CP104: 0 | CQ104: 0 | CR104: 60 | CS104: 110 | CT104: ع/س
A105: =SUBTOTAL(103,$B$22:B105) -> 83 | B105: ملكة علي محمد احمد علي | C105: 2501310 | D105: 54 | E105: 62 | F105: 50 | G105: 56 | H105: 55 | I105: 79 | J105: 77 | K105: 58 | L105: 53 | M105: 65 | X105: C | Y105: C+ | Z105: C | AA105: C | AB105: C | AC105: B+ | AD105: B+ | AE105: C | AF105: C | AG105: C+ | AH105: F | AI105: F | AJ105: F | AK105: F | AL105: F | AM105: F | AN105: F | AO105: F | AP105: F | AQ105: F | AR105: 20 | AS105: 48 | AT105: =IF(ISERROR(IF(ISERROR(AS105/AR105),"",AS105/AR105)),"",IF(ISERROR(AS105/AR105),"",AS105/AR105)) -> 2.4 | AU105: 2.766666667 | AV105: نجاح | AY105: نجاح | AZ105: 2 | BA105: 2.5 | BB105: 2 | BC105: 2 | BD105: 2 | BE105: 3.5 | BF105: 3.5 | BG105: 2 | BH105: 2 | BI105: 2.5 | BJ105: 0 | BK105: 0 | BL105: 0 | BM105: 0 | BN105: 0 | BO105: 0 | BP105: 0 | BQ105: 0 | BR105: 0 | BS105: 0 | BT105: لغة_عربية_اسلامية | CM105: 118 | CN105: 40 | CP105: 0 | CQ105: 0 | CR105: 60 | CS105: 166 | CT105: ع/س
A106: =SUBTOTAL(103,$B$22:B106) -> 84 | B106: محمود على محمد على | C106: 11504110 | D106: 82 | E106: 61 | F106: 84 | G106: 60 | H106: 70 | I106: 86 | J106: 79 | K106: 72 | L106: 66 | M106: 62 | X106: A | Y106: C+ | Z106: A | AA106: C+ | AB106: B | AC106: A | AD106: B+ | AE106: B | AF106: C+ | AG106: C+ | AH106: F | AI106: F | AJ106: F | AK106: F | AL106: F | AM106: F | AN106: F | AO106: F | AP106: F | AQ106: F | AR106: 20 | AS106: 63 | AT106: 3.15 | AU106: 3.183333333 | AV106: نجاح | AY106: نجاح | AZ106: 4 | BA106: 2.5 | BB106: 4 | BC106: 2.5 | BD106: 3 | BE106: 4 | BF106: 3.5 | BG106: 3 | BH106: 2.5 | BI106: 2.5 | BJ106: 0 | BK106: 0 | BL106: 0 | BM106: 0 | BN106: 0 | BO106: 0 | BP106: 0 | BQ106: 0 | BR106: 0 | BS106: 0 | BT106: لغة_عربية_اسلامية | CM106: 128 | CN106: 40 | CP106: 0 | CQ106: 0 | CR106: 60 | CS106: 191 | CT106: ع/س
A107: =SUBTOTAL(103,$B$22:B107) -> 85 | B107: وداد موسى محمد | C107: 2684608 | D107: 76 | E107: 69 | F107: 92 | G107: 64 | H107: 80 | I107: 97 | J107: 86 | K107: 85 | L107: 79 | M107: 86 | X107: B+ | Y107: C+ | Z107: A | AA107: C+ | AB107: A | AC107: A | AD107: A | AE107: A | AF107: B+ | AG107: A | AH107: F | AI107: F | AJ107: F | AK107: F | AL107: F | AM107: F | AN107: F | AO107: F | AP107: F | AQ107: F | AR107: 20 | AS107: 72 | AT107: 3.6 | AU107: 3.733333333 | AV107: نجاح | AY107: نجاح | AZ107: 3.5 | BA107: 2.5 | BB107: 4 | BC107: 2.5 | BD107: 4 | BE107: 4 | BF107: 4 | BG107: 4 | BH107: 3.5 | BI107: 4 | BJ107: 0 | BK107: 0 | BL107: 0 | BM107: 0 | BN107: 0 | BO107: 0 | BP107: 0 | BQ107: 0 | BR107: 0 | BS107: 0 | BT107: لغة_عربية_اسلامية | CM107: 152 | CN107: 40 | CP107: 0 | CQ107: 0 | CR107: 60 | CS107: 224 | CT107: ع/س
A108: =SUBTOTAL(103,$B$22:B108) -> 86 | B108: فاطمة ابكر مالم ابراهيم محمد | C108: 488010 | D108: 58 | E108: 61 | F108: 63 | G108: 68 | H108: 55 | I108: 71 | J108: 57 | K108: 56 | L108: 57 | M108: 71 | X108: C | Y108: C+ | Z108: C+ | AA108: C+ | AB108: C | AC108: B | AD108: C | AE108: C | AF108: C | AG108: B | AH108: F | AI108: F | AJ108: F | AK108: F | AL108: F | AM108: F | AN108: F | AO108: F | AP108: F | AQ108: F | AR108: 20 | AS108: 47 | AT108: 2.35 | AU108: 2.9 | AV108: نجاح | AY108: نجاح | AZ108: 2 | BA108: 2.5 | BB108: 2.5 | BC108: 2.5 | BD108: 2 | BE108: 3 | BF108: 2 | BG108: 2 | BH108: 2 | BI108: 3 | BJ108: 0 | BK108: 0 | BL108: 0 | BM108: 0 | BN108: 0 | BO108: 0 | BP108: 0 | BQ108: 0 | BR108: 0 | BS108: 0 | BT108: لغة_عربية_اسلامية | CM108: 127 | CN108: 40 | CP108: 0 | CQ108: 0 | CR108: 60 | CS108: 174 | CT108: ع/س
A109: =SUBTOTAL(103,$B$22:B109) -> 87 | B109: اشجان عثمان حسن محمد | C109: 12629110 | D109: 58 | E109: 60 | F109: 66 | G109: 52 | H109: 57 | I109: 55 | J109: 49 | K109: 58 | L109: 62 | M109: 57 | X109: C | Y109: C+ | Z109: C+ | AA109: C | AB109: C | AC109: C | AD109: C* | AE109: C | AF109: C+ | AG109: C | AH109: F | AI109: F | AJ109: F | AK109: F | AL109: F | AM109: F | AN109: F | AO109: F | AP109: F | AQ109: F | AR109: 20 | AS109: 43 | AT109: 2.15 | AU109: 2.6 | AV109: نجاح | AW109: نجاح | AY109: ملحق | AZ109: 2 | BA109: 2.5 | BB109: 2.5 | BC109: 2 | BD109: 2 | BE109: 2 | BF109: 2 | BG109: 2 | BH109: 2.5 | BI109: 2 | BJ109: 0 | BK109: 0 | BL109: 0 | BM109: 0 | BN109: 0 | BO109: 0 | BP109: 0 | BQ109: 0 | BR109: 0 | BS109: 0 | BT109: لغة_عربية_اسلامية | CM109: 113 | CN109: 40 | CP109: 0 | CQ109: 0 | CR109: 60 | CS109: 156 | CT109: ع/س
A110: =SUBTOTAL(103,$B$22:B110) -> 88 | B110: انس التجاني الفكي عبدالرحمن | C110: 8061008 | D110: 73 | E110: 69 | F110: 64 | G110: 63 | H110: 70 | I110: 69 | J110: 79 | K110: 58 | L110: 53 | M110: 61 | X110: B | Y110: C+ | Z110: C+ | AA110: C+ | AB110: B | AC110: C+ | AD110: B+ | AE110: C | AF110: C | AG110: C+ | AH110: F | AI110: F | AJ110: F | AK110: F | AL110: F | AM110: F | AN110: F | AO110: F | AP110: F | AQ110: F | AR110: 20 | AS110: 52 | AT110: 2.6 | AU110: 2.616666667 | AV110: نجاح | AY110: نجاح | AZ110: 3 | BA110: 2.5 | BB110: 2.5 | BC110: 2.5 | BD110: 3 | BE110: 2.5 | BF110: 3.5 | BG110: 2 | BH110: 2 | BI110: 2.5 | BJ110: 0 | BK110: 0 | BL110: 0 | BM110: 0 | BN110: 0 | BO110: 0 | BP110: 0 | BQ110: 0 | BR110: 0 | BS110: 0 | BT110: لغة_عربية_اسلامية | CM110: 105 | CN110: 40 | CP110: 0 | CQ110: 0 | CR110: 60 | CS110: 157 | CT110: ع/س
A111: =SUBTOTAL(103,$B$22:B111) -> 89 | B111: علوية عثمان دفع الله محمد علي | C111: 12105910 | D111: 53 | E111: 59 | F111: 51 | G111: 54 | H111: 67 | I111: 65 | J111: 50 | K111: 58 | L111: 54 | M111: 65 | X111: C | Y111: C | Z111: C | AA111: C | AB111: C+ | AC111: C+ | AD111: =IF($B111=0,"",IF(J111>100,"-",IF(J111>=80,"A",IF(J111>=75,"B+",IF(J111>=70,"B",IF(J111>=60,"C+",IF(J111>=50,"C",IF(J111>=49,"C*","F")))))))) -> C | AE111: C | AF111: C | AG111: C+ | AH111: F | AI111: F | AJ111: F | AK111: F | AL111: F | AM111: F | AN111: F | AO111: F | AP111: F | AQ111: F | AR111: 20 | AS111: 43 | AT111: 2.15 | AU111: 2.666666667 | AV111: نجاح | AY111: نجاح | AZ111: 2 | BA111: 2 | BB111: 2 | BC111: 2 | BD111: 2.5 | BE111: 2.5 | BF111: =IF(J111>100,"-",IF(J111>=80,4,IF(J111>=75,3.5,IF(J111>=70,3,IF(J111>=60,2.5,IF(J111>=50,2,IF(J111>=49,2,"0"))))))) -> 2 | BG111: 2 | BH111: 2 | BI111: 2.5 | BJ111: 0 | BK111: 0 | BL111: 0 | BM111: 0 | BN111: 0 | BO111: 0 | BP111: 0 | BQ111: 0 | BR111: 0 | BS111: 0 | BT111: لغة_عربية_اسلامية | CM111: 117 | CN111: 40 | CP111: 0 | CQ111: 0 | CR111: 60 | CS111: 160 | CT111: ع/س
A112: =SUBTOTAL(103,$B$22:B112) -> 90 | B112: مني عبد الرحيم آدم | C112: 626309 | D112: 74 | E112: 63 | F112: 86 | G112: 60 | H112: 71 | I112: 83 | J112: 86 | K112: 75 | L112: 55 | M112: 80 | X112: B | Y112: C+ | Z112: A | AA112: C+ | AB112: B | AC112: A | AD112: A | AE112: B+ | AF112: C | AG112: A | AH112: F | AI112: F | AJ112: F | AK112: F | AL112: F | AM112: F | AN112: F | AO112: F | AP112: F | AQ112: F | AR112: 20 | AS112: 65 | AT112: 3.25 | AU112: 2.716666667 | AV112: نجاح | AY112: نجاح | AZ112: 3 | BA112: 2.5 | BB112: 4 | BC112: 2.5 | BD112: 3 | BE112: 4 | BF112: 4 | BG112: 3.5 | BH112: 2 | BI112: 4 | BJ112: 0 | BK112: 0 | BL112: 0 | BM112: 0 | BN112: 0 | BO112: 0 | BP112: 0 | BQ112: 0 | BR112: 0 | BS112: 0 | BT112: لغة_عربية_اسلامية | CM112: 98 | CN112: 40 | CP112: 0 | CQ112: 0 | CR112: 60 | CS112: 163 | CT112: ع/س
A113: =SUBTOTAL(103,$B$22:B113) -> 91 | B113: ام على محمد باكاش مكاوى | C113: 300610 | D113: 60 | E113: 50 | F113: 50 | G113: 60 | H113: 70 | I113: 69 | J113: 78 | K113: 67 | L113: 57 | M113: 56 | X113: C+ | Y113: C | Z113: C | AA113: C+ | AB113: B | AC113: C+ | AD113: B+ | AE113: C+ | AF113: C | AG113: C | AH113: F | AI113: F | AJ113: F | AK113: F | AL113: F | AM113: F | AN113: F | AO113: F | AP113: F | AQ113: F | AR113: 20 | AS113: 49 | AT113: 2.45 | AU113: 2.633333333 | AV113: نجاح | AY113: نجاح | AZ113: 2.5 | BA113: 2 | BB113: 2 | BC113: 2.5 | BD113: 3 | BE113: 2.5 | BF113: 3.5 | BG113: 2.5 | BH113: 2 | BI113: 2 | BJ113: 0 | BK113: 0 | BL113: 0 | BM113: 0 | BN113: 0 | BO113: 0 | BP113: 0 | BQ113: 0 | BR113: 0 | BS113: 0 | BT113: لغة_عربية_اسلامية | CM113: 109 | CN113: 40 | CP113: 0 | CQ113: 0 | CR113: 60 | CS113: 158 | CT113: ع/س
A114: =SUBTOTAL(103,$B$22:B114) -> 92 | B114: معزة عبدالله حسن فضل الله | C114: 322610 | D114: 68 | E114: 50 | F114: 57 | G114: 49 | H114: 50 | I114: 59 | J114: 79 | K114: 75 | L114: 61 | M114: 68 | X114: C+ | Y114: C | Z114: C | AA114: C* | AB114: C | AC114: C | AD114: B+ | AE114: B+ | AF114: C+ | AG114: C+ | AH114: F | AI114: F | AJ114: F | AK114: F | AL114: F | AM114: F | AN114: F | AO114: F | AP114: F | AQ114: F | AR114: 20 | AS114: 49 | AT114: 2.45 | AU114: 2.733333333 | AV114: نجاح | AW114: نجاح | AY114: ملحق | AZ114: 2.5 | BA114: 2 | BB114: 2 | BC114: 2 | BD114: 2 | BE114: 2 | BF114: 3.5 | BG114: 3.5 | BH114: 2.5 | BI114: 2.5 | BJ114: 0 | BK114: 0 | BL114: 0 | BM114: 0 | BN114: 0 | BO114: 0 | BP114: 0 | BQ114: 0 | BR114: 0 | BS114: 0 | BT114: لغة_عربية_اسلامية | CM114: 115 | CN114: 40 | CP114: 0 | CQ114: 0 | CR114: 60 | CS114: 164 | CT114: ع/س
A115: =SUBTOTAL(103,$B$22:B115) -> 93 | B115: الهام التوم صالح بابكر | C115: 329710 | D115: 62 | E115: 72 | F115: 53 | G115: 51 | H115: 60 | I115: 55 | J115: 78 | K115: 56 | L115: 57 | M115: 75 | X115: C+ | Y115: B | Z115: C | AA115: C | AB115: C+ | AC115: C | AD115: B+ | AE115: C | AF115: C | AG115: B+ | AH115: F | AI115: F | AJ115: F | AK115: F | AL115: F | AM115: F | AN115: F | AO115: F | AP115: F | AQ115: F | AR115: 20 | AU115: 1.683333333 | AV115: نجاح | AY115: نجاح | AZ115: 2.5 | BA115: 3 | BB115: 2 | BC115: 2 | BD115: 2.5 | BE115: 2 | BF115: 3.5 | BG115: 2 | BH115: 2 | BI115: 3.5 | BJ115: 0 | BK115: 0 | BL115: 0 | BM115: 0 | BN115: 0 | BO115: 0 | BP115: 0 | BQ115: 0 | BR115: 0 | BS115: 0 | BT115: لغة_عربية_اسلامية | CM115: 101 | CN115: 40 | CP115: 0 | CQ115: 0 | CR115: 60 | CS115: 101 | CT115: ع/س
A116: =SUBTOTAL(103,$B$22:B116) -> 94 | B116: مريم محمود احمد أوشيك | C116: 117415010 | D116: 51 | E116: 60 | F116: 51 | G116: 58 | H116: 71 | I116: 81 | J116: 59 | K116: 50 | L116: 70 | M116: 77 | X116: C | Y116: C+ | Z116: C | AA116: C | AB116: B | AC116: A | AD116: C | AE116: C | AF116: B | AG116: B+ | AH116: F | AI116: F | AJ116: F | AK116: F | AL116: F | AM116: F | AN116: F | AO116: F | AP116: F | AQ116: F | AR116: 20 | AS116: =IF(ISERROR(IF(SUMPRODUCT(($AZ$22:$BS$22<>0)*($AZ116:$BS116=0)),"",SUMPRODUCT(($AZ$22:$BS$22)*($AZ116:$BS116)))),"",IF(SUMPRODUCT(($AZ$22:$BS$22<>0)*($AZ116:$BS116=0)),"",SUMPRODUCT(($AZ$22:$BS$22)*($AZ116:$BS116)))) -> 52 | AT116: =IF(ISERROR(IF(ISERROR(AS116/AR116),"",AS116/AR116)),"",IF(ISERROR(AS116/AR116),"",AS116/AR116)) -> 2.6 | AU116: 3.25 | AV116: نجاح | AY116: نجاح | AZ116: 2 | BA116: 2.5 | BB116: 2 | BC116: 2 | BD116: 3 | BE116: 4 | BF116: 2 | BG116: 2 | BH116: 3 | BI116: 3.5 | BJ116: 0 | BK116: 0 | BL116: 0 | BM116: 0 | BN116: 0 | BO116: 0 | BP116: 0 | BQ116: 0 | BR116: 0 | BS116: 0 | BT116: لغة_عربية_اسلامية | CM116: 143 | CN116: 40 | CP116: 0 | CQ116: 0 | CR116: 60 | CS116: 195 | CT116: ع/س
A117: =SUBTOTAL(103,$B$22:B117) -> 95 | B117: حسنة على عثمان فايد | C117: 11417810 | D117: 73 | E117: 69 | F117: 76 | G117: 55 | H117: 80 | I117: 82 | J117: 78 | K117: 51 | L117: 76 | M117: 75 | X117: B | Y117: C+ | Z117: B+ | AA117: C | AB117: A | AC117: A | AD117: B+ | AE117: C | AF117: B+ | AG117: B+ | AH117: F | AI117: F | AJ117: F | AK117: F | AL117: F | AM117: F | AN117: F | AO117: F | AP117: F | AQ117: F | AR117: 20 | AU117: 1.55 | AV117: نجاح | AY117: نجاح | AZ117: 3 | BA117: 2.5 | BB117: 3.5 | BC117: 2 | BD117: 4 | BE117: 4 | BF117: 3.5 | BG117: 2 | BH117: 3.5 | BI117: 3.5 | BJ117: 0 | BK117: 0 | BL117: 0 | BM117: 0 | BN117: 0 | BO117: 0 | BP117: 0 | BQ117: 0 | BR117: 0 | BS117: 0 | BT117: لغة_عربية_اسلامية | CM117: 93 | CN117: 40 | CP117: 0 | CQ117: 0 | CR117: 60 | CS117: 93 | CT117: ع/س
A118: =SUBTOTAL(103,$B$22:B118) -> 96 | B118: نصره عادل منصور عثمان | C118: 27487810 | D118: 69 | E118: 71 | F118: 85 | G118: 61 | H118: 76 | I118: 91 | J118: 86 | K118: 77 | L118: 66 | M118: 82 | X118: C+ | Y118: B | Z118: A | AA118: C+ | AB118: B+ | AC118: A | AD118: A | AE118: B+ | AF118: C+ | AG118: A | AH118: F | AI118: F | AJ118: F | AK118: F | AL118: F | AM118: F | AN118: F | AO118: F | AP118: F | AQ118: F | AR118: 20 | AS118: 67 | AT118: =IF(ISERROR(IF(ISERROR(AS118/AR118),"",AS118/AR118)),"",IF(ISERROR(AS118/AR118),"",AS118/AR118)) -> 3.35 | AU118: 3.05 | AV118: نجاح | AY118: نجاح | AZ118: 2.5 | BA118: 3 | BB118: 4 | BC118: 2.5 | BD118: 3.5 | BE118: 4 | BF118: 4 | BG118: 3.5 | BH118: 2.5 | BI118: 4 | BJ118: 0 | BK118: 0 | BL118: 0 | BM118: 0 | BN118: 0 | BO118: 0 | BP118: 0 | BQ118: 0 | BR118: 0 | BS118: 0 | BT118: لغة_عربية_اسلامية | CM118: 116 | CN118: 40 | CP118: 0 | CQ118: 0 | CR118: 60 | CS118: 183 | CT118: ع/س
A119: =SUBTOTAL(103,$B$22:B119) -> 97 | B119: عبدالرحيم محمد علي محمد | C119: 4871408 | D119: 60 | E119: 59 | F119: 60 | G119: 52 | H119: 60 | I119: 56 | J119: 62 | K119: 50 | L119: 50 | M119: 49 | X119: C+ | Y119: C | Z119: C+ | AA119: C | AB119: C+ | AC119: C | AD119: C+ | AE119: C | AF119: C | AG119: C* | AH119: F | AI119: F | AJ119: F | AK119: F | AL119: F | AM119: F | AN119: F | AO119: F | AP119: F | AQ119: F | AR119: 20 | AS119: 44 | AT119: =IF(ISERROR(IF(ISERROR(AS119/AR119),"",AS119/AR119)),"",IF(ISERROR(AS119/AR119),"",AS119/AR119)) -> 2.2 | AU119: 2.583333333 | AV119: نجاح | AW119: نجاح | AY119: ملحق | AZ119: 2.5 | BA119: 2 | BB119: 2.5 | BC119: 2 | BD119: 2.5 | BE119: 2 | BF119: 2.5 | BG119: 2 | BH119: 2 | BI119: 2 | BJ119: 0 | BK119: 0 | BL119: 0 | BM119: 0 | BN119: 0 | BO119: 0 | BP119: 0 | BQ119: 0 | BR119: 0 | BS119: 0 | BT119: لغة_عربية_اسلامية | CM119: 111 | CN119: 40 | CP119: 0 | CQ119: 0 | CR119: 60 | CS119: 155 | CT119: ع/س
A120: =SUBTOTAL(103,$B$22:B120) -> 98 | B120: سمؤال عبدالرحيم محمد | C120: 6957008 | D120: 70 | E120: 61 | F120: 67 | G120: 67 | H120: 72 | I120: 80 | J120: 62 | K120: 68 | L120: 72 | M120: 71 | X120: B | Y120: C+ | Z120: C+ | AA120: C+ | AB120: B | AC120: A | AD120: C+ | AE120: C+ | AF120: B | AG120: B | AH120: F | AI120: F | AJ120: F | AK120: F | AL120: F | AM120: F | AN120: F | AO120: F | AP120: F | AQ120: F | AR120: 20 | AS120: 57 | AT120: =IF(ISERROR(IF(ISERROR(AS120/AR120),"",AS120/AR120)),"",IF(ISERROR(AS120/AR120),"",AS120/AR120)) -> 2.85 | AU120: 2.633333333 | AV120: نجاح | AY120: نجاح | AZ120: 3 | BA120: 2.5 | BB120: 2.5 | BC120: 2.5 | BD120: 3 | BE120: 4 | BF120: 2.5 | BG120: 2.5 | BH120: 3 | BI120: 3 | BJ120: 0 | BK120: 0 | BL120: 0 | BM120: 0 | BN120: 0 | BO120: 0 | BP120: 0 | BQ120: 0 | BR120: 0 | BS120: 0 | BT120: لغة_عربية_اسلامية | CM120: 101 | CN120: 40 | CP120: 0 | CQ120: 0 | CR120: 60 | CS120: 158 | CT120: ع/س
A121: =SUBTOTAL(103,$B$22:B121) -> 99 | B121: حنان حسن محمد الحسن | C121: 606609 | D121: 56 | E121: 54 | F121: 45 | G121: 62 | H121: 64 | I121: 75 | J121: F | K121: 53 | L121: 57 | M121: PO | X121: C | Y121: C | Z121: F | AA121: C+ | AB121: C+ | AC121: B+ | AD121: - | AE121: C | AF121: C | AG121: - | AH121: F | AI121: F | AJ121: F | AK121: F | AL121: F | AM121: F | AN121: F | AO121: F | AP121: F | AQ121: F | AR121: 20 | AU121: 1.566666667 | AV121: ملحق | AX121: التربية الخاصة/ | AY121: توقيف لمدة عام | AZ121: 2 | BA121: 2 | BB121: 0 | BC121: 2.5 | BD121: 2.5 | BE121: 3.5 | BF121: - | BG121: 2 | BH121: 2 | BI121: - | BJ121: 0 | BK121: 0 | BL121: 0 | BM121: 0 | BN121: 0 | BO121: 0 | BP121: 0 | BQ121: 0 | BR121: 0 | BS121: 0 | BT121: لغة_عربية_اسلامية | BV121: =IF(AND(E121<BV$22,$B121>0),BV$21,"") ->  | BW121: التربية الخاصة/ | CM121: 94 | CN121: 40 | CP121: 2 | CQ121: 2 | CR121: 60 | CS121: 94 | CT121: ع/س
A122: =SUBTOTAL(103,$B$22:B122) -> 100 | B122: سها الشفيع حسين احمد | C122: 9239110 | D122: 63 | E122: 54 | F122: 82 | G122: 52 | H122: 81 | I122: 84 | J122: 68 | K122: 85 | L122: 67 | M122: 85 | X122: C+ | Y122: C | Z122: A | AA122: C | AB122: A | AC122: A | AD122: C+ | AE122: A | AF122: C+ | AG122: A | AH122: F | AI122: F | AJ122: F | AK122: F | AL122: F | AM122: F | AN122: F | AO122: F | AP122: F | AQ122: F | AR122: 20 | AS122: 63 | AT122: =IF(ISERROR(IF(ISERROR(AS122/AR122),"",AS122/AR122)),"",IF(ISERROR(AS122/AR122),"",AS122/AR122)) -> 3.15 | AU122: 3 | AV122: نجاح | AY122: نجاح | AZ122: 2.5 | BA122: 2 | BB122: 4 | BC122: 2 | BD122: 4 | BE122: 4 | BF122: 2.5 | BG122: 4 | BH122: 2.5 | BI122: 4 | BJ122: 0 | BK122: 0 | BL122: 0 | BM122: 0 | BN122: 0 | BO122: 0 | BP122: 0 | BQ122: 0 | BR122: 0 | BS122: 0 | BT122: لغة_عربية_اسلامية | CM122: 117 | CN122: 40 | CP122: 0 | CQ122: 0 | CR122: 60 | CS122: 180 | CT122: ع/س
A123: =SUBTOTAL(103,$B$22:B123) -> 101 | B123: عيده عرض عبدالرحيم | C123: 1073108 | D123: 50 | E123: AB | F123: 50 | G123: AB | H123: 62 | I123: 62 | J123: 50 | K123: 50 | L123: 68 | M123: PO | X123: C | Y123: - | Z123: C | AA123: - | AB123: C+ | AC123: C+ | AD123: C | AE123: C | AF123: C+ | AG123: - | AH123: F | AI123: F | AJ123: F | AK123: F | AL123: F | AM123: F | AN123: F | AO123: F | AP123: F | AQ123: F | AR123: 20 | AT123: =IF(ISERROR(IF(ISERROR(AS123/AR123),"",AS123/AR123)),"",IF(ISERROR(AS123/AR123),"",AS123/AR123)) ->  | AV123: نجاح | AY123: - | AZ123: 2 | BA123: - | BB123: 2 | BC123: - | BD123: 2.5 | BE123: 2.5 | BF123: 2 | BG123: 2 | BH123: 2.5 | BI123: - | BJ123: 0 | BK123: 0 | BL123: 0 | BM123: 0 | BN123: 0 | BO123: 0 | BP123: 0 | BQ123: 0 | BR123: 0 | BS123: 0 | BT123: لغة_عربية_اسلامية | CM123: 109 | CN123: 40 | CP123: 0 | CQ123: 0 | CR123: 60 | CT123: ع/س
A124: =SUBTOTAL(103,$B$22:B124) -> 102 | B124: فاطمة محمود ابراهيم ملكين | C124: 1237209 | D124: 58 | E124: 50 | F124: 49 | G124: 65 | H124: 63 | I124: 60 | J124: 49 | K124: 50 | L124: 54 | M124: 67 | X124: C | Y124: C | Z124: C* | AA124: C+ | AB124: C+ | AC124: C+ | AD124: C* | AE124: C | AF124: C | AG124: C+ | AH124: F | AI124: F | AJ124: F | AK124: F | AL124: F | AM124: =IF($B124=0,"",IF(S124>100,"-",IF(S124>=80,"A",IF(S124>=75,"B+",IF(S124>=70,"B",IF(S124>=60,"C+",IF(S124>=50,"C",IF(S124>=49,"C*","F")))))))) -> F | AN124: F | AO124: F | AP124: F | AQ124: F | AR124: 20 | AS124: 44 | AT124: =IF(ISERROR(IF(ISERROR(AS124/AR124),"",AS124/AR124)),"",IF(ISERROR(AS124/AR124),"",AS124/AR124)) -> 2.2 | AU124: 2.583333333 | AV124: نجاح | AW124: نجاح | AY124: ملحق | AZ124: 2 | BA124: 2 | BB124: 2 | BC124: 2.5 | BD124: 2.5 | BE124: 2.5 | BF124: 2 | BG124: 2 | BH124: 2 | BI124: 2.5 | BJ124: 0 | BK124: 0 | BL124: 0 | BM124: 0 | BN124: 0 | BO124: =IF(S124>100,"-",IF(S124>=80,4,IF(S124>=75,3.5,IF(S124>=70,3,IF(S124>=60,2.5,IF(S124>=50,2,IF(S124>=49,2,"0"))))))) -> 0 | BP124: 0 | BQ124: 0 | BR124: 0 | BS124: 0 | BT124: لغة_عربية_اسلامية | CM124: 111 | CN124: 40 | CP124: 0 | CQ124: 0 | CR124: 60 | CS124: 155 | CT124: ع/س
A125: =SUBTOTAL(103,$B$22:B125) -> 103 | B125: ملكة محمد طالب محمد احمد | C125: 2838610 | D125: W | E125: 0 | F125: 0 | G125: 0 | H125: 0 | I125: 0 | J125: 0 | K125: 0 | L125: 0 | M125: 0 | X125: - | Y125: F | Z125: F | AA125: F | AB125: F | AC125: F | AD125: F | AE125: F | AF125: F | AG125: F | AH125: F | AI125: F | AJ125: F | AK125: F | AL125: F | AM125: F | AN125: F | AO125: F | AP125: F | AQ125: F | AR125: 20 | AU125: 0 | AX125: جغرافية سياسية/ التربية الخاصة/ طرق تدريس الحلقة الاولى/ مهارات تفكير/ طرق تدريس خاصة/ Eng. Trad. Gr./ Res. Proj./ Introduction to Lt./ Translation/ | AY125: إنسحاب | AZ125: - | BA125: 0 | BB125: 0 | BC125: 0 | BD125: 0 | BE125: 0 | BF125: 0 | BG125: 0 | BH125: 0 | BI125: 0 | BJ125: 0 | BK125: 0 | BL125: 0 | BM125: 0 | BN125: 0 | BO125: 0 | BP125: 0 | BQ125: 0 | BR125: 0 | BS125: 0 | BT125: لغة_عربية_اسلامية | BV125: جغرافية سياسية/ | BW125: التربية الخاصة/ | BX125: طرق تدريس الحلقة الاولى/ | BY125: مهارات تفكير/ | BZ125: طرق تدريس خاصة/ | CA125: Eng. Trad. Gr./ | CB125: Res. Proj./ | CC125: Introduction to Lt./ | CD125: Translation/ | CN125: 40 | CP125: 18 | CQ125: 18 | CR125: 60 | CS125: 0 | CT125: ع/س
A126: =SUBTOTAL(103,$B$22:B126) -> 104 | B126: رماح محمد عثمان محمد | C126: 12045010 | D126: 58 | E126: 67 | F126: 63 | G126: 51 | H126: 59 | I126: 57 | J126: 77 | K126: 54 | L126: 72 | M126: 50 | X126: C | Y126: C+ | Z126: C+ | AA126: C | AB126: C | AC126: C | AD126: B+ | AE126: C | AF126: B | AG126: C | AH126: F | AI126: F | AJ126: F | AK126: F | AL126: F | AM126: F | AN126: F | AO126: F | AP126: F | AQ126: F | AR126: 20 | AU126: 1.766666667 | AV126: نجاح | AY126: نجاح | AZ126: 2 | BA126: 2.5 | BB126: 2.5 | BC126: 2 | BD126: 2 | BE126: 2 | BF126: 3.5 | BG126: 2 | BH126: 3 | BI126: 2 | BJ126: 0 | BK126: 0 | BL126: 0 | BM126: 0 | BN126: 0 | BO126: 0 | BP126: 0 | BQ126: 0 | BR126: 0 | BS126: 0 | BT126: لغة_عربية_تاريخ | CM126: 106 | CN126: 40 | CP126: 0 | CQ126: 0 | CR126: 60 | CS126: 106 | CT126: ع/ج
A127: =SUBTOTAL(103,$B$22:B127) -> 105 | B127: ام كلثوم علي محمد آدم | C127: 5975309 | D127: 69 | E127: 76 | F127: 53 | G127: 51 | H127: 84 | I127: 77 | J127: 70 | K127: 71 | L127: 78 | M127: 50 | X127: C+ | Y127: B+ | Z127: C | AA127: C | AB127: A | AC127: B+ | AD127: B | AE127: B | AF127: B+ | AG127: C | AH127: F | AI127: F | AJ127: F | AK127: F | AL127: F | AM127: F | AN127: F | AO127: F | AP127: F | AQ127: F | AR127: 20 | AS127: 58 | AT127: =IF(ISERROR(IF(ISERROR(AS127/AR127),"",AS127/AR127)),"",IF(ISERROR(AS127/AR127),"",AS127/AR127)) -> 2.9 | AU127: 2.85 | AV127: نجاح | AY127: نجاح | AZ127: 2.5 | BA127: 3.5 | BB127: 2 | BC127: 2 | BD127: 4 | BE127: 3.5 | BF127: 3 | BG127: 3 | BH127: 3.5 | BI127: 2 | BJ127: 0 | BK127: 0 | BL127: 0 | BM127: 0 | BN127: 0 | BO127: 0 | BP127: 0 | BQ127: 0 | BR127: 0 | BS127: 0 | BT127: لغة_عربية_تاريخ | CM127: 113 | CN127: 40 | CP127: 0 | CQ127: 0 | CR127: 60 | CS127: 171 | CT127: ع/ج
A128: =SUBTOTAL(103,$B$22:B128) -> 106 | B128: سميرة محمد ادريس حامد | C128: 490410 | D128: 56 | E128: 57 | F128: 56 | G128: 62 | H128: 66 | I128: 51 | J128: 59 | K128: 50 | L128: 52 | M128: 49 | X128: C | Y128: C | Z128: C | AA128: C+ | AB128: C+ | AC128: C | AD128: C | AE128: C | AF128: C | AG128: C* | AH128: F | AI128: F | AJ128: F | AK128: F | AL128: F | AM128: F | AN128: F | AO128: F | AP128: F | AQ128: F | AR128: 20 | AS128: 42 | AT128: =IF(ISERROR(IF(ISERROR(AS128/AR128),"",AS128/AR128)),"",IF(ISERROR(AS128/AR128),"",AS128/AR128)) -> 2.1 | AU128: 2.333333333 | AV128: نجاح | AW128: نجاح | AY128: ملحق | AZ128: 2 | BA128: 2 | BB128: 2 | BC128: 2.5 | BD128: 2.5 | BE128: 2 | BF128: 2 | BG128: 2 | BH128: 2 | BI128: 2 | BJ128: 0 | BK128: 0 | BL128: 0 | BM128: 0 | BN128: 0 | BO128: 0 | BP128: 0 | BQ128: 0 | BR128: 0 | BS128: 0 | BT128: لغة_عربية_تاريخ | CM128: 98 | CN128: 40 | CP128: 0 | CQ128: 0 | CR128: 60 | CS128: 140 | CT128: ع/ج
A129: =SUBTOTAL(103,$B$22:B129) -> 107 | B129: تقوى قسم احمد على حامد | C129: 11603910 | D129: 60 | E129: 54 | F129: 49 | G129: 60 | H129: 50 | I129: 52 | J129: 73 | K129: 50 | L129: 53 | M129: 50 | X129: C+ | Y129: C | Z129: C* | AA129: C+ | AB129: C | AC129: C | AD129: B | AE129: C | AF129: C | AG129: C | AH129: F | AI129: F | AJ129: F | AK129: F | AL129: F | AM129: F | AN129: F | AO129: F | AP129: F | AQ129: F | AR129: 20 | AS129: 44 | AT129: =IF(ISERROR(IF(ISERROR(AS129/AR129),"",AS129/AR129)),"",IF(ISERROR(AS129/AR129),"",AS129/AR129)) -> 2.2 | AU129: 2.433333333 | AV129: نجاح | AW129: نجاح | AY129: ملحق | AZ129: 2.5 | BA129: 2 | BB129: 2 | BC129: 2.5 | BD129: 2 | BE129: 2 | BF129: 3 | BG129: 2 | BH129: 2 | BI129: 2 | BJ129: 0 | BK129: 0 | BL129: 0 | BM129: 0 | BN129: 0 | BO129: 0 | BP129: 0 | BQ129: 0 | BR129: 0 | BS129: 0 | BT129: لغة_عربية_تاريخ | CM129: 102 | CN129: 40 | CP129: 0 | CQ129: 0 | CR129: 60 | CS129: 146 | CT129: ع/ج
A130: =SUBTOTAL(103,$B$22:B130) -> 108 | B130: عائشة محمد سعيداى ادريس | C130: 11642410 | D130: 56 | E130: 62 | F130: 66 | G130: 66 | H130: 74 | I130: 72 | J130: 66 | K130: 49 | L130: 51 | M130: 65 | X130: C | Y130: C+ | Z130: C+ | AA130: C+ | AB130: B | AC130: B | AD130: C+ | AE130: C* | AF130: C | AG130: C+ | AH130: F | AI130: F | AJ130: F | AK130: F | AL130: F | AM130: F | AN130: F | AO130: F | AP130: F | AQ130: F | AR130: 20 | AS130: 49 | AT130: =IF(ISERROR(IF(ISERROR(AS130/AR130),"",AS130/AR130)),"",IF(ISERROR(AS130/AR130),"",AS130/AR130)) -> 2.45 | AU130: 2.633333333 | AV130: نجاح | AW130: نجاح | AY130: ملحق | AZ130: 2 | BA130: 2.5 | BB130: 2.5 | BC130: 2.5 | BD130: 3 | BE130: 3 | BF130: 2.5 | BG130: 2 | BH130: 2 | BI130: 2.5 | BJ130: 0 | BK130: 0 | BL130: 0 | BM130: 0 | BN130: 0 | BO130: 0 | BP130: 0 | BQ130: 0 | BR130: 0 | BS130: 0 | BT130: لغة_عربية_تاريخ | CM130: 109 | CN130: 40 | CP130: 0 | CQ130: 0 | CR130: 60 | CS130: =IF(ISERROR(CM130+AS130),"",CM130+AS130) -> 158 | CT130: ع/ج
A131: =SUBTOTAL(103,$B$22:B131) -> 109 | B131: سلافة خضر بلال سيد احمد | C131: 8871709 | D131: 50 | E131: 66 | F131: 62 | G131: 60 | H131: 78 | I131: 76 | J131: 71 | K131: 50 | L131: 79 | M131: 73 | X131: C | Y131: C+ | Z131: C+ | AA131: C+ | AB131: B+ | AC131: B+ | AD131: B | AE131: C | AF131: B+ | AG131: B | AH131: F | AI131: F | AJ131: F | AK131: F | AL131: F | AM131: F | AN131: F | AO131: F | AP131: F | AQ131: F | AR131: 20 | AU131: 1.483333333 | AV131: نجاح | AY131: نجاح | AZ131: 2 | BA131: 2.5 | BB131: 2.5 | BC131: 2.5 | BD131: 3.5 | BE131: 3.5 | BF131: 3 | BG131: 2 | BH131: 3.5 | BI131: 3 | BJ131: 0 | BK131: 0 | BL131: 0 | BM131: 0 | BN131: 0 | BO131: 0 | BP131: 0 | BQ131: 0 | BR131: 0 | BS131: 0 | BT131: لغة_عربية_تاريخ | CM131: 89 | CN131: 40 | CP131: 0 | CQ131: 0 | CR131: 60 | CS131: =IF(ISERROR(CM131+AS131),"",CM131+AS131) -> 89 | CT131: ع/ج
A132: =SUBTOTAL(103,$B$22:B132) -> 110 | B132: سعاد سراج ادريس داؤود | C132: 6393809 | D132: 66 | E132: 58 | F132: 56 | G132: 54 | H132: 75 | I132: 61 | J132: 76 | K132: 65 | L132: 76 | M132: 54 | X132: C+ | Y132: C | Z132: C | AA132: C | AB132: B+ | AC132: C+ | AD132: B+ | AE132: C+ | AF132: B+ | AG132: C | AH132: F | AI132: F | AJ132: F | AK132: F | AL132: F | AM132: F | AN132: F | AO132: F | AP132: F | AQ132: F | AR132: 20 | AU132: 0 | AV132: نجاح | AY132: نجاح | AZ132: 2.5 | BA132: 2 | BB132: 2 | BC132: 2 | BD132: 3.5 | BE132: 2.5 | BF132: 3.5 | BG132: 2.5 | BH132: 3.5 | BI132: 2 | BJ132: 0 | BK132: 0 | BL132: 0 | BM132: 0 | BN132: 0 | BO132: 0 | BP132: 0 | BQ132: 0 | BR132: 0 | BS132: 0 | BT132: لغة_عربية_تاريخ | CN132: 40 | CP132: 0 | CQ132: 0 | CR132: 60 | CS132: 0 | CT132: ع/ج
A133: =SUBTOTAL(103,$B$22:B133) -> 111 | B133: حواء محمد ادم بابكر | C133: 12059110 | D133: 60 | E133: 70 | F133: 63 | G133: 64 | H133: 49 | I133: 58 | J133: 63 | K133: 64 | L133: 67 | M133: 55 | X133: C+ | Y133: B | Z133: C+ | AA133: C+ | AB133: C* | AC133: C | AD133: C+ | AE133: C+ | AF133: C+ | AG133: C | AH133: F | AI133: F | AJ133: F | AK133: F | AL133: F | AM133: F | AN133: F | AO133: F | AP133: F | AQ133: F | AR133: 20 | AU133: 1.75 | AV133: نجاح | AW133: نجاح | AY133: ملحق | AZ133: 2.5 | BA133: 3 | BB133: 2.5 | BC133: 2.5 | BD133: 2 | BE133: 2 | BF133: 2.5 | BG133: 2.5 | BH133: 2.5 | BI133: 2 | BJ133: 0 | BK133: 0 | BL133: 0 | BM133: 0 | BN133: 0 | BO133: 0 | BP133: 0 | BQ133: 0 | BR133: 0 | BS133: 0 | BT133: لغة_عربية_تاريخ | CM133: 105 | CN133: 40 | CP133: 0 | CQ133: 0 | CR133: 60 | CS133: 105 | CT133: ع/ج
A134: =SUBTOTAL(103,$B$22:B134) -> 112 | B134: رشا احمد عبدالقادر عبدالحفيظ | C134: 11637310 | D134: 65 | E134: 50 | F134: 49 | G134: 53 | H134: 56 | I134: 57 | J134: 53 | K134: 50 | L134: 70 | M134: 55 | X134: C+ | Y134: C | Z134: C* | AA134: C | AB134: C | AC134: C | AD134: C | AE134: C | AF134: B | AG134: C | AH134: F | AI134: F | AJ134: F | AK134: F | AL134: F | AM134: F | AN134: F | AO134: F | AP134: F | AQ134: F | AR134: 20 | AU134: 0 | AV134: نجاح | AW134: نجاح | AY134: ملحق | AZ134: 2.5 | BA134: 2 | BB134: 2 | BC134: 2 | BD134: 2 | BE134: 2 | BF134: 2 | BG134: 2 | BH134: 3 | BI134: 2 | BJ134: 0 | BK134: 0 | BL134: 0 | BM134: 0 | BN134: 0 | BO134: 0 | BP134: 0 | BQ134: 0 | BR134: 0 | BS134: 0 | BT134: لغة_عربية_تاريخ | CL134: =IF(AND(U134<CL$22,$B134>0),CL$21,"") ->  | CN134: 40 | CP134: 0 | CQ134: 0 | CR134: 60 | CS134: 0 | CT134: ع/ج
A135: =SUBTOTAL(103,$B$22:B135) -> 113 | B135: لولا حسن غبوش بشير | C135: 8801909 | D135: 55 | E135: 51 | F135: 69 | G135: 58 | H135: 50 | I135: 71 | J135: 71 | K135: 61 | L135: 71 | M135: 57 | X135: C | Y135: C | Z135: C+ | AA135: C | AB135: C | AC135: B | AD135: B | AE135: C+ | AF135: B | AG135: C | AH135: F | AI135: F | AJ135: F | AK135: F | AL135: F | AM135: F | AN135: F | AO135: F | AP135: F | AQ135: F | AR135: 20 | AS135: 48 | AT135: =IF(ISERROR(IF(ISERROR(AS135/AR135),"",AS135/AR135)),"",IF(ISERROR(AS135/AR135),"",AS135/AR135)) -> 2.4 | AU135: 2.616666667 | AV135: نجاح | AY135: نجاح | AZ135: 2 | BA135: 2 | BB135: 2.5 | BC135: 2 | BD135: 2 | BE135: 3 | BF135: 3 | BG135: 2.5 | BH135: 3 | BI135: 2 | BJ135: 0 | BK135: 0 | BL135: 0 | BM135: 0 | BN135: 0 | BO135: 0 | BP135: 0 | BQ135: 0 | BR135: 0 | BS135: 0 | BT135: لغة_عربية_تاريخ | CM135: 109 | CN135: 40 | CP135: 0 | CQ135: 0 | CR135: 60 | CS135: 157 | CT135: ع/ج
A136: =SUBTOTAL(103,$B$22:B136) -> 114 | B136: امنة احمد نور الدين حميدة | C136: 8519910 | D136: 65 | E136: 62 | F136: 82 | G136: 54 | H136: 81 | I136: 58 | J136: 74 | K136: 68 | L136: 77 | M136: 58 | X136: C+ | Y136: C+ | Z136: A | AA136: C | AB136: A | AC136: C | AD136: B | AE136: C+ | AF136: B+ | AG136: C | AH136: F | AI136: F | AJ136: F | AK136: F | AL136: F | AM136: F | AN136: F | AO136: F | AP136: F | AQ136: F | AR136: 20 | AS136: 56 | AT136: =IF(ISERROR(IF(ISERROR(AS136/AR136),"",AS136/AR136)),"",IF(ISERROR(AS136/AR136),"",AS136/AR136)) -> 2.8 | AU136: 2.75 | AV136: نجاح | AY136: نجاح | AZ136: 2.5 | BA136: 2.5 | BB136: 4 | BC136: 2 | BD136: 4 | BE136: 2 | BF136: 3 | BG136: 2.5 | BH136: 3.5 | BI136: 2 | BJ136: 0 | BK136: 0 | BL136: 0 | BM136: 0 | BN136: 0 | BO136: 0 | BP136: 0 | BQ136: 0 | BR136: 0 | BS136: 0 | BT136: لغة_عربية_تاريخ | CM136: 109 | CN136: 40 | CP136: 0 | CQ136: 0 | CR136: 60 | CS136: 165 | CT136: ع/ج
A137: =SUBTOTAL(103,$B$22:B137) -> 115 | B137: موده عبداللطيف الطيب | C137: 12240910 | D137: 66 | E137: 54 | F137: 63 | G137: 51 | H137: 50 | I137: 58 | J137: 51 | K137: 49 | L137: 52 | M137: 51 | X137: C+ | Y137: C | Z137: C+ | AA137: C | AB137: C | AC137: C | AD137: C | AE137: C* | AF137: C | AG137: C | AH137: F | AI137: F | AJ137: F | AK137: F | AL137: F | AM137: F | AN137: F | AO137: F | AP137: F | AQ137: F | AR137: 20 | AS137: 42 | AT137: =IF(ISERROR(IF(ISERROR(AS137/AR137),"",AS137/AR137)),"",IF(ISERROR(AS137/AR137),"",AS137/AR137)) -> 2.1 | AU137: 2.633333333 | AV137: نجاح | AW137: نجاح | AY137: ملحق | AZ137: 2.5 | BA137: 2 | BB137: 2.5 | BC137: 2 | BD137: 2 | BE137: 2 | BF137: 2 | BG137: 2 | BH137: 2 | BI137: 2 | BJ137: 0 | BK137: 0 | BL137: 0 | BM137: 0 | BN137: 0 | BO137: 0 | BP137: 0 | BQ137: 0 | BR137: 0 | BS137: 0 | BT137: لغة_عربية_تاريخ | CH137: =IF(AND(Q137<CH$22,$B137>0),CH$21,"") ->  | CM137: 116 | CN137: 40 | CP137: 0 | CQ137: 0 | CR137: 60 | CS137: 158 | CT137: ع/ج
A138: =SUBTOTAL(103,$B$22:B138) -> 116 | B138: حفصة على عبدالباقي احمد | C138: 12149710 | D138: 66 | E138: 71 | F138: 70 | G138: 51 | H138: 74 | I138: 77 | J138: 53 | K138: 72 | L138: 74 | M138: 51 | X138: C+ | Y138: B | Z138: B | AA138: C | AB138: B | AC138: B+ | AD138: C | AE138: B | AF138: B | AG138: C | AH138: F | AI138: F | AJ138: F | AK138: F | AL138: F | AM138: F | AN138: F | AO138: F | AP138: F | AQ138: F | AR138: 20 | AU138: 1.466666667 | AV138: نجاح | AY138: نجاح | AZ138: 2.5 | BA138: 3 | BB138: 3 | BC138: 2 | BD138: 3 | BE138: 3.5 | BF138: 2 | BG138: 3 | BH138: 3 | BI138: 2 | BJ138: 0 | BK138: 0 | BL138: 0 | BM138: 0 | BN138: 0 | BO138: 0 | BP138: 0 | BQ138: 0 | BR138: 0 | BS138: 0 | BT138: لغة_عربية_تاريخ | BV138: =IF(AND(E138<BV$22,$B138>0),BV$21,"") ->  | CM138: 88 | CN138: 40 | CP138: 0 | CQ138: 0 | CR138: 60 | CS138: 88 | CT138: ع/ج
A139: =SUBTOTAL(103,$B$22:B139) -> 117 | B139: سامى يوسف عثمان محمد | C139: 12803810 | D139: 58 | E139: 58 | F139: 54 | G139: 62 | H139: 70 | I139: 66 | J139: 63 | K139: 50 | L139: 65 | M139: 56 | X139: C | Y139: C | Z139: C | AA139: C+ | AB139: B | AC139: C+ | AD139: C+ | AE139: C | AF139: C+ | AG139: C | AH139: F | AI139: F | AJ139: F | AK139: F | AL139: F | AM139: F | AN139: F | AO139: F | AP139: F | AQ139: F | AR139: 20 | AU139: 1.783333333 | AV139: نجاح | AY139: نجاح | AZ139: 2 | BA139: 2 | BB139: 2 | BC139: 2.5 | BD139: 3 | BE139: 2.5 | BF139: 2.5 | BG139: 2 | BH139: 2.5 | BI139: 2 | BJ139: 0 | BK139: 0 | BL139: 0 | BM139: 0 | BN139: 0 | BO139: 0 | BP139: 0 | BQ139: 0 | BR139: 0 | BS139: 0 | BT139: لغة_عربية_تاريخ | CM139: 107 | CN139: 40 | CP139: 0 | CQ139: 0 | CR139: 60 | CS139: 107 | CT139: ع/ج
A140: =SUBTOTAL(103,$B$22:B140) -> 118 | B140: ابراهيم صالح محمد الحاج | C140: 12058210 | D140: 68 | E140: 56 | F140: 69 | G140: 52 | H140: 74 | I140: 67 | J140: 60 | K140: 58 | L140: 64 | M140: 57 | X140: C+ | Y140: C | Z140: C+ | AA140: =IF($B140=0,"",IF(G140>100,"-",IF(G140>=80,"A",IF(G140>=75,"B+",IF(G140>=70,"B",IF(G140>=60,"C+",IF(G140>=50,"C",IF(G140>=49,"C*","F")))))))) -> C | AB140: B | AC140: C+ | AD140: C+ | AE140: C | AF140: C+ | AG140: C | AH140: F | AI140: F | AJ140: F | AK140: F | AL140: F | AM140: F | AN140: F | AO140: F | AP140: F | AQ140: F | AR140: 20 | AS140: =IF(ISERROR(IF(SUMPRODUCT(($AZ$22:$BS$22<>0)*($AZ140:$BS140=0)),"",SUMPRODUCT(($AZ$22:$BS$22)*($AZ140:$BS140)))),"",IF(SUMPRODUCT(($AZ$22:$BS$22<>0)*($AZ140:$BS140=0)),"",SUMPRODUCT(($AZ$22:$BS$22)*($AZ140:$BS140)))) -> 47 | AT140: =IF(ISERROR(IF(ISERROR(AS140/AR140),"",AS140/AR140)),"",IF(ISERROR(AS140/AR140),"",AS140/AR140)) -> 2.35 | AU140: 2.433333333 | AV140: نجاح | AY140: نجاح | AZ140: 2.5 | BA140: 2 | BB140: 2.5 | BC140: =IF(G140>100,"-",IF(G140>=80,4,IF(G140>=75,3.5,IF(G140>=70,3,IF(G140>=60,2.5,IF(G140>=50,2,IF(G140>=49,2,"0"))))))) -> 2 | BD140: 3 | BE140: 2.5 | BF140: 2.5 | BG140: 2 | BH140: 2.5 | BI140: 2 | BJ140: 0 | BK140: 0 | BL140: 0 | BM140: 0 | BN140: 0 | BO140: 0 | BP140: 0 | BQ140: 0 | BR140: 0 | BS140: 0 | BT140: لغة_عربية_تاريخ | CM140: 99 | CN140: 40 | CP140: 0 | CQ140: 0 | CR140: 60 | CS140: 146 | CT140: ع/ج
A141: =SUBTOTAL(103,$B$22:B141) -> 119 | B141: عوضيه عبدالعظيم بابكر | C141: 2987310 | D141: 50 | E141: 64 | F141: 66 | G141: 54 | H141: 50 | I141: 57 | J141: 63 | K141: 50 | L141: 62 | M141: 52 | X141: =IF($B141=0,"",IF(D141>100,"-",IF(D141>=80,"A",IF(D141>=75,"B+",IF(D141>=70,"B",IF(D141>=60,"C+",IF(D141>=50,"C",IF(D141>=49,"C*","F")))))))) -> C | Y141: C+ | Z141: C+ | AA141: C | AB141: C | AC141: C | AD141: C+ | AE141: C | AF141: C+ | AG141: C | AH141: F | AI141: F | AJ141: F | AK141: F | AL141: F | AM141: F | AN141: F | AO141: F | AP141: F | AQ141: F | AR141: 20 | AU141: 1.616666667 | AV141: نجاح | AY141: نجاح | AZ141: =IF(D141>100,"-",IF(D141>=80,4,IF(D141>=75,3.5,IF(D141>=70,3,IF(D141>=60,2.5,IF(D141>=50,2,IF(D141>=49,2,"0"))))))) -> 2 | BA141: 2.5 | BB141: 2.5 | BC141: 2 | BD141: 2 | BE141: 2 | BF141: 2.5 | BG141: 2 | BH141: 2.5 | BI141: 2 | BJ141: 0 | BK141: 0 | BL141: 0 | BM141: 0 | BN141: 0 | BO141: 0 | BP141: 0 | BQ141: 0 | BR141: 0 | BS141: 0 | BT141: لغة_عربية_تاريخ | CM141: 97 | CN141: 40 | CP141: 0 | CQ141: 0 | CR141: 60 | CS141: 97 | CT141: ع/ج
A142: =SUBTOTAL(103,$B$22:B142) -> 120 | B142: آمنة عمر ابراهيم محمد | C142: 5953409 | D142: 65 | E142: 60 | F142: 73 | G142: 54 | H142: 88 | I142: 61 | J142: 74 | K142: 70 | L142: 55 | M142: 59 | X142: C+ | Y142: C+ | Z142: B | AA142: C | AB142: A | AC142: C+ | AD142: B | AE142: B | AF142: C | AG142: C | AH142: F | AI142: F | AJ142: F | AK142: F | AL142: F | AM142: F | AN142: F | AO142: F | AP142: F | AQ142: F | AR142: 20 | AU142: 1.75 | AV142: نجاح | AY142: نجاح | AZ142: 2.5 | BA142: 2.5 | BB142: 3 | BC142: 2 | BD142: 4 | BE142: 2.5 | BF142: 3 | BG142: 3 | BH142: 2 | BI142: 2 | BJ142: 0 | BK142: 0 | BL142: 0 | BM142: 0 | BN142: 0 | BO142: 0 | BP142: 0 | BQ142: 0 | BR142: 0 | BS142: 0 | BT142: لغة_عربية_تاريخ | CM142: 105 | CN142: 40 | CP142: 0 | CQ142: 0 | CR142: 60 | CS142: 105 | CT142: ع/ج
A143: =SUBTOTAL(103,$B$22:B143) -> 121 | B143: مريم محمد على محمدعلى | C143: 2502910 | D143: 53 | E143: 62 | F143: 69 | G143: 49 | H143: 78 | I143: 54 | J143: 58 | K143: 50 | L143: 65 | M143: 55 | X143: C | Y143: C+ | Z143: C+ | AA143: C* | AB143: B+ | AC143: C | AD143: C | AE143: C | AF143: C+ | AG143: C | AH143: F | AI143: F | AJ143: F | AK143: F | AL143: F | AM143: F | AN143: F | AO143: F | AP143: F | AQ143: F | AR143: 20 | AS143: 46 | AT143: =IF(ISERROR(IF(ISERROR(AS143/AR143),"",AS143/AR143)),"",IF(ISERROR(AS143/AR143),"",AS143/AR143)) -> 2.3 | AU143: 2.866666667 | AV143: نجاح | AW143: نجاح | AY143: ملحق | AZ143: 2 | BA143: 2.5 | BB143: 2.5 | BC143: 2 | BD143: 3.5 | BE143: 2 | BF143: 2 | BG143: 2 | BH143: 2.5 | BI143: 2 | BJ143: 0 | BK143: 0 | BL143: 0 | BM143: 0 | BN143: 0 | BO143: 0 | BP143: 0 | BQ143: 0 | BR143: 0 | BS143: 0 | BT143: لغة_عربية_تاريخ | CM143: 126 | CN143: 40 | CP143: 0 | CQ143: 0 | CR143: 60 | CS143: 172 | CT143: ع/ج
A144: =SUBTOTAL(103,$B$22:B144) -> 122 | B144: تيسير على عبدالله | C144: 23250410 | D144: 57 | E144: 58 | F144: 67 | G144: 65 | H144: 72 | I144: 52 | J144: 67 | K144: 56 | L144: 71 | M144: 84 | X144: C | Y144: C | Z144: C+ | AA144: C+ | AB144: B | AC144: C | AD144: C+ | AE144: C | AF144: B | AG144: A | AH144: F | AI144: F | AJ144: F | AK144: F | AL144: F | AM144: F | AN144: F | AO144: F | AP144: F | AQ144: F | AR144: 20 | AS144: 51 | AT144: 2.55 | AU144: 2.383333333 | AV144: نجاح | AY144: نجاح | AZ144: 2 | BA144: 2 | BB144: 2.5 | BC144: 2.5 | BD144: 3 | BE144: 2 | BF144: 2.5 | BG144: 2 | BH144: 3 | BI144: 4 | BJ144: 0 | BK144: 0 | BL144: 0 | BM144: 0 | BN144: 0 | BO144: 0 | BP144: 0 | BQ144: 0 | BR144: 0 | BS144: 0 | BT144: لغة_عربية_تاريخ | CM144: 92 | CN144: 40 | CP144: 0 | CQ144: 0 | CR144: 60 | CS144: 143 | CT144: ع/ج
A145: =SUBTOTAL(103,$B$22:B145) -> 123 | B145: اسراء عبده سعيد الصادق | C145: 12682710 | D145: 54 | E145: 60 | F145: 60 | G145: 60 | H145: 50 | I145: 58 | J145: 49 | K145: 50 | L145: 67 | M145: 59 | X145: C | Y145: C+ | Z145: C+ | AA145: C+ | AB145: C | AC145: C | AD145: C* | AE145: C | AF145: C+ | AG145: C | AH145: F | AI145: F | AJ145: F | AK145: F | AL145: F | AM145: F | AN145: F | AO145: F | AP145: F | AQ145: F | AR145: 20 | AS145: 44 | AT145: 2.2 | AU145: 2.55 | AV145: نجاح | AW145: نجاح | AY145: ملحق | AZ145: 2 | BA145: 2.5 | BB145: 2.5 | BC145: 2.5 | BD145: 2 | BE145: 2 | BF145: 2 | BG145: 2 | BH145: 2.5 | BI145: 2 | BJ145: 0 | BK145: 0 | BL145: 0 | BM145: 0 | BN145: 0 | BO145: 0 | BP145: 0 | BQ145: 0 | BR145: 0 | BS145: 0 | BT145: لغة_عربية_تاريخ | CM145: 109 | CN145: 40 | CP145: 0 | CQ145: 0 | CR145: 60 | CS145: 153 | CT145: ع/ج
A146: =SUBTOTAL(103,$B$22:B146) -> 124 | B146: اكرام ادم عثمان ادريس | C146: 12634110 | D146: 64 | E146: 67 | F146: 51 | G146: 49 | H146: 64 | I146: 67 | J146: 59 | K146: 63 | L146: 72 | M146: 61 | X146: C+ | Y146: C+ | Z146: C | AA146: C* | AB146: C+ | AC146: C+ | AD146: C | AE146: C+ | AF146: B | AG146: C+ | AH146: F | AI146: F | AJ146: F | AK146: F | AL146: F | AM146: F | AN146: F | AO146: F | AP146: F | AQ146: F | AR146: 20 | AS146: 48 | AT146: 2.4 | AU146: 2.85 | AV146: نجاح | AW146: نجاح | AY146: ملحق | AZ146: 2.5 | BA146: 2.5 | BB146: 2 | BC146: 2 | BD146: 2.5 | BE146: 2.5 | BF146: 2 | BG146: 2.5 | BH146: 3 | BI146: 2.5 | BJ146: 0 | BK146: 0 | BL146: 0 | BM146: 0 | BN146: 0 | BO146: 0 | BP146: 0 | BQ146: 0 | BR146: 0 | BS146: 0 | BT146: لغة_عربية_تاريخ | CM146: 123 | CN146: 40 | CP146: 0 | CQ146: 0 | CR146: 60 | CS146: 171 | CT146: ع/ج
A147: =SUBTOTAL(103,$B$22:B147) -> 125 | B147: امال صالح ابراهيم محمد | C147: 12703810 | D147: 62 | E147: 52 | F147: 50 | G147: 52 | H147: 76 | I147: 54 | J147: 50 | K147: 50 | L147: 70 | M147: 50 | X147: C+ | Y147: C | Z147: C | AA147: C | AB147: B+ | AC147: C | AD147: C | AE147: C | AF147: B | AG147: C | AH147: F | AI147: F | AJ147: F | AK147: F | AL147: F | AM147: F | AN147: F | AO147: F | AP147: F | AQ147: F | AR147: 20 | AS147: 46 | AT147: 2.3 | AU147: 2.316666667 | AV147: نجاح | AY147: نجاح | AZ147: 2.5 | BA147: 2 | BB147: 2 | BC147: 2 | BD147: 3.5 | BE147: 2 | BF147: 2 | BG147: 2 | BH147: 3 | BI147: 2 | BJ147: 0 | BK147: 0 | BL147: 0 | BM147: 0 | BN147: 0 | BO147: 0 | BP147: 0 | BQ147: 0 | BR147: 0 | BS147: 0 | BT147: لغة_عربية_تاريخ | CM147: 93 | CN147: 40 | CP147: 0 | CQ147: 0 | CR147: 60 | CS147: 139 | CT147: ع/ج
A148: =SUBTOTAL(103,$B$22:B148) -> 126 | B148: عينيه احمد ماكن بخيت | C148: 12629310 | D148: 53 | E148: 67 | F148: 72 | G148: 52 | H148: 64 | I148: 57 | J148: 70 | K148: 72 | L148: 66 | M148: 58 | X148: C | Y148: C+ | Z148: B | AA148: C | AB148: C+ | AC148: C | AD148: B | AE148: B | AF148: C+ | AG148: C | AH148: F | AI148: F | AJ148: F | AK148: F | AL148: F | AM148: F | AN148: F | AO148: F | AP148: F | AQ148: F | AR148: 20 | AS148: 49 | AT148: 2.45 | AU148: 2.433333333 | AV148: نجاح | AY148: نجاح | AZ148: 2 | BA148: 2.5 | BB148: 3 | BC148: 2 | BD148: 2.5 | BE148: 2 | BF148: 3 | BG148: 3 | BH148: 2.5 | BI148: 2 | BJ148: 0 | BK148: 0 | BL148: 0 | BM148: 0 | BN148: 0 | BO148: 0 | BP148: 0 | BQ148: 0 | BR148: 0 | BS148: 0 | BT148: لغة_عربية_تاريخ | CM148: 97 | CN148: 40 | CP148: 0 | CQ148: 0 | CR148: 60 | CS148: 146 | CT148: ع/ج
A149: =SUBTOTAL(103,$B$22:B149) -> 127 | B149: نصرة محمد عثمان اوشيك | C149: 11627010 | D149: 58 | E149: 58 | F149: 50 | G149: 58 | H149: 62 | I149: 50 | J149: 68 | K149: 82 | L149: 71 | M149: 57 | X149: C | Y149: C | Z149: C | AA149: C | AB149: C+ | AC149: C | AD149: C+ | AE149: A | AF149: B | AG149: C | AH149: F | AI149: F | AJ149: F | AK149: F | AL149: F | AM149: F | AN149: F | AO149: F | AP149: F | AQ149: F | AR149: 20 | AU149: 1.95 | AV149: نجاح | AW149: نجاح | AY149: ملحق | AZ149: 2 | BA149: 2 | BB149: 2 | BC149: 2 | BD149: 2.5 | BE149: 2 | BF149: 2.5 | BG149: 4 | BH149: 3 | BI149: 2 | BJ149: 0 | BK149: 0 | BL149: 0 | BM149: 0 | BN149: 0 | BO149: 0 | BP149: 0 | BQ149: 0 | BR149: 0 | BS149: 0 | BT149: لغة_عربية_تاريخ | CM149: 117 | CN149: 40 | CP149: 0 | CQ149: 0 | CR149: 60 | CS149: 117 | CT149: ع/ج
A150: =SUBTOTAL(103,$B$22:B150) -> 128 | B150: عرفات محمد على عمر ادريس | C150: 683810 | D150: 53 | E150: 59 | F150: 70 | G150: 68 | H150: 64 | I150: 50 | J150: 79 | K150: 54 | L150: 56 | M150: 50 | X150: C | Y150: C | Z150: B | AA150: C+ | AB150: C+ | AC150: C | AD150: B+ | AE150: C | AF150: C | AG150: C | AH150: F | AI150: F | AJ150: F | AK150: F | AL150: F | AM150: F | AN150: F | AO150: F | AP150: F | AQ150: F | AR150: 20 | AS150: 47 | AT150: =IF(ISERROR(IF(ISERROR(AS150/AR150),"",AS150/AR150)),"",IF(ISERROR(AS150/AR150),"",AS150/AR150)) -> 2.35 | AU150: 2.266666667 | AV150: نجاح | AY150: نجاح | AZ150: 2 | BA150: 2 | BB150: 3 | BC150: 2.5 | BD150: 2.5 | BE150: 2 | BF150: 3.5 | BG150: 2 | BH150: 2 | BI150: 2 | BJ150: 0 | BK150: 0 | BL150: 0 | BM150: 0 | BN150: 0 | BO150: 0 | BP150: 0 | BQ150: 0 | BR150: 0 | BS150: 0 | BT150: لغة_عربية_تاريخ | CM150: 89 | CN150: 40 | CP150: 0 | CQ150: 0 | CR150: 60 | CS150: 136 | CT150: ع/ج
A151: =SUBTOTAL(103,$B$22:B151) -> 129 | B151: حنان آدم ابراهيم أحمد | C151: 374009 | D151: 56 | E151: 54 | F151: 56 | G151: 49 | H151: 59 | I151: 57 | J151: 50 | K151: 50 | L151: 64 | M151: 50 | X151: C | Y151: C | Z151: C | AA151: C* | AB151: C | AC151: C | AD151: C | AE151: C | AF151: C+ | AG151: C | AH151: F | AI151: F | AJ151: F | AK151: F | AL151: F | AM151: F | AN151: F | AO151: F | AP151: F | AQ151: F | AR151: 20 | AS151: 41 | AT151: =IF(ISERROR(IF(ISERROR(AS151/AR151),"",AS151/AR151)),"",IF(ISERROR(AS151/AR151),"",AS151/AR151)) -> 2.05 | AU151: 2.733333333 | AV151: نجاح | AW151: نجاح | AY151: ملحق | AZ151: 2 | BA151: 2 | BB151: 2 | BC151: 2 | BD151: 2 | BE151: 2 | BF151: 2 | BG151: 2 | BH151: 2.5 | BI151: 2 | BJ151: 0 | BK151: 0 | BL151: 0 | BM151: 0 | BN151: 0 | BO151: 0 | BP151: 0 | BQ151: 0 | BR151: 0 | BS151: 0 | BT151: لغة_عربية_تاريخ | CM151: 123 | CN151: 40 | CP151: 0 | CQ151: 0 | CR151: 60 | CS151: 164 | CT151: ع/ج
A152: =SUBTOTAL(103,$B$22:B152) -> 130 | B152: ابو ذر الحاج عبدالرحمن ابراهيم | C152: 12007010 | D152: 60 | E152: 78 | F152: 65 | G152: 54 | H152: 73 | I152: 67 | J152: 56 | K152: 67 | L152: 76 | M152: 65 | X152: C+ | Y152: B+ | Z152: C+ | AA152: C | AB152: B | AC152: C+ | AD152: C | AE152: C+ | AF152: B+ | AG152: C+ | AH152: F | AI152: F | AJ152: F | AK152: F | AL152: F | AM152: F | AN152: F | AO152: F | AP152: F | AQ152: F | AR152: 20 | AU152: 1.716666667 | AY152: نجاح | AZ152: 2.5 | BA152: 3.5 | BB152: 2.5 | BC152: 2 | BD152: 3 | BE152: 2.5 | BF152: 2 | BG152: 2.5 | BH152: 3.5 | BI152: 2.5 | BJ152: 0 | BK152: 0 | BL152: 0 | BM152: 0 | BN152: 0 | BO152: 0 | BP152: 0 | BQ152: 0 | BR152: 0 | BS152: 0 | BT152: لغة_عربية_تاريخ | CM152: 103 | CN152: 40 | CP152: 0 | CQ152: 0 | CR152: =IF(ISERROR(CN152+AR152),"",CN152+AR152) -> 60 | CS152: 103 | CT152: ع/ج
A153: =SUBTOTAL(103,$B$22:B153) -> 131 | B153: مياده عبدالله حسن عمر | C153: 2838710 | D153: 53 | E153: 78 | F153: 0 | G153: 61 | H153: 76 | I153: 71 | J153: 78 | K153: 52 | L153: 77 | M153: 50 | X153: C | Y153: B+ | Z153: F | AA153: C+ | AB153: B+ | AC153: B | AD153: B+ | AE153: C | AF153: B+ | AG153: C | AH153: F | AI153: F | AJ153: F | AK153: F | AL153: F | AM153: F | AN153: F | AO153: F | AP153: F | AQ153: F | AR153: =IF(AND($AR$22>0,B153>0),$AR$22,"") -> 20 | AU153: 1.666666667 | AV153: =IF(CP153=0,"نجاح",IF(CP153="-","",IF(CP153<=$CO$22,"ملحق",IF(CP153<=$CQ$21,"إعادة",IF(CP153>$CP$21,"فصل"))))) -> ملحق | AX153: =BU153&" "&BV153&" "&BW153&" "&BX153&" "&BY153&" "&BZ153&" "&CA153&" "&CB153&" "&CC153&" "&CD153&" "&CE153&" "&CF153&" "&CG153&" "&CH153&" "&CI153&" "&CJ153&" "&CK153&" "&CL153&" " -> التربية الخاصة/ | AY153: نجاح | AZ153: 2 | BA153: 3.5 | BB153: 0 | BC153: 2.5 | BD153: 3.5 | BE153: 3 | BF153: 3.5 | BG153: 2 | BH153: 3.5 | BI153: 2 | BJ153: 0 | BK153: 0 | BL153: 0 | BM153: 0 | BN153: 0 | BO153: 0 | BP153: 0 | BQ153: 0 | BR153: 0 | BS153: 0 | BT153: لغة_عربية_تاريخ | BU153: =IF(AND(D153<BU$22,B153>0),BU$21,"") ->  | BW153: التربية الخاصة/ | CM153: 100 | CN153: 40 | CP153: =IF(AND(B153>0,CQ153>=0),CQ153,"-") -> 2 | CQ153: =SUMIF(AZ153:BS153,0,$AZ$22:$BS$22) -> 2 | CR153: 60 | CS153: 100 | CT153: =CONCATENATE(IF(BT153=$CO$1,"عام",""),IF(BT153=$CO$2,"ع/س",""),IF(BT153=$CO$3,"ع/ج",""), IF(BT153=$CO$4,"ع/ت",""),IF(BT153=$CO$5,"ع/ط",""),IF(BT153=$CO$6,"E/ت",""),IF(BT153=$CO$7,"E/ج",""), IF(BT153=$CO$8,"E/ط",""),IF(BT153=$CO$9,"ر/م",""),IF(BT153=$CO$10,"ر/ط","")) -> ع/ج
A154: =SUBTOTAL(103,$B$22:B154) -> 132 | B154: ابوبكر محمد ادريس عثمان | C154: 11706310 | D154: 74 | E154: 71 | F154: 56 | G154: 49 | H154: 78 | I154: 58 | J154: 50 | K154: 56 | L154: 72 | M154: 53 | X154: B | Y154: B | Z154: C | AA154: C* | AB154: B+ | AC154: C | AD154: C | AE154: C | AF154: B | AG154: C | AH154: F | AI154: F | AJ154: F | AK154: F | AL154: F | AM154: F | AN154: F | AO154: F | AP154: F | AQ154: F | AR154: 20 | AU154: 0 | AV154: نجاح | AW154: نجاح | AY154: ملحق | AZ154: 3 | BA154: 3 | BB154: 2 | BC154: 2 | BD154: 3.5 | BE154: 2 | BF154: 2 | BG154: 2 | BH154: 3 | BI154: 2 | BJ154: 0 | BK154: 0 | BL154: 0 | BM154: 0 | BN154: 0 | BO154: 0 | BP154: 0 | BQ154: 0 | BR154: 0 | BS154: 0 | BT154: لغة_عربية_تاريخ | CN154: 40 | CP154: 0 | CQ154: 0 | CR154: 60 | CS154: 0 | CT154: ع/ج
A155: =SUBTOTAL(103,$B$22:B155) -> 133 | B155: اصلاح عبدالله عمر احمد | C155: 2838810 | D155: 64 | E155: 74 | F155: 92 | G155: 51 | H155: 88 | I155: 78 | J155: 74 | K155: 81 | L155: 79 | M155: 82 | X155: C+ | Y155: B | Z155: A | AA155: C | AB155: A | AC155: B+ | AD155: B | AE155: A | AF155: B+ | AG155: A | AH155: F | AI155: F | AJ155: F | AK155: F | AL155: F | AM155: F | AN155: F | AO155: F | AP155: F | AQ155: F | AR155: 20 | AU155: 1.533333333 | AV155: نجاح | AY155: نجاح | AZ155: 2.5 | BA155: 3 | BB155: 4 | BC155: 2 | BD155: 4 | BE155: 3.5 | BF155: 3 | BG155: 4 | BH155: 3.5 | BI155: 4 | BJ155: 0 | BK155: 0 | BL155: 0 | BM155: 0 | BN155: 0 | BO155: 0 | BP155: 0 | BQ155: 0 | BR155: 0 | BS155: 0 | BT155: لغة_عربية_تاريخ | CM155: 92 | CN155: 40 | CP155: 0 | CQ155: 0 | CR155: 60 | CS155: 92 | CT155: ع/ج
A156: =SUBTOTAL(103,$B$22:B156) -> 134 | B156: اسماعيل مكى اسماعيل رمضان | C156: 11539810 | D156: 50 | E156: 54 | F156: 50 | G156: 49 | H156: 51 | I156: 51 | J156: 50 | K156: 50 | L156: 61 | M156: 50 | X156: C | Y156: C | Z156: C | AA156: C* | AB156: C | AC156: C | AD156: C | AE156: C | AF156: C+ | AG156: C | AH156: F | AI156: F | AJ156: F | AK156: F | AL156: F | AM156: F | AN156: F | AO156: F | AP156: F | AQ156: F | AR156: 20 | AU156: 1.916666667 | AV156: نجاح | AW156: نجاح | AY156: ملحق | AZ156: 2 | BA156: 2 | BB156: 2 | BC156: 2 | BD156: 2 | BE156: 2 | BF156: 2 | BG156: 2 | BH156: 2.5 | BI156: 2 | BJ156: 0 | BK156: 0 | BL156: 0 | BM156: 0 | BN156: 0 | BO156: 0 | BP156: 0 | BQ156: 0 | BR156: 0 | BS156: 0 | BT156: لغة_عربية_تاريخ | CM156: 115 | CN156: 40 | CP156: 0 | CQ156: 0 | CR156: 60 | CS156: 115 | CT156: ع/ج
A157: =SUBTOTAL(103,$B$22:B157) -> 135 | B157: جيهان عمر محمد عثمان | C157: 5832609 | D157: 50 | E157: 57 | F157: 58 | G157: 53 | H157: 65 | I157: 51 | J157: 50 | K157: 49 | L157: 50 | M157: 50 | X157: C | Y157: C | Z157: C | AA157: C | AB157: C+ | AC157: C | AD157: C | AE157: C* | AF157: C | AG157: C | AH157: F | AI157: F | AJ157: F | AK157: F | AL157: F | AM157: F | AN157: F | AO157: F | AP157: F | AQ157: F | AR157: 20 | AU157: 0 | AV157: نجاح | AW157: نجاح | AY157: ملحق | AZ157: 2 | BA157: 2 | BB157: 2 | BC157: 2 | BD157: 2.5 | BE157: 2 | BF157: 2 | BG157: 2 | BH157: 2 | BI157: 2 | BJ157: 0 | BK157: 0 | BL157: 0 | BM157: 0 | BN157: 0 | BO157: 0 | BP157: 0 | BQ157: 0 | BR157: 0 | BS157: 0 | BT157: لغة_عربية_تاريخ | CN157: 40 | CP157: 0 | CQ157: 0 | CR157: 60 | CS157: 0 | CT157: ع/ج
A158: =SUBTOTAL(103,$B$22:B158) -> 136 | B158: نسيبة بدوى علي احمد زمراوى | C158: 11449410 | D158: 63 | E158: 59 | F158: 55 | G158: 67 | H158: 66 | I158: 78 | J158: 49 | K158: 64 | L158: 68 | M158: 50 | X158: C+ | Y158: C | Z158: C | AA158: C+ | AB158: C+ | AC158: B+ | AD158: C* | AE158: C+ | AF158: C+ | AG158: C | AH158: F | AI158: F | AJ158: F | AK158: F | AL158: F | AM158: F | AN158: F | AO158: F | AP158: F | AQ158: F | AR158: 20 | AU158: 1.616666667 | AV158: نجاح | AW158: نجاح | AY158: ملحق | AZ158: 2.5 | BA158: 2 | BB158: 2 | BC158: 2.5 | BD158: 2.5 | BE158: 3.5 | BF158: 2 | BG158: 2.5 | BH158: 2.5 | BI158: 2 | BJ158: 0 | BK158: 0 | BL158: 0 | BM158: 0 | BN158: 0 | BO158: 0 | BP158: 0 | BQ158: 0 | BR158: 0 | BS158: 0 | BT158: لغة_عربية_تاريخ | CM158: 97 | CN158: 40 | CP158: 0 | CQ158: 0 | CR158: 60 | CS158: 97 | CT158: ع/ج
A159: =SUBTOTAL(103,$B$22:B159) -> 137 | B159: نضال محمد بابكر مصطفى | C159: 329010 | D159: 64 | E159: 83 | F159: 80 | G159: 52 | H159: 83 | I159: 68 | J159: 81 | K159: 67 | L159: 78 | M159: 73 | X159: C+ | Y159: A | Z159: A | AA159: C | AB159: A | AC159: C+ | AD159: A | AE159: C+ | AF159: B+ | AG159: B | AH159: F | AI159: F | AJ159: F | AK159: F | AL159: F | AM159: F | AN159: F | AO159: F | AP159: F | AQ159: F | AR159: 20 | AU159: 0 | AV159: نجاح | AY159: نجاح | AZ159: 2.5 | BA159: 4 | BB159: 4 | BC159: 2 | BD159: 4 | BE159: 2.5 | BF159: 4 | BG159: 2.5 | BH159: 3.5 | BI159: 3 | BJ159: 0 | BK159: 0 | BL159: 0 | BM159: 0 | BN159: 0 | BO159: 0 | BP159: 0 | BQ159: 0 | BR159: 0 | BS159: 0 | BT159: لغة_عربية_تاريخ | BY159: =IF(AND(H159<BY$22,$B159>0),BY$21,"") ->  | CN159: 40 | CP159: 0 | CQ159: 0 | CR159: 60 | CS159: 0 | CT159: ع/ج
A160: =SUBTOTAL(103,$B$22:B160) -> 138 | B160: حسن يوسف عربي هارون | C160: 11475610 | D160: 62 | E160: 58 | F160: 59 | G160: 55 | H160: 51 | I160: 56 | J160: 49 | K160: 56 | L160: 64 | M160: 50 | X160: C+ | Y160: C | Z160: C | AA160: C | AB160: C | AC160: C | AD160: C* | AE160: C | AF160: C+ | AG160: C | AH160: F | AI160: F | AJ160: F | AK160: F | AL160: F | AM160: F | AN160: F | AO160: F | AP160: F | AQ160: F | AR160: 20 | AS160: =IF(ISERROR(IF(SUMPRODUCT(($AZ$22:$BS$22<>0)*($AZ160:$BS160=0)),"",SUMPRODUCT(($AZ$22:$BS$22)*($AZ160:$BS160)))),"",IF(SUMPRODUCT(($AZ$22:$BS$22<>0)*($AZ160:$BS160=0)),"",SUMPRODUCT(($AZ$22:$BS$22)*($AZ160:$BS160)))) -> 42 | AT160: =IF(ISERROR(IF(ISERROR(AS160/AR160),"",AS160/AR160)),"",IF(ISERROR(AS160/AR160),"",AS160/AR160)) -> 2.1 | AU160: 2.366666667 | AV160: نجاح | AW160: نجاح | AY160: ملحق | AZ160: 2.5 | BA160: 2 | BB160: 2 | BC160: 2 | BD160: 2 | BE160: 2 | BF160: 2 | BG160: 2 | BH160: 2.5 | BI160: 2 | BJ160: 0 | BK160: 0 | BL160: 0 | BM160: 0 | BN160: 0 | BO160: 0 | BP160: 0 | BQ160: 0 | BR160: 0 | BS160: 0 | BT160: لغة_عربية_تاريخ | BV160: =IF(AND(E160<BV$22,$B160>0),BV$21,"") ->  | CM160: 100 | CN160: 40 | CP160: 0 | CQ160: 0 | CR160: 60 | CS160: 142 | CT160: ع/ج
A161: =SUBTOTAL(103,$B$22:B161) -> 139 | B161: ميادة احمد عثمان عبداللطيف | C161: 12722310 | D161: 56 | E161: 57 | F161: 63 | G161: 53 | H161: 68 | I161: 50 | J161: 50 | K161: 54 | L161: 72 | M161: 50 | X161: C | Y161: C | Z161: C+ | AA161: C | AB161: C+ | AC161: C | AD161: C | AE161: C | AF161: B | AG161: C | AH161: F | AI161: F | AJ161: F | AK161: F | AL161: F | AM161: F | AN161: F | AO161: F | AP161: F | AQ161: F | AR161: 20 | AU161: 1.766666667 | AV161: نجاح | AY161: نجاح | AZ161: 2 | BA161: 2 | BB161: 2.5 | BC161: 2 | BD161: 2.5 | BE161: 2 | BF161: 2 | BG161: 2 | BH161: 3 | BI161: 2 | BJ161: 0 | BK161: 0 | BL161: 0 | BM161: 0 | BN161: 0 | BO161: 0 | BP161: 0 | BQ161: 0 | BR161: 0 | BS161: 0 | BT161: لغة_عربية_تاريخ | CM161: 106 | CN161: 40 | CP161: 0 | CQ161: 0 | CR161: 60 | CS161: 106 | CT161: ع/ج
A162: =SUBTOTAL(103,$B$22:B162) -> 140 | B162: فاطمة عبدالله ادم احمد | C162: 12711310 | D162: 52 | E162: 66 | F162: 81 | G162: 51 | H162: 64 | I162: 68 | J162: 62 | K162: 64 | L162: 54 | M162: 60 | X162: C | Y162: C+ | Z162: A | AA162: C | AB162: C+ | AC162: C+ | AD162: C+ | AE162: C+ | AF162: C | AG162: C+ | AH162: F | AI162: F | AJ162: F | AK162: F | AL162: F | AM162: F | AN162: F | AO162: F | AP162: F | AQ162: F | AR162: 20 | AS162: =IF(ISERROR(IF(SUMPRODUCT(($AZ$22:$BS$22<>0)*($AZ162:$BS162=0)),"",SUMPRODUCT(($AZ$22:$BS$22)*($AZ162:$BS162)))),"",IF(SUMPRODUCT(($AZ$22:$BS$22<>0)*($AZ162:$BS162=0)),"",SUMPRODUCT(($AZ$22:$BS$22)*($AZ162:$BS162)))) -> 50 | AT162: =IF(ISERROR(IF(ISERROR(AS162/AR162),"",AS162/AR162)),"",IF(ISERROR(AS162/AR162),"",AS162/AR162)) -> 2.5 | AU162: 2.666666667 | AV162: نجاح | AY162: نجاح | AZ162: 2 | BA162: 2.5 | BB162: 4 | BC162: 2 | BD162: 2.5 | BE162: 2.5 | BF162: 2.5 | BG162: 2.5 | BH162: 2 | BI162: 2.5 | BJ162: 0 | BK162: 0 | BL162: 0 | BM162: 0 | BN162: 0 | BO162: 0 | BP162: 0 | BQ162: 0 | BR162: 0 | BS162: 0 | BT162: لغة_عربية_تاريخ | CM162: 110 | CN162: 40 | CP162: 0 | CQ162: 0 | CR162: 60 | CS162: 160 | CT162: ع/ج
A163: =SUBTOTAL(103,$B$22:B163) -> 141 | B163: مروه محمد ابوبكر ابراهيم | C163: 2502810 | D163: 65 | E163: 62 | F163: 70 | G163: 54 | H163: 62 | I163: 68 | J163: 70 | K163: 56 | L163: 54 | M163: 49 | X163: C+ | Y163: C+ | Z163: B | AA163: C | AB163: C+ | AC163: C+ | AD163: B | AE163: C | AF163: C | AG163: C* | AH163: F | AI163: F | AJ163: F | AK163: F | AL163: F | AM163: F | AN163: F | AO163: F | AP163: F | AQ163: F | AR163: 20 | AS163: =IF(ISERROR(IF(SUMPRODUCT(($AZ$22:$BS$22<>0)*($AZ163:$BS163=0)),"",SUMPRODUCT(($AZ$22:$BS$22)*($AZ163:$BS163)))),"",IF(SUMPRODUCT(($AZ$22:$BS$22<>0)*($AZ163:$BS163=0)),"",SUMPRODUCT(($AZ$22:$BS$22)*($AZ163:$BS163)))) -> 48 | AT163: =IF(ISERROR(IF(ISERROR(AS163/AR163),"",AS163/AR163)),"",IF(ISERROR(AS163/AR163),"",AS163/AR163)) -> 2.4 | AU163: 2.75 | AV163: نجاح | AW163: نجاح | AY163: ملحق | AZ163: 2.5 | BA163: 2.5 | BB163: 3 | BC163: 2 | BD163: 2.5 | BE163: 2.5 | BF163: 3 | BG163: 2 | BH163: 2 | BI163: 2 | BJ163: 0 | BK163: 0 | BL163: 0 | BM163: 0 | BN163: 0 | BO163: 0 | BP163: 0 | BQ163: 0 | BR163: 0 | BS163: 0 | BT163: لغة_عربية_تاريخ | CM163: 117 | CN163: 40 | CP163: 0 | CQ163: 0 | CR163: 60 | CS163: 165 | CT163: ع/ج
A164: =SUBTOTAL(103,$B$22:B164) -> 142 | B164: محمد ابراهيم بخيت ابراهيم | C164: 22503110 | D164: 66 | E164: 67 | F164: 67 | G164: 51 | H164: 78 | I164: 51 | J164: 59 | K164: 50 | L164: 68 | M164: 50 | X164: C+ | Y164: C+ | Z164: C+ | AA164: C | AB164: B+ | AC164: C | AD164: =IF($B164=0,"",IF(J164>100,"-",IF(J164>=80,"A",IF(J164>=75,"B+",IF(J164>=70,"B",IF(J164>=60,"C+",IF(J164>=50,"C",IF(J164>=49,"C*","F")))))))) -> C | AE164: C | AF164: C+ | AG164: C | AH164: F | AI164: F | AJ164: F | AK164: F | AL164: F | AM164: F | AN164: F | AO164: F | AP164: F | AQ164: F | AR164: 20 | AS164: 47 | AT164: 2.35 | AU164: =IF(ISERROR(CS164/CR164),"",CS164/CR164) -> 2.65 | AV164: نجاح | AW164: نجاح | AY164: ملحق | AZ164: 2.5 | BA164: 2.5 | BB164: 2.5 | BC164: 2 | BD164: 3.5 | BE164: 2 | BF164: =IF(J164>100,"-",IF(J164>=80,4,IF(J164>=75,3.5,IF(J164>=70,3,IF(J164>=60,2.5,IF(J164>=50,2,IF(J164>=49,2,"0"))))))) -> 2 | BG164: 2 | BH164: 2.5 | BI164: 2 | BJ164: 0 | BK164: 0 | BL164: 0 | BM164: 0 | BN164: 0 | BO164: 0 | BP164: 0 | BQ164: 0 | BR164: 0 | BS164: 0 | BT164: لغة_عربية_تاريخ | CM164: 112 | CN164: 40 | CP164: 0 | CQ164: 0 | CR164: 60 | CS164: 159 | CT164: ع/ج
A165: =SUBTOTAL(103,$B$22:B165) -> 143 | B165: عزيزه محمدسعيدمحمود | C165: 5865309 | D165: 51 | E165: 52 | F165: 52 | G165: 66 | H165: 56 | I165: 55 | J165: 51 | K165: 63 | L165: 50 | M165: 60 | X165: C | Y165: C | Z165: C | AA165: C+ | AB165: C | AC165: C | AD165: C | AE165: C+ | AF165: C | AG165: C+ | AH165: F | AI165: F | AJ165: F | AK165: F | AL165: F | AM165: F | AN165: F | AO165: F | AP165: F | AQ165: F | AR165: 20 | AS165: 43 | AT165: 2.15 | AU165: 3.016666667 | AV165: نجاح | AY165: نجاح | AZ165: 2 | BA165: 2 | BB165: 2 | BC165: 2.5 | BD165: 2 | BE165: 2 | BF165: 2 | BG165: 2.5 | BH165: 2 | BI165: 2.5 | BJ165: 0 | BK165: 0 | BL165: 0 | BM165: 0 | BN165: 0 | BO165: 0 | BP165: 0 | BQ165: 0 | BR165: 0 | BS165: 0 | BT165: لغة_عربية_تاريخ | CM165: 138 | CN165: 40 | CP165: 0 | CQ165: 0 | CR165: 60 | CS165: 181 | CT165: ع/ج
A166: =SUBTOTAL(103,$B$22:B166) -> 144 | B166: ليلى محمد صالح ابراهيم ادم | C166: 12688310 | D166: 71 | E166: 70 | F166: 74 | G166: 54 | H166: 97 | I166: 76 | J166: 68 | K166: 68 | L166: 68 | M166: 72 | X166: B | Y166: B | Z166: B | AA166: C | AB166: A | AC166: B+ | AD166: C+ | AE166: C+ | AF166: C+ | AG166: B | AH166: F | AI166: F | AJ166: F | AK166: F | AL166: F | AM166: F | AN166: F | AO166: F | AP166: F | AQ166: F | AR166: 20 | AU166: 1.416666667 | AV166: نجاح | AY166: نجاح | AZ166: 3 | BA166: 3 | BB166: 3 | BC166: 2 | BD166: 4 | BE166: 3.5 | BF166: 2.5 | BG166: 2.5 | BH166: 2.5 | BI166: 3 | BJ166: 0 | BK166: 0 | BL166: 0 | BM166: 0 | BN166: 0 | BO166: 0 | BP166: 0 | BQ166: 0 | BR166: 0 | BS166: 0 | BT166: لغة_عربية_تاريخ | CM166: 85 | CN166: 40 | CP166: 0 | CQ166: 0 | CR166: 60 | CS166: 85 | CT166: ع/ج
A167: =SUBTOTAL(103,$B$22:B167) -> 145 | B167: الحرم علم الهدى سيداحمد منوفل | C167: 20531210 | D167: 68 | E167: 56 | F167: 50 | G167: 55 | H167: 59 | I167: 55 | J167: 50 | K167: 50 | L167: 51 | M167: 69 | X167: C+ | Y167: C | Z167: C | AA167: C | AB167: C | AC167: C | AD167: C | AE167: C | AF167: C | AG167: C+ | AH167: F | AI167: F | AJ167: F | AK167: F | AL167: F | AM167: F | AN167: F | AO167: F | AP167: F | AQ167: F | AR167: 20 | AS167: 42 | AT167: =IF(ISERROR(IF(ISERROR(AS167/AR167),"",AS167/AR167)),"",IF(ISERROR(AS167/AR167),"",AS167/AR167)) -> 2.1 | AU167: =IF(ISERROR(CS167/CR167),"",CS167/CR167) -> 2.283333333 | AV167: نجاح | AY167: نجاح | AZ167: 2.5 | BA167: 2 | BB167: 2 | BC167: 2 | BD167: 2 | BE167: 2 | BF167: 2 | BG167: 2 | BH167: 2 | BI167: 2.5 | BJ167: 0 | BK167: 0 | BL167: 0 | BM167: 0 | BN167: 0 | BO167: 0 | BP167: 0 | BQ167: 0 | BR167: 0 | BS167: 0 | BT167: لغة_عربية_تاريخ | CM167: 95 | CN167: 40 | CP167: 0 | CQ167: 0 | CR167: 60 | CS167: 137 | CT167: ع/ج
A168: =SUBTOTAL(103,$B$22:B168) -> 146 | B168: هندعلى نورالدائم الجلال | C168: 308910 | D168: 55 | E168: 50 | F168: 50 | G168: 58 | H168: 79 | I168: 64 | J168: 55 | K168: 63 | L168: 50 | M168: 67 | X168: C | Y168: C | Z168: C | AA168: C | AB168: B+ | AC168: C+ | AD168: C | AE168: C+ | AF168: C | AG168: C+ | AH168: F | AI168: F | AJ168: F | AK168: F | AL168: F | AM168: F | AN168: F | AO168: F | AP168: F | AQ168: F | AR168: 20 | AS168: 46 | AT168: 2.3 | AU168: 2.516666667 | AV168: نجاح | AY168: نجاح | AZ168: 2 | BA168: 2 | BB168: 2 | BC168: 2 | BD168: 3.5 | BE168: 2.5 | BF168: 2 | BG168: 2.5 | BH168: 2 | BI168: 2.5 | BJ168: 0 | BK168: 0 | BL168: 0 | BM168: 0 | BN168: 0 | BO168: 0 | BP168: 0 | BQ168: 0 | BR168: 0 | BS168: 0 | BT168: لغة_عربية_تاريخ | CM168: 105 | CN168: 40 | CP168: 0 | CQ168: 0 | CR168: 60 | CS168: 151 | CT168: ع/ج
A169: =SUBTOTAL(103,$B$22:B169) -> 147 | B169: بثينة محمد عبدالله احمد | C169: 11918910 | D169: 71 | E169: 66 | F169: 61 | G169: 50 | H169: 74 | I169: 67 | J169: 68 | K169: 60 | L169: 78 | M169: 50 | X169: B | Y169: C+ | Z169: C+ | AA169: C | AB169: B | AC169: C+ | AD169: C+ | AE169: C+ | AF169: B+ | AG169: C | AH169: F | AI169: F | AJ169: F | AK169: F | AL169: F | AM169: F | AN169: F | AO169: F | AP169: F | AQ169: F | AR169: 20 | AS169: 52 | AT169: 2.6 | AU169: 2.616666667 | AV169: نجاح | AW169: نجاح | AY169: ملحق | AZ169: 3 | BA169: 2.5 | BB169: 2.5 | BC169: 2 | BD169: 3 | BE169: 2.5 | BF169: 2.5 | BG169: 2.5 | BH169: 3.5 | BI169: 2 | BJ169: 0 | BK169: 0 | BL169: 0 | BM169: 0 | BN169: 0 | BO169: 0 | BP169: 0 | BQ169: 0 | BR169: 0 | BS169: 0 | BT169: لغة_عربية_تاريخ | CM169: 105 | CN169: 40 | CP169: 0 | CQ169: 0 | CR169: 60 | CS169: 157 | CT169: ع/ج
A170: =SUBTOTAL(103,$B$22:B170) -> 148 | B170: مريم احمد على محمد | C170: 45843008 | D170: 65 | E170: 62 | F170: 69 | G170: 67 | H170: 79 | I170: 58 | J170: 50 | K170: 60 | L170: 60 | M170: 51 | X170: C+ | Y170: C+ | Z170: C+ | AA170: C+ | AB170: B+ | AC170: C | AD170: C | AE170: C+ | AF170: C+ | AG170: C | AH170: F | AI170: F | AJ170: F | AK170: F | AL170: F | AM170: F | AN170: F | AO170: F | AP170: F | AQ170: F | AR170: 20 | AU170: 1.583333333 | AV170: نجاح | AW170: نجاح | AY170: ملحق | AZ170: 2.5 | BA170: 2.5 | BB170: 2.5 | BC170: 2.5 | BD170: 3.5 | BE170: 2 | BF170: 2 | BG170: 2.5 | BH170: 2.5 | BI170: 2 | BJ170: 0 | BK170: 0 | BL170: 0 | BM170: 0 | BN170: 0 | BO170: 0 | BP170: 0 | BQ170: 0 | BR170: 0 | BS170: 0 | BT170: لغة_عربية_تاريخ | CM170: 95 | CN170: 40 | CP170: 0 | CQ170: 0 | CR170: 60 | CS170: 95 | CT170: ع/ج
A171: =SUBTOTAL(103,$B$22:B171) -> 149 | B171: صفاء برشم عيس بلال | C171: 329810 | D171: 58 | E171: 69 | F171: 67 | G171: 53 | H171: 79 | I171: 56 | J171: 58 | K171: 50 | L171: 59 | M171: 50 | X171: C | Y171: C+ | Z171: C+ | AA171: C | AB171: B+ | AC171: C | AD171: C | AE171: C | AF171: C | AG171: C | AH171: F | AI171: F | AJ171: F | AK171: F | AL171: F | AM171: F | AN171: F | AO171: F | AP171: F | AQ171: F | AR171: 20 | AS171: 45 | AT171: 2.25 | AU171: 2.716666667 | AV171: نجاح | AW171: نجاح | AY171: ملحق | AZ171: 2 | BA171: 2.5 | BB171: 2.5 | BC171: 2 | BD171: 3.5 | BE171: 2 | BF171: 2 | BG171: 2 | BH171: 2 | BI171: 2 | BJ171: 0 | BK171: 0 | BL171: 0 | BM171: 0 | BN171: 0 | BO171: 0 | BP171: 0 | BQ171: 0 | BR171: 0 | BS171: 0 | BT171: لغة_عربية_تاريخ | CM171: 118 | CN171: 40 | CP171: 0 | CQ171: 0 | CR171: 60 | CS171: 163 | CT171: ع/ج
A172: =SUBTOTAL(103,$B$22:B172) -> 150 | B172: عوضية ادريس محمود فايد | C172: 321510 | D172: 51 | E172: 64 | F172: 64 | G172: 52 | H172: 55 | I172: 68 | J172: 61 | K172: 50 | L172: 53 | M172: 50 | X172: C | Y172: C+ | Z172: C+ | AA172: C | AB172: C | AC172: C+ | AD172: C+ | AE172: C | AF172: C | AG172: C | AH172: F | AI172: F | AJ172: F | AK172: F | AL172: F | AM172: F | AN172: F | AO172: F | AP172: F | AQ172: F | AR172: 20 | AS172: 44 | AT172: 2.2 | AU172: 3.166666667 | AV172: نجاح | AY172: نجاح | AZ172: 2 | BA172: 2.5 | BB172: 2.5 | BC172: 2 | BD172: 2 | BE172: 2.5 | BF172: 2.5 | BG172: 2 | BH172: 2 | BI172: 2 | BJ172: 0 | BK172: 0 | BL172: 0 | BM172: 0 | BN172: 0 | BO172: 0 | BP172: 0 | BQ172: 0 | BR172: 0 | BS172: 0 | BT172: لغة_عربية_تاريخ | CM172: 146 | CN172: 40 | CP172: 0 | CQ172: 0 | CR172: 60 | CS172: 190 | CT172: ع/ج
A173: =SUBTOTAL(103,$B$22:B173) -> 151 | B173: رفيدة محمد عبدالمجيد عثمان | C173: 11762410 | D173: 58 | E173: 50 | F173: 50 | G173: 55 | H173: 50 | I173: 50 | J173: 62 | K173: 50 | L173: 67 | M173: 65 | X173: C | Y173: C | Z173: C | AA173: C | AB173: C | AC173: C | AD173: C+ | AE173: C | AF173: C+ | AG173: C+ | AH173: F | AI173: F | AJ173: F | AK173: F | AL173: F | AM173: F | AN173: F | AO173: F | AP173: F | AQ173: F | AR173: 20 | AS173: 43 | AT173: 2.15 | AU173: 2.95 | AV173: نجاح | AW173: نجاح | AY173: ملحق | AZ173: 2 | BA173: 2 | BB173: 2 | BC173: 2 | BD173: 2 | BE173: 2 | BF173: 2.5 | BG173: 2 | BH173: 2.5 | BI173: 2.5 | BJ173: 0 | BK173: 0 | BL173: 0 | BM173: 0 | BN173: 0 | BO173: 0 | BP173: 0 | BQ173: 0 | BR173: 0 | BS173: 0 | BT173: لغة_عربية_تاريخ | CM173: 134 | CN173: 40 | CP173: 0 | CQ173: 0 | CR173: 60 | CS173: 177 | CT173: ع/ج
A174: =SUBTOTAL(103,$B$22:B174) -> 152 | B174: انتصار محمود صالح محمد على | C174: 2427310 | D174: 69 | E174: 64 | F174: 81 | G174: 53 | H174: 77 | I174: 51 | J174: 64 | K174: 58 | L174: 58 | M174: 50 | X174: C+ | Y174: C+ | Z174: A | AA174: C | AB174: B+ | AC174: C | AD174: C+ | AE174: C | AF174: C | AG174: C | AH174: F | AI174: F | AJ174: F | AK174: F | AL174: F | AM174: F | AN174: F | AO174: F | AP174: F | AQ174: F | AR174: 20 | AU174: 0 | AY174: نجاح | AZ174: 2.5 | BA174: 2.5 | BB174: 4 | BC174: 2 | BD174: 3.5 | BE174: 2 | BF174: 2.5 | BG174: 2 | BH174: 2 | BI174: 2 | BJ174: 0 | BK174: 0 | BL174: 0 | BM174: 0 | BN174: 0 | BO174: 0 | BP174: 0 | BQ174: 0 | BR174: 0 | BS174: 0 | BT174: لغة_عربية_تاريخ | CN174: 40 | CP174: 0 | CQ174: 0 | CR174: 60 | CS174: 0 | CT174: ع/ج
A175: =SUBTOTAL(103,$B$22:B175) -> 153 | B175: امال محمود بخيت عيسى | C175: 23259510 | D175: 50 | E175: 64 | F175: 50 | G175: 49 | H175: 50 | I175: 52 | J175: 58 | K175: 51 | L175: 50 | M175: 50 | X175: C | Y175: C+ | Z175: C | AA175: C* | AB175: C | AC175: C | AD175: C | AE175: C | AF175: C | AG175: C | AH175: F | AI175: F | AJ175: F | AK175: F | AL175: F | AM175: F | AN175: F | AO175: F | AP175: F | AQ175: =IF($B175=0,"",IF(W175>100,"-",IF(W175>=80,"A",IF(W175>=75,"B+",IF(W175>=70,"B",IF(W175>=60,"C+",IF(W175>=50,"C",IF(W175>=49,"C*","F")))))))) -> F | AR175: 20 | AU175: 0 | AV175: نجاح | AW175: نجاح | AY175: ملحق | AZ175: 2 | BA175: 2.5 | BB175: 2 | BC175: 2 | BD175: 2 | BE175: 2 | BF175: 2 | BG175: 2 | BH175: 2 | BI175: 2 | BJ175: 0 | BK175: 0 | BL175: 0 | BM175: 0 | BN175: 0 | BO175: 0 | BP175: 0 | BQ175: 0 | BR175: 0 | BS175: =IF(W175>100,"-",IF(W175>=80,4,IF(W175>=75,3.5,IF(W175>=70,3,IF(W175>=60,2.5,IF(W175>=50,2,IF(W175>=49,2,"0"))))))) -> 0 | BT175: لغة_عربية_تاريخ | CN175: 40 | CP175: 0 | CQ175: 0 | CR175: 60 | CS175: 0 | CT175: ع/ج
A176: =SUBTOTAL(103,$B$22:B176) -> 154 | B176: هبه سراج الدين سالم | C176: 6214705 | D176: س | E176: س | F176: 50 | G176: 50 | H176: 50 | I176: 62 | J176: 53 | K176: 31 | L176: 51 | M176: 30 | X176: - | Y176: - | Z176: C | AA176: C | AB176: C | AC176: C+ | AD176: C | AE176: F | AF176: C | AG176: F | AH176: F | AI176: F | AJ176: F | AK176: F | AL176: F | AM176: F | AN176: F | AO176: F | AP176: F | AQ176: F | AR176: 20 | AU176: 1.75 | AV176: ملحق | AW176: اعادة | AX176: Res. Proj./ Translation/ | AY176: ملحق | AZ176: - | BA176: - | BB176: 2 | BC176: 2 | BD176: 2 | BE176: 2.5 | BF176: 2 | BG176: 0 | BH176: 2 | BI176: 0 | BJ176: 0 | BK176: 0 | BL176: 0 | BM176: 0 | BN176: 0 | BO176: 0 | BP176: 0 | BQ176: 0 | BR176: 0 | BS176: 0 | BT176: لغة_عربية_تاريخ | CB176: Res. Proj./ | CD176: Translation/ | CM176: 105 | CN176: 40 | CP176: 4 | CQ176: 4 | CR176: 60 | CS176: 105 | CT176: ع/ج
A177: =SUBTOTAL(103,$B$22:B177) -> 155 | B177: عفراء محمد عثمان عمر | C177: 684910 | D177: 0 | E177: 0 | F177: 0 | G177: 0 | H177: 0 | I177: 0 | J177: 0 | K177: 0 | L177: 0 | M177: 0 | X177: F | Y177: F | Z177: F | AA177: F | AB177: F | AC177: F | AD177: F | AE177: F | AF177: F | AG177: F | AH177: F | AI177: F | AJ177: F | AK177: F | AL177: F | AM177: F | AN177: F | AO177: F | AP177: F | AQ177: F | AR177: 20 | AU177: 1.716666667 | AV177: فصل | AX177: جغرافية المناخ/ جغرافية سياسية/ التربية الخاصة/ طرق تدريس الحلقة الاولى/ مهارات تفكير/ طرق تدريس خاصة/ Eng. Trad. Gr./ Res. Proj./ Introduction to Lt./ Translation/ | AY177: - | AZ177: 0 | BA177: 0 | BB177: 0 | BC177: 0 | BD177: 0 | BE177: 0 | BF177: 0 | BG177: 0 | BH177: 0 | BI177: 0 | BJ177: 0 | BK177: 0 | BL177: 0 | BM177: 0 | BN177: 0 | BO177: 0 | BP177: 0 | BQ177: 0 | BR177: 0 | BS177: 0 | BT177: لغة_عربية_تاريخ | BU177: جغرافية المناخ/ | BV177: جغرافية سياسية/ | BW177: التربية الخاصة/ | BX177: طرق تدريس الحلقة الاولى/ | BY177: مهارات تفكير/ | BZ177: طرق تدريس خاصة/ | CA177: Eng. Trad. Gr./ | CB177: Res. Proj./ | CC177: Introduction to Lt./ | CD177: Translation/ | CM177: 103 | CN177: 40 | CP177: 20 | CQ177: 20 | CR177: 60 | CS177: 103 | CT177: ع/ج
A178: =SUBTOTAL(103,$B$22:B178) -> 156 | B178: سلوى يس عبدالله ادريس | C178: 12544710 | D178: 65 | E178: 50 | F178: 66 | G178: 51 | H178: 62 | I178: 58 | J178: 75 | K178: 62 | L178: 66 | M178: 50 | X178: C+ | Y178: C | Z178: C+ | AA178: C | AB178: C+ | AC178: C | AD178: B+ | AE178: C+ | AF178: C+ | AG178: C | AH178: F | AI178: F | AJ178: F | AK178: F | AL178: F | AM178: F | AN178: F | AO178: F | AP178: F | AQ178: F | AR178: 20 | AS178: =IF(ISERROR(IF(SUMPRODUCT(($AZ$22:$BS$22<>0)*($AZ178:$BS178=0)),"",SUMPRODUCT(($AZ$22:$BS$22)*($AZ178:$BS178)))),"",IF(SUMPRODUCT(($AZ$22:$BS$22<>0)*($AZ178:$BS178=0)),"",SUMPRODUCT(($AZ$22:$BS$22)*($AZ178:$BS178)))) -> 48 | AT178: =IF(ISERROR(IF(ISERROR(AS178/AR178),"",AS178/AR178)),"",IF(ISERROR(AS178/AR178),"",AS178/AR178)) -> 2.4 | AU178: 2.366666667 | AV178: نجاح | AY178: نجاح | AZ178: 2.5 | BA178: 2 | BB178: 2.5 | BC178: 2 | BD178: 2.5 | BE178: 2 | BF178: 3.5 | BG178: 2.5 | BH178: 2.5 | BI178: 2 | BJ178: 0 | BK178: 0 | BL178: 0 | BM178: 0 | BN178: 0 | BO178: 0 | BP178: 0 | BQ178: 0 | BR178: 0 | BS178: 0 | BT178: لغة_عربية_جغرافيا | CM178: 94 | CN178: 40 | CP178: 0 | CQ178: 0 | CR178: 60 | CS178: 142 | CT178: ع/ت
A179: =SUBTOTAL(103,$B$22:B179) -> 157 | B179: مها شرف الدين ابراهيم شرف الدين | C179: 11626110 | D179: 59 | E179: 50 | F179: 66 | G179: 49 | H179: 54 | I179: 68 | J179: 73 | K179: 59 | L179: 50 | M179: 50 | X179: C | Y179: C | Z179: C+ | AA179: C* | AB179: C | AC179: C+ | AD179: B | AE179: C | AF179: C | AG179: C | AH179: F | AI179: F | AJ179: F | AK179: F | AL179: F | AM179: F | AN179: F | AO179: F | AP179: F | AQ179: F | AR179: 20 | AS179: =IF(ISERROR(IF(SUMPRODUCT(($AZ$22:$BS$22<>0)*($AZ179:$BS179=0)),"",SUMPRODUCT(($AZ$22:$BS$22)*($AZ179:$BS179)))),"",IF(SUMPRODUCT(($AZ$22:$BS$22<>0)*($AZ179:$BS179=0)),"",SUMPRODUCT(($AZ$22:$BS$22)*($AZ179:$BS179)))) -> 44 | AT179: =IF(ISERROR(IF(ISERROR(AS179/AR179),"",AS179/AR179)),"",IF(ISERROR(AS179/AR179),"",AS179/AR179)) -> 2.2 | AU179: 2.45 | AV179: نجاح | AY179: ملحق | AZ179: 2 | BA179: 2 | BB179: 2.5 | BC179: 2 | BD179: 2 | BE179: 2.5 | BF179: 3 | BG179: 2 | BH179: 2 | BI179: 2 | BJ179: 0 | BK179: 0 | BL179: 0 | BM179: 0 | BN179: 0 | BO179: 0 | BP179: 0 | BQ179: 0 | BR179: 0 | BS179: 0 | BT179: لغة_عربية_جغرافيا | CM179: 103 | CN179: 40 | CP179: 0 | CQ179: 0 | CR179: 60 | CS179: 147 | CT179: ع/ت
A180: =SUBTOTAL(103,$B$22:B180) -> 158 | B180: صفيه سليمان ادم ادريس | C180: 11556910 | D180: 59 | E180: 58 | F180: 57 | G180: 60 | H180: 75 | I180: 68 | J180: 50 | K180: 66 | L180: 70 | M180: 75 | X180: C | Y180: C | Z180: C | AA180: C+ | AB180: B+ | AC180: C+ | AD180: C | AE180: C+ | AF180: B | AG180: B+ | AH180: F | AI180: F | AJ180: F | AK180: F | AL180: F | AM180: F | AN180: F | AO180: F | AP180: F | AQ180: F | AR180: 20 | AU180: 1.566666667 | AY180: نجاح | AZ180: 2 | BA180: 2 | BB180: 2 | BC180: 2.5 | BD180: 3.5 | BE180: 2.5 | BF180: 2 | BG180: 2.5 | BH180: 3 | BI180: 3.5 | BJ180: 0 | BK180: 0 | BL180: 0 | BM180: 0 | BN180: 0 | BO180: 0 | BP180: 0 | BQ180: 0 | BR180: 0 | BS180: 0 | BT180: لغة_عربية_جغرافيا | CM180: 94 | CN180: 40 | CP180: 0 | CQ180: 0 | CR180: 60 | CS180: 94 | CT180: ع/ت
A181: =SUBTOTAL(103,$B$22:B181) -> 159 | B181: محمد عثمان حسن على طالب | C181: 11763910 | D181: 76 | E181: 66 | F181: 58 | G181: 49 | H181: 72 | I181: 58 | J181: 61 | K181: 50 | L181: 68 | M181: 56 | X181: B+ | Y181: C+ | Z181: C | AA181: C* | AB181: B | AC181: C | AD181: C+ | AE181: C | AF181: C+ | AG181: C | AH181: F | AI181: F | AJ181: F | AK181: F | AL181: F | AM181: F | AN181: F | AO181: F | AP181: F | AQ181: F | AR181: 20 | AU181: 1.666666667 | AV181: نجاح | AY181: ملحق | AZ181: 3.5 | BA181: 2.5 | BB181: 2 | BC181: 2 | BD181: 3 | BE181: 2 | BF181: 2.5 | BG181: 2 | BH181: 2.5 | BI181: 2 | BJ181: 0 | BK181: 0 | BL181: 0 | BM181: 0 | BN181: 0 | BO181: 0 | BP181: 0 | BQ181: 0 | BR181: 0 | BS181: 0 | BT181: لغة_عربية_جغرافيا | CM181: 100 | CN181: 40 | CP181: 0 | CQ181: 0 | CR181: 60 | CS181: 100 | CT181: ع/ت
A182: =SUBTOTAL(103,$B$22:B182) -> 160 | B182: سحر عبدالوهاب بشير محمد دين | C182: 6760309 | D182: 55 | E182: 50 | F182: 50 | G182: 30 | H182: 50 | I182: 56 | J182: 37 | K182: 70 | L182: 36 | M182: 39 | X182: C | Y182: C | Z182: C | AA182: F | AB182: C | AC182: C | AD182: F | AE182: B | AF182: F | AG182: F | AH182: F | AI182: F | AJ182: F | AK182: F | AL182: F | AM182: F | AN182: F | AO182: F | AP182: F | AQ182: F | AR182: 20 | AS182: =IF(ISERROR(IF(SUMPRODUCT(($AZ$22:$BS$22<>0)*($AZ182:$BS182=0)),"",SUMPRODUCT(($AZ$22:$BS$22)*($AZ182:$BS182)))),"",IF(SUMPRODUCT(($AZ$22:$BS$22<>0)*($AZ182:$BS182=0)),"",SUMPRODUCT(($AZ$22:$BS$22)*($AZ182:$BS182)))) -> 26 | AT182: =IF(ISERROR(IF(ISERROR(AS182/AR182),"",AS182/AR182)),"",IF(ISERROR(AS182/AR182),"",AS182/AR182)) -> 1.3 | AU182: 2.216666667 | AV182: إعادة | AX182: طرق تدريس الحلقة الاولى/ Eng. Trad. Gr./ Introduction to Lt./ Translation/ | AY182: اعادة | AZ182: 2 | BA182: 2 | BB182: 2 | BC182: 0 | BD182: 2 | BE182: 2 | BF182: 0 | BG182: 3 | BH182: 0 | BI182: 0 | BJ182: 0 | BK182: 0 | BL182: 0 | BM182: 0 | BN182: 0 | BO182: 0 | BP182: 0 | BQ182: 0 | BR182: 0 | BS182: 0 | BT182: لغة_عربية_جغرافيا | BX182: طرق تدريس الحلقة الاولى/ | CA182: Eng. Trad. Gr./ | CC182: Introduction to Lt./ | CD182: Translation/ | CM182: 107 | CN182: 40 | CP182: 8 | CQ182: 8 | CR182: 60 | CS182: 133 | CT182: ع/ت
A183: =SUBTOTAL(103,$B$22:B183) -> 161 | B183: وداد صالح عبدالله أوجان | C183: 11626310 | D183: 75 | E183: 79 | F183: 70 | G183: 68 | H183: 77 | I183: 82 | J183: 73 | K183: 72 | L183: 58 | M183: 62 | X183: B+ | Y183: B+ | Z183: B | AA183: C+ | AB183: B+ | AC183: A | AD183: B | AE183: B | AF183: C | AG183: C+ | AH183: F | AI183: F | AJ183: F | AK183: F | AL183: F | AM183: F | AN183: F | AO183: F | AP183: F | AQ183: F | AR183: 20 | AS183: =IF(ISERROR(IF(SUMPRODUCT(($AZ$22:$BS$22<>0)*($AZ183:$BS183=0)),"",SUMPRODUCT(($AZ$22:$BS$22)*($AZ183:$BS183)))),"",IF(SUMPRODUCT(($AZ$22:$BS$22<>0)*($AZ183:$BS183=0)),"",SUMPRODUCT(($AZ$22:$BS$22)*($AZ183:$BS183)))) -> 61 | AT183: =IF(ISERROR(IF(ISERROR(AS183/AR183),"",AS183/AR183)),"",IF(ISERROR(AS183/AR183),"",AS183/AR183)) -> 3.05 | AU183: 2.783333333 | AV183: نجاح | AY183: نجاح | AZ183: 3.5 | BA183: 3.5 | BB183: 3 | BC183: 2.5 | BD183: 3.5 | BE183: 4 | BF183: 3 | BG183: 3 | BH183: 2 | BI183: 2.5 | BJ183: 0 | BK183: 0 | BL183: 0 | BM183: 0 | BN183: 0 | BO183: 0 | BP183: 0 | BQ183: 0 | BR183: 0 | BS183: 0 | BT183: لغة_عربية_جغرافيا | CM183: 106 | CN183: 40 | CP183: 0 | CQ183: 0 | CR183: 60 | CS183: 167 | CT183: ع/ت
A184: =SUBTOTAL(103,$B$22:B184) -> 162 | B184: تسابيح الامام حسن محمد | C184: 7787110 | D184: 60 | E184: 50 | F184: 50 | G184: 52 | H184: 55 | I184: 72 | J184: 59 | K184: 62 | L184: 49 | M184: 63 | X184: C+ | Y184: C | Z184: C | AA184: C | AB184: C | AC184: B | AD184: C | AE184: C+ | AF184: C* | AG184: C+ | AH184: F | AI184: F | AJ184: F | AK184: F | AL184: F | AM184: F | AN184: F | AO184: F | AP184: F | AQ184: F | AR184: 20 | AS184: =IF(ISERROR(IF(SUMPRODUCT(($AZ$22:$BS$22<>0)*($AZ184:$BS184=0)),"",SUMPRODUCT(($AZ$22:$BS$22)*($AZ184:$BS184)))),"",IF(SUMPRODUCT(($AZ$22:$BS$22<>0)*($AZ184:$BS184=0)),"",SUMPRODUCT(($AZ$22:$BS$22)*($AZ184:$BS184)))) -> 45 | AT184: =IF(ISERROR(IF(ISERROR(AS184/AR184),"",AS184/AR184)),"",IF(ISERROR(AS184/AR184),"",AS184/AR184)) -> 2.25 | AU184: 2.833333333 | AV184: نجاح | AY184: ملحق | AZ184: 2.5 | BA184: 2 | BB184: 2 | BC184: 2 | BD184: 2 | BE184: 3 | BF184: 2 | BG184: 2.5 | BH184: 2 | BI184: 2.5 | BJ184: 0 | BK184: 0 | BL184: 0 | BM184: 0 | BN184: 0 | BO184: 0 | BP184: 0 | BQ184: 0 | BR184: 0 | BS184: 0 | BT184: لغة_عربية_جغرافيا | CM184: 125 | CN184: 40 | CP184: 0 | CQ184: 0 | CR184: 60 | CS184: 170 | CT184: ع/ت
A185: =SUBTOTAL(103,$B$22:B185) -> 163 | B185: انتصار محمد نور محمود ابراهيم | C185: 18551010 | D185: 66 | E185: 63 | F185: 51 | G185: 54 | H185: 74 | I185: 67 | J185: 64 | K185: 56 | L185: 50 | M185: 50 | X185: C+ | Y185: C+ | Z185: C | AA185: C | AB185: B | AC185: C+ | AD185: C+ | AE185: C | AF185: C | AG185: C | AH185: F | AI185: F | AJ185: F | AK185: F | AL185: F | AM185: F | AN185: F | AO185: F | AP185: F | AQ185: F | AR185: 20 | AU185: 1.6 | AV185: نجاح | AY185: نجاح | AZ185: 2.5 | BA185: 2.5 | BB185: 2 | BC185: 2 | BD185: 3 | BE185: 2.5 | BF185: 2.5 | BG185: 2 | BH185: 2 | BI185: 2 | BJ185: 0 | BK185: 0 | BL185: 0 | BM185: 0 | BN185: 0 | BO185: 0 | BP185: 0 | BQ185: 0 | BR185: 0 | BS185: 0 | BT185: لغة_عربية_جغرافيا | CM185: 96 | CN185: 40 | CP185: 0 | CQ185: 0 | CR185: 60 | CS185: 96 | CT185: ع/ت
A186: =SUBTOTAL(103,$B$22:B186) -> 164 | B186: خنساء الشاذلي مصطفى محمد | C186: 314410 | D186: 52 | E186: 50 | F186: 50 | G186: 51 | H186: 49 | I186: 57 | J186: 57 | K186: 56 | L186: 50 | M186: 50 | X186: C | Y186: C | Z186: C | AA186: C | AB186: C* | AC186: C | AD186: C | AE186: C | AF186: C | AG186: C | AH186: F | AI186: F | AJ186: F | AK186: F | AL186: F | AM186: F | AN186: F | AO186: F | AP186: F | AQ186: F | AR186: 20 | AU186: 0 | AV186: نجاح | AY186: ملحق | AZ186: 2 | BA186: 2 | BB186: 2 | BC186: 2 | BD186: 2 | BE186: 2 | BF186: 2 | BG186: 2 | BH186: 2 | BI186: 2 | BJ186: 0 | BK186: 0 | BL186: 0 | BM186: 0 | BN186: 0 | BO186: 0 | BP186: 0 | BQ186: 0 | BR186: 0 | BS186: 0 | BT186: لغة_عربية_جغرافيا | CN186: 40 | CP186: 0 | CQ186: 0 | CR186: 60 | CS186: 0 | CT186: ع/ت
A187: =SUBTOTAL(103,$B$22:B187) -> 165 | B187: سناء حسن علي محمد خير | C187: 819609 | D187: 51 | E187: 73 | F187: 66 | G187: 71 | H187: 65 | I187: 0 | J187: 56 | K187: 50 | L187: 70 | M187: 73 | X187: C | Y187: B | Z187: C+ | AA187: B | AB187: C+ | AC187: F | AD187: C | AE187: C | AF187: B | AG187: B | AH187: =IF($B187=0,"",IF(N187>100,"-",IF(N187>=80,"A",IF(N187>=75,"B+",IF(N187>=70,"B",IF(N187>=60,"C+",IF(N187>=50,"C",IF(N187>=49,"C*","F")))))))) -> F | AI187: F | AJ187: F | AK187: F | AL187: F | AM187: F | AN187: F | AO187: F | AP187: F | AQ187: F | AR187: 20 | AU187: 1.666666667 | AV187: ملحق | AX187: طرق تدريس خاصة/ | AY187: نجاح | AZ187: 2 | BA187: 3 | BB187: 2.5 | BC187: 3 | BD187: 2.5 | BE187: 0 | BF187: 2 | BG187: 2 | BH187: 3 | BI187: 3 | BJ187: =IF(N187>100,"-",IF(N187>=80,4,IF(N187>=75,3.5,IF(N187>=70,3,IF(N187>=60,2.5,IF(N187>=50,2,IF(N187>=49,2,"0"))))))) -> 0 | BK187: 0 | BL187: 0 | BM187: 0 | BN187: 0 | BO187: 0 | BP187: 0 | BQ187: 0 | BR187: 0 | BS187: 0 | BT187: لغة_عربية_رياض_أطفال | BZ187: طرق تدريس خاصة/ | CB187: =IF(AND(K187<CB$22,$B187>0),CB$21,"") ->  | CM187: 100 | CN187: 40 | CP187: 2 | CQ187: 2 | CR187: 60 | CS187: 100 | CT187: ع/ط
A188: =SUBTOTAL(103,$B$22:B188) -> 165 | AS188: =IF(ISERROR(IF(SUMPRODUCT(($AZ$22:$BS$22<>0)*($AZ188:$BS188=0)),"",SUMPRODUCT(($AZ$22:$BS$22)*($AZ188:$BS188)))),"",IF(SUMPRODUCT(($AZ$22:$BS$22<>0)*($AZ188:$BS188=0)),"",SUMPRODUCT(($AZ$22:$BS$22)*($AZ188:$BS188)))) -> 0 | AT188: =IF(ISERROR(IF(ISERROR(AS188/AR188),"",AS188/AR188)),"",IF(ISERROR(AS188/AR188),"",AS188/AR188)) ->  | AZ188: 0 | BA188: 0 | BB188: 0 | BC188: 0 | BD188: 0 | BE188: 0 | BF188: 0 | BG188: 0 | BH188: 0 | BI188: 0 | BJ188: 0 | BK188: 0 | BL188: 0 | BM188: 0 | BN188: 0 | BO188: 0 | BP188: 0 | BQ188: 0 | BR188: 0 | BS188: 0 | CM188: 109 | CN188: 40 | CP188: - | CQ188: 20 | CS188: 109
A189: =SUBTOTAL(103,$B$22:B189) -> 165 | AS189: =IF(ISERROR(IF(SUMPRODUCT(($AZ$22:$BS$22<>0)*($AZ189:$BS189=0)),"",SUMPRODUCT(($AZ$22:$BS$22)*($AZ189:$BS189)))),"",IF(SUMPRODUCT(($AZ$22:$BS$22<>0)*($AZ189:$BS189=0)),"",SUMPRODUCT(($AZ$22:$BS$22)*($AZ189:$BS189)))) -> 0 | AT189: =IF(ISERROR(IF(ISERROR(AS189/AR189),"",AS189/AR189)),"",IF(ISERROR(AS189/AR189),"",AS189/AR189)) ->  | AZ189: 0 | BA189: 0 | BB189: 0 | BC189: 0 | BD189: 0 | BE189: 0 | BF189: 0 | BG189: 0 | BH189: 0 | BI189: 0 | BJ189: 0 | BK189: 0 | BL189: 0 | BM189: 0 | BN189: 0 | BO189: 0 | BP189: 0 | BQ189: 0 | BR189: 0 | BS189: 0 | CM189: 101 | CN189: 40 | CP189: - | CQ189: 20 | CS189: 101
A190: =SUBTOTAL(103,$B$22:B190) -> 165 | AZ190: 0 | BA190: 0 | BB190: 0 | BC190: 0 | BD190: 0 | BE190: 0 | BF190: 0 | BG190: 0 | BH190: 0 | BI190: 0 | BJ190: 0 | BK190: 0 | BL190: 0 | BM190: 0 | BN190: 0 | BO190: 0 | BP190: 0 | BQ190: 0 | BR190: 0 | BS190: 0 | CN190: 40 | CP190: - | CQ190: 20 | CS190: 0
A191: =SUBTOTAL(103,$B$22:B191) -> 165 | AZ191: 0 | BA191: 0 | BB191: 0 | BC191: 0 | BD191: 0 | BE191: 0 | BF191: 0 | BG191: 0 | BH191: 0 | BI191: 0 | BJ191: 0 | BK191: 0 | BL191: 0 | BM191: 0 | BN191: 0 | BO191: 0 | BP191: 0 | BQ191: 0 | BR191: 0 | BS191: 0 | CN191: 40 | CP191: - | CQ191: 20 | CS191: 0
A192: =SUBTOTAL(103,$B$22:B192) -> 165 | AC192: =IF($B192=0,"",IF(I192>100,"-",IF(I192>=80,"A",IF(I192>=75,"B+",IF(I192>=70,"B",IF(I192>=60,"C+",IF(I192>=50,"C",IF(I192>=49,"C*","F")))))))) ->  | AZ192: 0 | BA192: 0 | BB192: 0 | BC192: 0 | BD192: 0 | BE192: =IF(I192>100,"-",IF(I192>=80,4,IF(I192>=75,3.5,IF(I192>=70,3,IF(I192>=60,2.5,IF(I192>=50,2,IF(I192>=49,2,"0"))))))) -> 0 | BF192: 0 | BG192: 0 | BH192: 0 | BI192: 0 | BJ192: 0 | BK192: 0 | BL192: 0 | BM192: 0 | BN192: 0 | BO192: 0 | BP192: 0 | BQ192: 0 | BR192: 0 | BS192: 0 | CM192: 90 | CN192: 40 | CP192: - | CQ192: 20 | CS192: 90
A193: =SUBTOTAL(103,$B$22:B193) -> 165 | X193: =IF($B193=0,"",IF(D193>100,"-",IF(D193>=80,"A",IF(D193>=75,"B+",IF(D193>=70,"B",IF(D193>=60,"C+",IF(D193>=50,"C",IF(D193>=49,"C*","F")))))))) ->  | AS193: =IF(ISERROR(IF(SUMPRODUCT(($AZ$22:$BS$22<>0)*($AZ193:$BS193=0)),"",SUMPRODUCT(($AZ$22:$BS$22)*($AZ193:$BS193)))),"",IF(SUMPRODUCT(($AZ$22:$BS$22<>0)*($AZ193:$BS193=0)),"",SUMPRODUCT(($AZ$22:$BS$22)*($AZ193:$BS193)))) -> 0 | AT193: =IF(ISERROR(IF(ISERROR(AS193/AR193),"",AS193/AR193)),"",IF(ISERROR(AS193/AR193),"",AS193/AR193)) ->  | AZ193: =IF(D193>100,"-",IF(D193>=80,4,IF(D193>=75,3.5,IF(D193>=70,3,IF(D193>=60,2.5,IF(D193>=50,2,IF(D193>=49,2,"0"))))))) -> 0 | BA193: 0 | BB193: 0 | BC193: 0 | BD193: 0 | BE193: 0 | BF193: 0 | BG193: 0 | BH193: 0 | BI193: 0 | BJ193: 0 | BK193: 0 | BL193: 0 | BM193: 0 | BN193: 0 | BO193: 0 | BP193: 0 | BQ193: 0 | BR193: 0 | BS193: 0 | CM193: 98 | CN193: 40 | CP193: - | CQ193: 20 | CS193: 98
A194: =SUBTOTAL(103,$B$22:B194) -> 165 | AS194: 0 | AZ194: 0 | BA194: 0 | BB194: 0 | BC194: 0 | BD194: 0 | BE194: 0 | BF194: 0 | BG194: 0 | BH194: 0 | BI194: 0 | BJ194: 0 | BK194: 0 | BL194: 0 | BM194: 0 | BN194: 0 | BO194: 0 | BP194: 0 | BQ194: 0 | BR194: 0 | BS194: 0 | CM194: 102 | CN194: 40 | CP194: - | CQ194: 20 | CS194: 102
A195: =SUBTOTAL(103,$B$22:B195) -> 165 | AS195: 0 | AZ195: 0 | BA195: 0 | BB195: 0 | BC195: 0 | BD195: 0 | BE195: 0 | BF195: 0 | BG195: 0 | BH195: 0 | BI195: 0 | BJ195: 0 | BK195: 0 | BL195: 0 | BM195: 0 | BN195: 0 | BO195: 0 | BP195: 0 | BQ195: 0 | BR195: 0 | BS195: 0 | CM195: 111 | CN195: 40 | CP195: - | CQ195: 20 | CS195: =IF(ISERROR(CM195+AS195),"",CM195+AS195) -> 111
A196: =SUBTOTAL(103,$B$22:B196) -> 165 | AS196: 0 | AT196: =IF(ISERROR(IF(ISERROR(AS196/AR196),"",AS196/AR196)),"",IF(ISERROR(AS196/AR196),"",AS196/AR196)) ->  | AZ196: 0 | BA196: 0 | BB196: 0 | BC196: 0 | BD196: 0 | BE196: 0 | BF196: 0 | BG196: 0 | BH196: 0 | BI196: 0 | BJ196: 0 | BK196: 0 | BL196: 0 | BM196: 0 | BN196: 0 | BO196: 0 | BP196: 0 | BQ196: 0 | BR196: 0 | BS196: 0 | CM196: 101 | CN196: 40 | CP196: - | CQ196: 20 | CS196: 101
A197: =SUBTOTAL(103,$B$22:B197) -> 165 | AS197: 0 | AZ197: 0 | BA197: 0 | BB197: 0 | BC197: 0 | BD197: 0 | BE197: 0 | BF197: 0 | BG197: 0 | BH197: 0 | BI197: 0 | BJ197: 0 | BK197: 0 | BL197: 0 | BM197: 0 | BN197: 0 | BO197: 0 | BP197: 0 | BQ197: 0 | BR197: 0 | BS197: 0 | CM197: 106 | CN197: 40 | CP197: - | CQ197: 20 | CS197: 106
A198: =SUBTOTAL(103,$B$22:B198) -> 165 | AS198: 0 | AZ198: 0 | BA198: 0 | BB198: 0 | BC198: 0 | BD198: 0 | BE198: 0 | BF198: 0 | BG198: 0 | BH198: 0 | BI198: 0 | BJ198: 0 | BK198: 0 | BL198: 0 | BM198: 0 | BN198: 0 | BO198: 0 | BP198: 0 | BQ198: 0 | BR198: 0 | BS198: 0 | CM198: 144 | CN198: 40 | CP198: - | CQ198: 20 | CS198: 144
A199: =SUBTOTAL(103,$B$22:B199) -> 165 | AS199: 0 | AZ199: 0 | BA199: 0 | BB199: 0 | BC199: 0 | BD199: 0 | BE199: 0 | BF199: 0 | BG199: 0 | BH199: 0 | BI199: 0 | BJ199: 0 | BK199: 0 | BL199: 0 | BM199: 0 | BN199: 0 | BO199: 0 | BP199: 0 | BQ199: 0 | BR199: 0 | BS199: 0 | CM199: 123 | CN199: 40 | CP199: - | CQ199: 20 | CS199: 123
A200: =SUBTOTAL(103,$B$22:B200) -> 165 | AS200: =IF(ISERROR(IF(SUMPRODUCT(($AZ$22:$BS$22<>0)*($AZ200:$BS200=0)),"",SUMPRODUCT(($AZ$22:$BS$22)*($AZ200:$BS200)))),"",IF(SUMPRODUCT(($AZ$22:$BS$22<>0)*($AZ200:$BS200=0)),"",SUMPRODUCT(($AZ$22:$BS$22)*($AZ200:$BS200)))) -> 0 | AT200: =IF(ISERROR(IF(ISERROR(AS200/AR200),"",AS200/AR200)),"",IF(ISERROR(AS200/AR200),"",AS200/AR200)) ->  | AZ200: 0 | BA200: 0 | BB200: 0 | BC200: 0 | BD200: 0 | BE200: 0 | BF200: 0 | BG200: 0 | BH200: 0 | BI200: 0 | BJ200: 0 | BK200: 0 | BL200: 0 | BM200: 0 | BN200: 0 | BO200: 0 | BP200: 0 | BQ200: 0 | BR200: 0 | BS200: 0 | CI200: =IF(AND(R200<CI$22,$B200>0),CI$21,"") ->  | CM200: 125 | CN200: 40 | CP200: - | CQ200: 20 | CS200: 125
... 93 more rows
